Workbook

Sheet FY 2024 TABLE 15
A1: Table 15 of the Superintendent's Annual Report for Virginia
A2: Sources of Financial Support for Expenditures, Total Expenditures for Operations 1, 8 and Total Per Pupil Expenditures for Operations
A3: Fiscal Year 2024
C5: End-of-Year
C6: ADM for | H6: State Retail Sales
C7: Determining | D7: Local 3 | F7: State | H7: And Use Tax 4 | J7: Federal | L7: Total
C8: Cost Per | E8: Per | G8: Per | I8: Per | K8: Per | L8: Expenditures for | M8: Per Pupil
A9: ='Fiscal Year 2024 Worksheet'!A5 -> 0 | B9: School Division | C9: Pupil 2 | D9: Amount | E9: Pupil | F9: Amount | G9: Pupil | H9: Amount | I9: Pupil | J9: Amount | K9: Pupil | L9: Operations 3 | M9: Expenditure 5
B10: COUNTIES
A11: 1 | B11: Accomack | C11: 4757.35 | D11: 20301910.31 | E11: 4267 | F11: 38445925.8 | G11: 8081 | H11: 6009078.6 | I11: 1263 | J11: 12990612.31 | K11: 2731 | L11: 77747527.02 | M11: 16343
A12: 2 | B12: Albemarle | C12: 13840.91 | D12: 205556956.1 | E12: 14851 | F12: 54836933.58 | G12: 3962 | H12: 21141568.36 | I12: 1527 | J12: 14309384.27 | K12: 1034 | L12: 295844842.3 | M12: 21375
A13: 3 | B13: Alleghany Highlands | C13: 2793.89 | D13: 12426177.34 | E13: 4448 | F13: 25567108.69 | G13: 9151 | H13: 3778505 | I13: 1352 | J13: 5554571.43 | K13: 1988 | L13: 47326362.46 | M13: 16939
A14: 4 | B14: Amelia | C14: 1585.71 | D14: 6860297.83 | E14: 4326 | F14: 12233875.9 | G14: 7715 | H14: 2487402.84 | I14: 1569 | J14: 2772775.26 | K14: 1749 | L14: 24354351.83 | M14: 15359
A15: 5 | B15: Amherst | C15: 3923.25 | D15: 16466172.45 | E15: 4197 | F15: 33423151.54 | G15: 8519 | H15: 5881097.42 | I15: 1499 | J15: 6860015.04 | K15: 1749 | L15: 62630436.45 | M15: 15964
A16: 6 | B16: Appomattox | C16: 2344.19 | D16: 10148796.51 | E16: 4329 | F16: 15411816.94 | G16: 6574 | H16: 3207177.76 | I16: 1368 | J16: 3477853.34 | K16: 1484 | L16: 32245644.55 | M16: 13756
A17: 7 | B17: Arlington | C17: 27856.74 | D17: 600159925.4 | E17: 21545 | F17: 69513951.13 | G17: 2495 | H17: 36550281.63 | I17: 1312 | J17: 24198908.81 | K17: 869 | L17: 730423067 | M17: 26221
A18: 8 | B18: Augusta | C18: 10048.8 | D18: 50762158.65 | E18: 5052 | F18: 68217734.91 | G18: 6789 | H18: 14586709.92 | I18: 1452 | J18: 13716727.31 | K18: 1365 | L18: 147283330.8 | M18: 14657
A19: 9 | B19: Bath | C19: 508.72 | D19: 9005602.55 | E19: 17702 | F19: 1698367.78 | G19: 3339 | H19: 652151.7 | I19: 1282 | J19: 1090342.12 | K19: 2143 | L19: 12446464.15 | M19: 24466
A20: 10 | B20: Bedford County | C20: 8964.5 | D20: 37400216.82 | E20: 4172 | F20: 62368233.7 | G20: 6957 | H20: 15345149.24 | I20: 1712 | J20: 10509970.2 | K20: 1172 | L20: 125623570 | M20: 14013
A21: 11 | B21: Bland | C21: 800.66 | D21: 3839999.25 | E21: 4796 | F21: 6440191.76 | G21: 8044 | H21: 868154.64 | I21: 1084 | J21: 1021955.42 | K21: 1276 | L21: 12170301.07 | M21: 15200
A22: 12 | B22: Botetourt | C22: 4444.62 | D22: 31297801.55 | E22: 7042 | F22: 27171384.89 | G22: 6113 | H22: 6518035.08 | I22: 1466 | J22: 5913943.52 | K22: 1331 | L22: 70901165.04 | M22: 15952
A23: 13 | B23: Brunswick | C23: 1375.73 | D23: 8567464.98 | E23: 6228 | F23: 11991988.24 | G23: 8717 | H23: 2328492.42 | I23: 1693 | J23: 5195240 | K23: 3776 | L23: 28083185.64 | M23: 20413
A24: 14 | B24: Buchanan | C24: 2358.23 | D24: 14571783.37 | E24: 6179 | F24: 16402223.81 | G24: 6955 | H24: 3324974.62 | I24: 1410 | J24: 8408474.07 | K24: 3566 | L24: 42707455.87 | M24: 18110
A25: 15 | B25: Buckingham | C25: 1917.97 | D25: 8749556.75 | E25: 4562 | F25: 16529259.93 | G25: 8618 | H25: 2933466.32 | I25: 1529 | J25: 5324987.85 | K25: 2776 | L25: 33537270.85 | M25: 17486
A26: 16 | B26: Campbell | C26: 7829.17 | D26: 32294254.42 | E26: 4125 | F26: 54708130.95 | G26: 6988 | H26: 10686108.94 | I26: 1365 | J26: 11568396.16 | K26: 1478 | L26: 109256890.5 | M26: 13955
A27: 17 | B27: Caroline | C27: 4532.9 | D27: 19511476.21 | E27: 4304 | F27: 28728302.83 | G27: 6338 | H27: 6552062.7 | I27: 1445 | J27: 8821657.38 | K27: 1946 | L27: 63613499.12 | M27: 14034
A28: 18 | B28: Carroll | C28: 3428.88 | D28: 14007027.99 | E28: 4085 | F28: 28577384.52 | G28: 8334 | H28: 5016922.1 | I28: 1463 | J28: 15910244.72 | K28: 4640 | L28: 63511579.33 | M28: 18523
A29: 19 | B29: Charles City | C29: 526.05 | D29: 7231532.83 | E29: 13747 | F29: 3262132.56 | G29: 6201 | H29: 925859.82 | I29: 1760 | J29: 1976276.76 | K29: 3757 | L29: 13395801.97 | M29: 25465
A30: 20 | B30: Charlotte | C30: 1688.09 | D30: 5429180.1 | E30: 3216 | F30: 15875335.5 | G30: 9404 | H30: 2229052.6 | I30: 1320 | J30: 4860299.45 | K30: 2879 | L30: 28393867.65 | M30: 16820
A31: 21 | B31: Chesterfield | C31: 63681.57 | D31: 355253635.1 | E31: 5579 | F31: 403356295.5 | G31: 6334 | H31: 83195164.98 | I31: 1306 | J31: 82239153.87 | K31: 1291 | L31: 924044249.5 | M31: 14510
A32: 22 | B32: Clarke | C32: 1920.96 | D32: 16096516.72 | E32: 8379 | F32: 8171242.77 | G32: 4254 | H32: 2907973.28 | I32: 1514 | J32: 1955318.43 | K32: 1018 | L32: 29131051.2 | M32: 15165
A33: 23 | B33: Craig | C33: 468.23 | D33: 2692838.12 | E33: 5751 | F33: 3902896.33 | G33: 8335 | H33: 873787.22 | I33: 1866 | J33: 929587.72 | K33: 1985 | L33: 8399109.39 | M33: 17938
A34: 24 | B34: Culpeper | C34: 8361.54 | D34: 41117224.36 | E34: 4917 | F34: 51590992.1 | G34: 6170 | H34: 12031532.22 | I34: 1439 | J34: 9975229.75 | K34: 1193 | L34: 114714978.4 | M34: 13719
A35: 25 | B35: Cumberland | C35: 1239.91 | D35: 5634981.27 | E35: 4545 | F35: 11666385.37 | G35: 9409 | H35: 1789701.3 | I35: 1443 | J35: 3869783.37 | K35: 3121 | L35: 22960851.31 | M35: 18518
A36: 26 | B36: Dickenson | C36: 1861.65 | D36: 3732985.78 | E36: 2005 | F36: 18413595.62 | G36: 9891 | H36: 2577190.82 | I36: 1384 | J36: 6191589 | K36: 3326 | L36: 30915361.22 | M36: 16606
A37: 27 | B37: Dinwiddie | C37: 4230.79 | D37: 18491934.64 | E37: 4371 | F37: 34694167.12 | G37: 8200 | H37: 5595646.28 | I37: 1323 | J37: 9923420.44 | K37: 2346 | L37: 68705168.48 | M37: 16239
A38: 28 | B38: Essex | C38: 1125.35 | D38: 7504387.49 | E38: 6668 | F38: 8507832.24 | G38: 7560 | H38: 1828561.22 | I38: 1625 | J38: 3170632.96 | K38: 2817 | L38: 21011413.91 | M38: 18671
A39: 29 | B39: Fairfax County/City6 | C39: 180750.19 | D39: 2516163150 | E39: 13921 | F39: 733162446.9 | G39: 4056 | H39: 248417057.2 | I39: 1374 | J39: 235609690.5 | K39: 1304 | L39: 3733352345 | M39: 20655
A40: 30 | B40: Fauquier | C40: 10805.28 | D40: 98445972.28 | E40: 9111 | F40: 50142788.81 | G40: 4641 | H40: 16230711.24 | I40: 1502 | J40: 11861417.79 | K40: 1098 | L40: 176680890.1 | M40: 16351
A41: 31 | B41: Floyd | C41: 1704.86 | D41: 7369538.45 | E41: 4323 | F41: 12696421.78 | G41: 7447 | H41: 2801469.86 | I41: 1643 | J41: 3042277.04 | K41: 1784 | L41: 25909707.13 | M41: 15198
A42: 32 | B42: Fluvanna | C42: 3349.09 | D42: 21031656.11 | E42: 6280 | F42: 22689018.55 | G42: 6775 | H42: 5074679.12 | I42: 1515 | J42: 4421645.11 | K42: 1320 | L42: 53216998.89 | M42: 15890
A43: 33 | B43: Franklin | C43: 6087.13 | D43: 36650385.98 | E43: 6021 | F43: 42515268.29 | G43: 6984 | H43: 9613771.5 | I43: 1579 | J43: 15050494.94 | K43: 2473 | L43: 103829920.7 | M43: 17057
A44: 34 | B44: Frederick | C44: 14269.21 | D44: 105342642.5 | E44: 7383 | F44: 85236783.76 | G44: 5973 | H44: 20245760.72 | I44: 1419 | J44: 13693034.86 | K44: 960 | L44: 224518221.8 | M44: 15734
A45: 35 | B45: Giles | C45: 3550.48 | D45: 9297560.72 | E45: 2619 | F45: 28614088.17 | G45: 8059 | H45: 3150443 | I45: 887 | J45: 4365780.07 | K45: 1230 | L45: 45427871.96 | M45: 12795
A46: 36 | B46: Gloucester | C46: 4938.68 | D46: 35842271.06 | E46: 7257 | F46: 31302554.3 | G46: 6338 | H46: 7295826.62 | I46: 1477 | J46: 6954448.11 | K46: 1408 | L46: 81395100.09 | M46: 16481
A47: 37 | B47: Goochland | C47: 2583.23 | D47: 28832320.64 | E47: 11161 | F47: 6154330.85 | G47: 2382 | H47: 4183402.76 | I47: 1619 | J47: 2508836.37 | K47: 971 | L47: 41678890.62 | M47: 16134
A48: 38 | B48: Grayson | C48: 1566.98 | D48: 7535565.15 | E48: 4809 | F48: 12564571.63 | G48: 8018 | H48: 2324689.62 | I48: 1484 | J48: 4591055.8 | K48: 2930 | L48: 27015882.2 | M48: 17241
A49: 39 | B49: Greene | C49: 2833.09 | D49: 13365740.15 | E49: 4718 | F49: 20135225.79 | G49: 7107 | H49: 4473284.56 | I49: 1579 | J49: 4995033.68 | K49: 1763 | L49: 42969284.18 | M49: 15167
A50: 40 | B50: Greensville/Emporia 6 | C50: 2037.12 | D50: 11504739.95 | E50: 5648 | F50: 16365411.28 | G50: 8034 | H50: 2764437.61 | I50: 1357 | J50: 9368350.58 | K50: 4599 | L50: 40002939.42 | M50: 19637
A51: 41 | B51: Halifax | C51: 4537.15 | D51: 16079768.5 | E51: 3544 | F51: 41889144.86 | G51: 9232 | H51: 6288195.26 | I51: 1386 | J51: 12624957.6 | K51: 2783 | L51: 76882066.22 | M51: 16945
A52: 42 | B52: Hanover | C52: 16794.66 | D52: 122366751.3 | E52: 7286 | F52: 90056926.46 | G52: 5362 | H52: 21739951.54 | I52: 1294 | J52: 12453299.5 | K52: 742 | L52: 246616928.8 | M52: 14684
A53: 43 | B53: Henrico | C53: 50421.86 | D53: 342333525.3 | E53: 6789 | F53: 255578863.6 | G53: 5069 | H53: 79059028.7 | I53: 1568 | J53: 77308726.35 | K53: 1533 | L53: 754280143.9 | M53: 14959
A54: 44 | B54: Henry | C54: 6917.8 | D54: 17338022.03 | E54: 2506 | F54: 62356427.08 | G54: 9014 | H54: 9269739.18 | I54: 1340 | J54: 15866461.92 | K54: 2294 | L54: 104830650.2 | M54: 15154
A55: 45 | B55: Highland | C55: 212 | D55: 2598142 | E55: 12255 | F55: 1879877.15 | G55: 8867 | H55: 289118.74 | I55: 1364 | J55: 428399.15 | K55: 2021 | L55: 5195537.04 | M55: 24507
A56: 46 | B56: Isle Of Wight | C56: 5573.26 | D56: 31953033.26 | E56: 5733 | F56: 35655110.22 | G56: 6398 | H56: 8103957.66 | I56: 1454 | J56: 6221627.22 | K56: 1116 | L56: 81933728.36 | M56: 14701
A57: 48 | B57: King George | C57: 4492.14 | D57: 24064681.23 | E57: 5357 | F57: 26559837.41 | G57: 5913 | H57: 6434924.34 | I57: 1432 | J57: 5067817.02 | K57: 1128 | L57: 62127260 | M57: 13830
A58: 49 | B58: King & Queen | C58: 849.05 | D58: 4973194.87 | E58: 5857 | F58: 6973185.41 | G58: 8213 | H58: 1049422.12 | I58: 1236 | J58: 1939054.79 | K58: 2284 | L58: 14934857.19 | M58: 17590
A59: 50 | B59: King William | C59: 2094.34 | D59: 10862289.21 | E59: 5186 | F59: 14066504.06 | G59: 6716 | H59: 2931456.92 | I59: 1400 | J59: 3037129.57 | K59: 1450 | L59: 30897379.76 | M59: 14753
A60: 51 | B60: Lancaster | C60: 1016.73 | D60: 12801412.78 | E60: 12591 | F60: 2511760.36 | G60: 2470 | H60: 1472485.46 | I60: 1448 | J60: 2208899.87 | K60: 2173 | L60: 18994558.47 | M60: 18682
A61: 52 | B61: Lee | C61: 2982.65 | D61: 11160240.39 | E61: 3742 | F61: 25867806.58 | G61: 8673 | H61: 4059931.04 | I61: 1361 | J61: 10189091.45 | K61: 3416 | L61: 51277069.46 | M61: 17192
A62: 53 | B62: Loudoun | C62: 82439.13 | D62: 1205785798 | E62: 14626 | F62: 388687169.7 | G62: 4715 | H62: 110131367.5 | I62: 1336 | J62: 41696474.3 | K62: 506 | L62: 1746300809 | M62: 21183
A63: 54 | B63: Louisa | C63: 5135.66 | D63: 38215682.74 | E63: 7441 | F63: 27700966.18 | G63: 5394 | H63: 7243604.88 | I63: 1410 | J63: 13105606.56 | K63: 2552 | L63: 86265860.36 | M63: 16797
A64: 55 | B64: Lunenburg | C64: 1573.36 | D64: 6469118.42 | E64: 4112 | F64: 14287731.07 | G64: 9081 | H64: 2189889.52 | I64: 1392 | J64: 3768719.67 | K64: 2395 | L64: 26715458.68 | M64: 16980
A65: 56 | B65: Madison | C65: 1668.53 | D65: 10409786.75 | E65: 6239 | F65: 9766206.52 | G65: 5853 | H65: 2732885.16 | I65: 1638 | J65: 2886185.99 | K65: 1730 | L65: 25795064.42 | M65: 15460
A66: 57 | B66: Mathews | C66: 821.34 | D66: 10169781.66 | E66: 12382 | F66: 4512891.25 | G66: 5495 | H66: 1282304.4 | I66: 1561 | J66: 1537350.65 | K66: 1872 | L66: 17502327.96 | M66: 21309
A67: 58 | B67: Mecklenburg | C67: 3865.22 | D67: 22278029.55 | E67: 5764 | F67: 27854362.24 | G67: 7206 | H67: 5067331.46 | I67: 1311 | J67: 9008409.03 | K67: 2331 | L67: 64208132.28 | M67: 16612
A68: 59 | B68: Middlesex | C68: 1214.67 | D68: 12080478.16 | E68: 9945 | F68: 5181533.48 | G68: 4266 | H68: 1464062.2 | I68: 1205 | J68: 2585385.83 | K68: 2128 | L68: 21311459.67 | M68: 17545
A69: 60 | B69: Montgomery | C69: 9566.78 | D69: 61082589.1 | E69: 6385 | F69: 57639221.54 | G69: 6025 | H69: 15057624.22 | I69: 1574 | J69: 10840244.03 | K69: 1133 | L69: 144619678.9 | M69: 15117
A70: 62 | B70: Nelson | C70: 1474.85 | D70: 19139466.19 | E70: 12977 | F70: 5963577.91 | G70: 4044 | H70: 2327424.06 | I70: 1578 | J70: 4672098.45 | K70: 3168 | L70: 32102566.61 | M70: 21767
A71: 63 | B71: New Kent | C71: 3541.44 | D71: 20636224.28 | E71: 5827 | F71: 19977592.2 | G71: 5641 | H71: 4515712.7 | I71: 1275 | J71: 4112658.54 | K71: 1161 | L71: 49242187.72 | M71: 13905
A72: 65 | B72: Northampton | C72: 1320.31 | D72: 10350119.92 | E72: 7839 | F72: 9312765.67 | G72: 7053 | H72: 2028798.94 | I72: 1537 | J72: 3879730.51 | K72: 2938 | L72: 25571415.04 | M72: 19368
A73: 66 | B73: Northumberland | C73: 1162.79 | D73: 13041783.96 | E73: 11216 | F73: 4361660.45 | G73: 3751 | H73: 1575274.2 | I73: 1355 | J73: 4221818.53 | K73: 3631 | L73: 23200537.14 | M73: 19952
A74: 67 | B74: Nottoway | C74: 1824.6 | D74: 6524056.1 | E74: 3576 | F74: 16102976.44 | G74: 8825 | H74: 2654424.66 | I74: 1455 | J74: 8543356.8 | K74: 4682 | L74: 33824814 | M74: 18538
A75: 68 | B75: Orange | C75: 5052.56 | D75: 23465194.88 | E75: 4644 | F75: 32678491.03 | G75: 6468 | H75: 7088479.6 | I75: 1403 | J75: 9081200.38 | K75: 1797 | L75: 72313365.89 | M75: 14312
A76: 69 | B76: Page | C76: 2985.71 | D76: 14550186.59 | E76: 4873 | F76: 24312912.68 | G76: 8143 | H76: 4311941.46 | I76: 1444 | J76: 4867830.88 | K76: 1630 | L76: 48042871.61 | M76: 16091
A77: 70 | B77: Patrick | C77: 2354.4 | D77: 7599643.61 | E77: 3228 | F77: 20951461.31 | G77: 8899 | H77: 2994225.84 | I77: 1272 | J77: 4574440.6 | K77: 1943 | L77: 36119771.36 | M77: 15341
A78: 71 | B78: Pittsylvania | C78: 7792.09 | D78: 31625491.03 | E78: 4059 | F78: 64712671.21 | G78: 8305 | H78: 11047495.18 | I78: 1418 | J78: 21828450.39 | K78: 2801 | L78: 129214107.8 | M78: 16583
A79: 72 | B79: Powhatan | C79: 4171.94 | D79: 30366923.29 | E79: 7279 | F79: 20549860.96 | G79: 4926 | H79: 6087339.48 | I79: 1459 | J79: 3717088.18 | K79: 891 | L79: 60721211.91 | M79: 14555
A80: 73 | B80: Prince Edward | C80: 1860.26 | D80: 8240612.24 | E80: 4430 | F80: 14603312.67 | G80: 7850 | H80: 3140520.02 | I80: 1688 | J80: 7210545.75 | K80: 3876 | L80: 33194990.68 | M80: 17844
A81: 74 | B81: Prince George | C81: 6125.02 | D81: 17302842.88 | E81: 2825 | F81: 48584412.71 | G81: 7932 | H81: 8039174.76 | I81: 1313 | J81: 11574336.55 | K81: 1890 | L81: 85500766.9 | M81: 13959
A82: 75 | B82: Prince William | C82: 90689.17 | D82: 677772899.5 | E82: 7474 | F82: 647995659 | G82: 7145 | H82: 118304436.8 | I82: 1305 | J82: 95403303.75 | K82: 1052 | L82: 1539476299 | M82: 16975
A83: 77 | B83: Pulaski | C83: 4322.39 | D83: 16939009.43 | E83: 3919 | F83: 34272843.74 | G83: 7929 | H83: 5591687.3 | I83: 1294 | J83: 10923409.93 | K83: 2527 | L83: 67726950.4 | M83: 15669
A84: 78 | B84: Rappahannock | C84: 771.87 | D84: 11591984.68 | E84: 15018 | F84: 2014663.07 | G84: 2610 | H84: 1170817.9 | I84: 1517 | J84: 696835.63 | K84: 903 | L84: 15474301.28 | M84: 20048
A85: 79 | B85: Richmond | C85: 1367.8 | D85: 5868342.19 | E85: 4290 | F85: 10467608.74 | G85: 7653 | H85: 1477835.4 | I85: 1080 | J85: 2572761.57 | K85: 1881 | L85: 20386547.9 | M85: 14905
A86: 80 | B86: Roanoke | C86: 13715.82 | D86: 99644432.31 | E86: 7265 | F86: 84782399.36 | G86: 6181 | H86: 18841607.68 | I86: 1374 | J86: 15288695.32 | K86: 1115 | L86: 218557134.7 | M86: 15935
A87: 81 | B87: Rockbridge | C87: 2309.58 | D87: 20599870.66 | E87: 8919 | F87: 12160049.45 | G87: 5265 | H87: 3930632.36 | I87: 1702 | J87: 4501553.24 | K87: 1949 | L87: 41192105.71 | M87: 17835
A88: 82 | B88: Rockingham | C88: 11554.51 | D88: 69375129.9 | E88: 6004 | F88: 77932979.89 | G88: 6745 | H88: 17264686.12 | I88: 1494 | J88: 14355156.79 | K88: 1242 | L88: 178927952.7 | M88: 15486
A89: 83 | B89: Russell | C89: 3415.33 | D89: 8079234.53 | E89: 2366 | F89: 31168265.57 | G89: 9126 | H89: 4593851.46 | I89: 1345 | J89: 7869721.34 | K89: 2304 | L89: 51711072.9 | M89: 15141
A90: 84 | B90: Scott | C90: 4251.93 | D90: 11797633.95 | E90: 2775 | F90: 46390522.5 | G90: 10910 | H90: 3885890.02 | I90: 914 | J90: 8003398.56 | K90: 1882 | L90: 70077445.03 | M90: 16481
A91: 85 | B91: Shenandoah | C91: 5655.02 | D91: 32812512.33 | E91: 5802 | F91: 38215257.63 | G91: 6758 | H91: 8713701.38 | I91: 1541 | J91: 11194554.02 | K91: 1980 | L91: 90936025.36 | M91: 16081
A92: 86 | B92: Smyth | C92: 3869.45 | D92: 12911420.64 | E92: 3337 | F92: 36119918.68 | G92: 9335 | H92: 5516111.06 | I92: 1426 | J92: 12530099.43 | K92: 3238 | L92: 67077549.81 | M92: 17335
A93: 87 | B93: Southampton | C93: 2472.54 | D93: 12096466.55 | E93: 4892 | F93: 19994846.27 | G93: 8087 | H93: 3264371.78 | I93: 1320 | J93: 3713774.82 | K93: 1502 | L93: 39069459.42 | M93: 15801
A94: 88 | B94: Spotsylvania | C94: 23865.69 | D94: 139265102.3 | E94: 5835 | F94: 152930852.5 | G94: 6408 | H94: 33052930.34 | I94: 1385 | J94: 31468132.42 | K94: 1319 | L94: 356717017.6 | M94: 14947
A95: 89 | B95: Stafford | C95: 31662.95 | D95: 163413016 | E95: 5161 | F95: 206751753.6 | G95: 6530 | H95: 41058860.32 | I95: 1297 | J95: 33389600.15 | K95: 1055 | L95: 444613230 | M95: 14042
A96: 90 | B96: Surry | C96: 689.88 | D96: 12613305.32 | E96: 18283 | F96: 2538954.71 | G96: 3680 | H96: 923003.34 | I96: 1338 | J96: 2860548.83 | K96: 4146 | L96: 18935812.2 | M96: 27448
A97: 91 | B97: Sussex | C97: 1010.28 | D97: 9582629.93 | E97: 9485 | F97: 9399397.24 | G97: 9304 | H97: 1451133.32 | I97: 1436 | J97: 5036801.66 | K97: 4986 | L97: 25469962.15 | M97: 25211
A98: 92 | B98: Tazewell | C98: 5271.56 | D98: 12327601.66 | E98: 2339 | F98: 43450643.98 | G98: 8242 | H98: 7060490.68 | I98: 1339 | J98: 27850303.31 | K98: 5283 | L98: 90689039.63 | M98: 17203
A99: 93 | B99: Warren | C99: 5107.37 | D99: 29942674.74 | E99: 5863 | F99: 29004671.25 | G99: 5679 | H99: 8236772.16 | I99: 1613 | J99: 9639194.33 | K99: 1887 | L99: 76823312.48 | M99: 15042
A100: 94 | B100: Washington | C100: 6748.62 | D100: 30707807.45 | E100: 4550 | F100: 48500300.04 | G100: 7187 | H100: 9435442.04 | I100: 1398 | J100: 12428255.89 | K100: 1842 | L100: 101071805.4 | M100: 14977
A101: 95 | B101: Westmoreland | C101: 1554.5 | D101: 11927428.81 | E101: 7673 | F101: 13392381.65 | G101: 8615 | H101: 2350574.63 | I101: 1512 | J101: 3667201.23 | K101: 2359 | L101: 31337586.32 | M101: 20159
A102: 96 | B102: Wise | C102: 5815.5 | D102: 22604790.2 | E102: 3887 | F102: 40540527.42 | G102: 6971 | H102: 6641582.14 | I102: 1142 | J102: 13058467.99 | K102: 2245 | L102: 82845367.75 | M102: 14246
A103: 97 | B103: Wythe | C103: 3766.37 | D103: 19451363.86 | E103: 5164 | F103: 23859612.67 | G103: 6335 | H103: 5179688.22 | I103: 1375 | J103: 7559924.78 | K103: 2007 | L103: 56050589.53 | M103: 14882
A104: 98 | B104: York | C104: 13021.98 | D104: 70859963.87 | E104: 5442 | F104: 81691612.7 | G104: 6273 | H104: 16340826.56 | I104: 1255 | J104: 24170677.25 | K104: 1856 | L104: 193063080.4 | M104: 14826
B105: CITIES
A106: 101 | B106: Alexandria | C106: 16572.83 | D106: 266541686.8 | E106: 16083 | F106: 43610265.23 | G106: 2631 | H106: 23096056.06 | I106: 1394 | J106: 36002823.25 | K106: 2172 | L106: 369250831.3 | M106: 22280
A107: 102 | B107: Bristol | C107: 2151.45 | D107: 11244732.35 | E107: 5227 | F107: 16746303 | G107: 7784 | H107: 3268153.54 | I107: 1519 | J107: 9452778.46 | K107: 4394 | L107: 40711967.35 | M107: 18923
A108: 103 | B108: Buena Vista | C108: 831.72 | D108: 2185009.85 | E108: 2627 | F108: 8749364.92 | G108: 10520 | H108: 1194872.88 | I108: 1437 | J108: 2286518.74 | K108: 2749 | L108: 14415766.39 | M108: 17332
A109: 104 | B109: Charlottesville | C109: 4341.47 | D109: 54256299.53 | E109: 12497 | F109: 17418654.67 | G109: 4012 | H109: 6914493.96 | I109: 1593 | J109: 16647159.5 | K109: 3834 | L109: 95236607.66 | M109: 21936
A110: 106 | B110: Colonial Heights | C110: 2904.04 | D110: 23992076.49 | E110: 8262 | F110: 19205090.27 | G110: 6613 | H110: 3711607.6 | I110: 1278 | J110: 3937290.2 | K110: 1356 | L110: 50846064.56 | M110: 17509
A111: 107 | B111: Covington
A112: 108 | B112: Danville | C112: 5528.54 | D112: 32888958.22 | E112: 5949 | F112: 51235746.5 | G112: 9268 | H112: 8308084.63 | I112: 1503 | J112: 26063683.3 | K112: 4714 | L112: 118496472.7 | M112: 21434
A113: 109 | B113: Falls Church | C113: 2631.12 | D113: 53341476.34 | E113: 20273 | F113: 9258456.23 | G113: 3519 | H113: 3457469.62 | I113: 1314 | J113: 1732588.84 | K113: 658 | L113: 67789991.03 | M113: 25765
A114: 110 | B114: Fredericksburg | C114: 3489.61 | D114: 33030875.92 | E114: 9465 | F114: 18033944.87 | G114: 5168 | H114: 4841825.26 | I114: 1387 | J114: 11981173.19 | K114: 3433 | L114: 67887819.24 | M114: 19454
A115: 111 | B115: Galax | C115: 1417.03 | D115: 5547148.67 | E115: 3915 | F115: 11943400.87 | G115: 8428 | H115: 1462158.64 | I115: 1032 | J115: 3829385.54 | K115: 2702 | L115: 22782093.72 | M115: 16077
A116: 112 | B116: Hampton | C116: 19611.6 | D116: 97340527.34 | E116: 4963 | F116: 144734033.7 | G116: 7380 | H116: 24957064.98 | I116: 1273 | J116: 53715767.57 | K116: 2739 | L116: 320747393.6 | M116: 16355
A117: 113 | B117: Harrisonburg | C117: 6801.6 | D117: 36683742.59 | E117: 5393 | F117: 54691893.23 | G117: 8041 | H117: 8455384.46 | I117: 1243 | J117: 14961405.35 | K117: 2200 | L117: 114792425.6 | M117: 16877
A118: 114 | B118: Hopewell | C118: 3895.97 | D118: 13505251.83 | E118: 3466 | F118: 37011863.69 | G118: 9500 | H118: 5023482.38 | I118: 1289 | J118: 13508800.69 | K118: 3467 | L118: 69049398.59 | M118: 17723
A119: 115 | B119: Lynchburg | C119: 7667.56 | D119: 36785186.45 | E119: 4798 | F119: 56284187.53 | G119: 7341 | H119: 12951896.7 | I119: 1689 | J119: 32175497.99 | K119: 4196 | L119: 138196768.7 | M119: 18024
A120: 116 | B120: Martinsville | C120: 1813.4 | D120: 6486094.29 | E120: 3577 | F120: 18591566.5 | G120: 10252 | H120: 2658574.06 | I120: 1466 | J120: 8288785.99 | K120: 4571 | L120: 36025020.84 | M120: 19866
A121: 117 | B121: Newport News | C121: 26035.99 | D121: 132157760.2 | E121: 5076 | F121: 225045384.7 | G121: 8644 | H121: 35642470.74 | I121: 1369 | J121: 107357802.8 | K121: 4123 | L121: 500203418.5 | M121: 19212
A122: 118 | B122: Norfolk | C122: 26846.02 | D122: 126110605.7 | E122: 4698 | F122: 210232900.2 | G122: 7831 | H122: 37371632.62 | I122: 1392 | J122: 91385385.48 | K122: 3404 | L122: 465100523.9 | M122: 17325
A123: 119 | B123: Norton | C123: 816.3 | D123: 3016093.33 | E123: 3695 | F123: 7042001.3 | G123: 8627 | H123: 889511.5 | I123: 1090 | J123: 2339763.95 | K123: 2866 | L123: 13287370.08 | M123: 16278
A124: 120 | B124: Petersburg | C124: 4500.62 | D124: 17485599.89 | E124: 3885 | F124: 40846202.26 | G124: 9076 | H124: 5097705.72 | I124: 1133 | J124: 16326024.18 | K124: 3628 | L124: 79755532.05 | M124: 17721
A125: 121 | B125: Portsmouth | C125: 12849.84 | D125: 40393984.63 | E125: 3144 | F125: 113456825.2 | G125: 8829 | H125: 18601828.72 | I125: 1448 | J125: 53489461.84 | K125: 4163 | L125: 225942100.4 | M125: 17583
A126: 122 | B126: Radford | C126: 3186.52 | D126: 9252901.49 | E126: 2904 | F126: 22271053.01 | G126: 6989 | H126: 2133017.08 | I126: 669 | J126: 2968495.76 | K126: 932 | L126: 36625467.34 | M126: 11494
A127: 123 | B127: Richmond | C127: 21180.55 | D127: 221594436.7 | E127: 10462 | F127: 133626157.2 | G127: 6309 | H127: 31282398.58 | I127: 1477 | J127: 102372911.6 | K127: 4833 | L127: 488875904 | M127: 23081
A128: 124 | B128: Roanoke | C128: 13609.98 | D128: 90315479.13 | E128: 6636 | F128: 115794969.2 | G128: 8508 | H128: 18693776.16 | I128: 1374 | J128: 41454632.6 | K128: 3046 | L128: 266258857.1 | M128: 19564
A129: 126 | B129: Staunton | C129: 2656.99 | D129: 18127785.95 | E129: 6823 | F129: 17412918.03 | G129: 6554 | H129: 4264965.88 | I129: 1605 | J129: 5246886.59 | K129: 1975 | L129: 45052556.45 | M129: 16956
A130: 127 | B130: Suffolk | C130: 14432.37 | D130: 76730543.67 | E130: 5317 | F130: 98042268.65 | G130: 6793 | H130: 20436643.18 | I130: 1416 | J130: 33542138.28 | K130: 2324 | L130: 228751593.8 | M130: 15850
A131: 128 | B131: Virginia Beach | C131: 64755.16 | D131: 481917860.7 | E131: 7442 | F131: 370547582.3 | G131: 5722 | H131: 90678102.66 | I131: 1400 | J131: 113391288.3 | K131: 1751 | L131: 1056534834 | M131: 16316
A132: 130 | B132: Waynesboro | C132: 2998.03 | D132: 24763762.89 | E132: 8260 | F132: 19107883.84 | G132: 6373 | H132: 4268595.26 | I132: 1424 | J132: 6478131.11 | K132: 2161 | L132: 54618373.1 | M132: 18218
A133: 131 | B133: Williamsburg/James CIty 6 | C133: 11572.65 | D133: 97500764.89 | E133: 8425 | F133: 55373159.77 | G133: 4785 | H133: 16366879.14 | I133: 1414 | J133: 13883554.41 | K133: 1200 | L133: 183124358.2 | M133: 15824
A134: 132 | B134: Winchester | C134: 4206.63 | D134: 35652675.46 | E134: 8475 | F134: 30206949.37 | G134: 7181 | H134: 5316792.66 | I134: 1264 | J134: 13380901.24 | K134: 3181 | L134: 84557318.73 | M134: 20101
A135: 135 | B135: Franklin | C135: 1038.85 | D135: 4534191.39 | E135: 4365 | F135: 12255915.21 | G135: 11798 | H135: 1667677.7 | I135: 1605 | J135: 3083948.52 | K135: 2969 | L135: 21541732.82 | M135: 20736
A136: 136 | B136: Chesapeake | C136: 40643.27 | D136: 271114231 | E136: 6671 | F136: 268254263.1 | G136: 6600 | H136: 56177093.5 | I136: 1382 | J136: 68964936.92 | K136: 1697 | L136: 664510524.5 | M136: 16350
A137: 137 | B137: Lexington | C137: 649.79 | D137: 4017814.84 | E137: 6183 | F137: 3896863.13 | G137: 5997 | H137: 808296.66 | I137: 1244 | J137: 493848.43 | K137: 760 | L137: 9216823.06 | M137: 14184
A138: 139 | B138: Salem | C138: 4272 | D138: 24767492.4 | E138: 5798 | F138: 27012491.86 | G138: 6323 | H138: 4600937 | I138: 1077 | J138: 5080759.91 | K138: 1189 | L138: 61461681.17 | M138: 14387
A139: 142 | B139: Poquoson | C139: 2021.54 | D139: 12571462.94 | E139: 6219 | F139: 11518212.71 | G139: 5698 | H139: 2851738.1 | I139: 1411 | J139: 1525739.68 | K139: 755 | L139: 28467153.43 | M139: 14082
A140: 143 | B140: Manassas | C140: 7519.68 | D140: 56733733.98 | E140: 7545 | F140: 63214189.56 | G140: 8406 | H140: 9571052.38 | I140: 1273 | J140: 10212074.53 | K140: 1358 | L140: 139731050.4 | M140: 18582
A141: 144 | B141: Manassas Park | C141: 3424.57 | D141: 15225801.63 | E141: 4446 | F141: 31028773.37 | G141: 9061 | H141: 4082164.44 | I141: 1192 | J141: 5021705.24 | K141: 1466 | L141: 55358444.68 | M141: 16165
B142: TOWNS
A143: 202 | B143: Colonial Beach | C143: 598.04 | D143: 2785375.76 | E143: 4658 | F143: 5801387.25 | G143: 9701 | H143: 699745.73 | I143: 1170 | J143: 1586621.16 | K143: 2653 | L143: 10873129.9 | M143: 18181
A144: 207 | B144: West Point | C144: 842.49 | D144: 5096989.56 | E144: 6050 | F144: 7011570.2 | G144: 8322 | H144: 883344.96 | I144: 1048 | J144: 602703.24 | K144: 715 | L144: 13594607.96 | M144: 16136
B146: State7 | C146: 1257959.93 | D146: 1.057024024e+10 | E146: 8403 | F146: 7664513387 | G146: 6093 | H146: 1737049862 | I146: 1381 | J146: 2213212558 | K146: 1759 | L146: 2.218501605e+10 | M146: 17636
A148: 1 Operations include regular day school, school food services, summer school, adult education, pre-kindergarten, and other education, but do not include non-regular day school programs, non-local education agency (LEA) programs, debt service, or capital outlay additions. Non-LEA programs include expenditures made by a school division for state-operated education programs (in hospitals, clinics, and detention homes) that are located within the school division and reimbursed with state funds.
A149: 2 The Average Daily Membership (ADM) calculated at the end of the school year includes the ADM of pupils served in the school division and the ADM of resident pupils for whom tuition is paid to another school division, regional special education program, or private school. It excludes students for whom the division receives tuition payments from another division or entity (i.e., out-of-state school division, Comprehensive Services Act, Interstate Compact Agreement). This figure also includes pre-kinergarten students.
A150: 3 Expenditures exclude tuition payments (revenue source code 1901010 and 1901020) received from other LEAs.
A151: 4 Sales Tax amounts are as reported on the Annual School Report and include both the one percent and one-eighth percent.
A152: 5 Support by fund source may not equal total expenditures due to rounding.
A153: 6 Data for jointly-operated school divisions (Fairfax City and Fairfax County; Emporia City and Greensville County; and Williamsburg City and James City County) is reported under the fiscal agent division only. Fairfax County, Greensville County and Williamsburg City are the fiscal agent divisions.
A154: 7 State level per pupil amounts are calculated based on statewide totals. For example: state level "local per pupil amount" = state level "local amount" divided by the state level "End-of-Year ADM for determining Cost Per Pupil".
A155: 8 State revenues for regional Alternative Education programs and Academic Year Governor's Schools are allocated to divisions according to participation, rather than as paid to the fiscal agents for these programs.
A156: End of Worksheet

Sheet Fiscal Year 2024 Worksheet
A1: SUPERINTENDENT'S ANNUAL REPORT FOR VIRGINIA | AA1: DIV NUM | AB1: DIVISION | AC1: State Expenditures | AD1: State PPA | AE1: Federal Expenditures | AF1: Federal PPA | AG1: Local Expenditures | AH1: Local PPA | AI1: Total Expenditures | AJ1: Total PPA | AK1: Check T-15 State | AL1: Check T-15 PPA State | AM1: Check T-15 Federal | AN1: Check T-15 PPA Federal | AO1: Check T-15 Local | AP1: Check T-15 PPA Local | AQ1: Check T-15 Total | AR1: Check T-15 PPA Total
A2: TABLE 15 METHODOLOGY - FISCAL YEAR 2024 Note: As of FY 2012, Table 15 contains Pre-kindergarten (Program 8) expenditures and average daily membership (ADM). | AA2: 1 | AB2: Accomack | AC2: 30493566.34 | AD2: 5846 | AE2: 6481413.6 | AF2: 1243 | AG2: 16844674.52 | AH2: 3229 | AI2: 58778173.78 | AJ2: 11269 | AK2: =VLOOKUP(AA2,'FY 2024 TABLE 15'!$A$11:$M$146,6,FALSE)-AC2 -> 7952359.46 | AL2: =VLOOKUP(AA2,'FY 2024 TABLE 15'!$A$11:$M$146,7,FALSE)-AD2 -> 2235 | AM2: =VLOOKUP(AA2,'FY 2024 TABLE 15'!$A$11:$M$146,10,FALSE)-AE2 -> 6509198.71 | AN2: =VLOOKUP(AA2,'FY 2024 TABLE 15'!$A$11:$M$146,11,FALSE)-AF2 -> 1488 | AO2: =VLOOKUP(AA2,'FY 2024 TABLE 15'!$A$11:$M$146,4,FALSE)-AG2 -> 3457235.79 | AP2: =VLOOKUP(AA2,'FY 2024 TABLE 15'!$A$11:$M$146,5,FALSE)-AH2 -> 1038 | AQ2: =VLOOKUP(AA2,'FY 2024 TABLE 15'!$A$11:$M$146,12,FALSE)-AI2 -> 18969353.24 | AR2: =VLOOKUP(AA2,'FY 2024 TABLE 15'!$A$11:$M$146,13,FALSE)-AJ2 -> 5074
AA3: 2 | AB3: Albemarle | AC3: 32557294.42 | AD3: 2359 | AE3: 10142757.87 | AF3: 735 | AG3: 128405694.4 | AH3: 9304 | AI3: 187260598.4 | AJ3: 13568 | AK3: =VLOOKUP(AA3,'FY 2024 TABLE 15'!$A$11:$M$146,6,FALSE)-AC3 -> 22279639.16 | AL3: =VLOOKUP(AA3,'FY 2024 TABLE 15'!$A$11:$M$146,7,FALSE)-AD3 -> 1603 | AM3: =VLOOKUP(AA3,'FY 2024 TABLE 15'!$A$11:$M$146,10,FALSE)-AE3 -> 4166626.4 | AN3: =VLOOKUP(AA3,'FY 2024 TABLE 15'!$A$11:$M$146,11,FALSE)-AF3 -> 299 | AO3: =VLOOKUP(AA3,'FY 2024 TABLE 15'!$A$11:$M$146,4,FALSE)-AG3 -> 77151261.7 | AP3: =VLOOKUP(AA3,'FY 2024 TABLE 15'!$A$11:$M$146,5,FALSE)-AH3 -> 5547 | AQ3: =VLOOKUP(AA3,'FY 2024 TABLE 15'!$A$11:$M$146,12,FALSE)-AI3 -> 108584243.9 | AR3: =VLOOKUP(AA3,'FY 2024 TABLE 15'!$A$11:$M$146,13,FALSE)-AJ3 -> 7807
A4: Div Num | B4: Division | AA4: 3 | AB4: Alleghany | AC4: 12484391.71 | AD4: 5708 | AE4: 1891264.04 | AF4: 865 | AG4: 9492795.83 | AH4: 4340 | AI4: 26245122.36 | AJ4: 11999 | AK4: =VLOOKUP(AA4,'FY 2024 TABLE 15'!$A$11:$M$146,6,FALSE)-AC4 -> 13082716.98 | AL4: =VLOOKUP(AA4,'FY 2024 TABLE 15'!$A$11:$M$146,7,FALSE)-AD4 -> 3443 | AM4: =VLOOKUP(AA4,'FY 2024 TABLE 15'!$A$11:$M$146,10,FALSE)-AE4 -> 3663307.39 | AN4: =VLOOKUP(AA4,'FY 2024 TABLE 15'!$A$11:$M$146,11,FALSE)-AF4 -> 1123 | AO4: =VLOOKUP(AA4,'FY 2024 TABLE 15'!$A$11:$M$146,4,FALSE)-AG4 -> 2933381.51 | AP4: =VLOOKUP(AA4,'FY 2024 TABLE 15'!$A$11:$M$146,5,FALSE)-AH4 -> 108 | AQ4: =VLOOKUP(AA4,'FY 2024 TABLE 15'!$A$11:$M$146,12,FALSE)-AI4 -> 21081240.1 | AR4: =VLOOKUP(AA4,'FY 2024 TABLE 15'!$A$11:$M$146,13,FALSE)-AJ4 -> 4940
A5: 0 | B5: <SELECT DIVISION> | AA5: 4 | AB5: Amelia | AC5: 8885775.849 | AD5: 4970 | AE5: 1355456.45 | AF5: 758 | AG5: 5774534.58 | AH5: 3230 | AI5: 18049479.3 | AJ5: 10095 | AK5: =VLOOKUP(AA5,'FY 2024 TABLE 15'!$A$11:$M$146,6,FALSE)-AC5 -> 3348100.051 | AL5: =VLOOKUP(AA5,'FY 2024 TABLE 15'!$A$11:$M$146,7,FALSE)-AD5 -> 2745 | AM5: =VLOOKUP(AA5,'FY 2024 TABLE 15'!$A$11:$M$146,10,FALSE)-AE5 -> 1417318.81 | AN5: =VLOOKUP(AA5,'FY 2024 TABLE 15'!$A$11:$M$146,11,FALSE)-AF5 -> 991 | AO5: =VLOOKUP(AA5,'FY 2024 TABLE 15'!$A$11:$M$146,4,FALSE)-AG5 -> 1085763.25 | AP5: =VLOOKUP(AA5,'FY 2024 TABLE 15'!$A$11:$M$146,5,FALSE)-AH5 -> 1096 | AQ5: =VLOOKUP(AA5,'FY 2024 TABLE 15'!$A$11:$M$146,12,FALSE)-AI5 -> 6304872.531 | AR5: =VLOOKUP(AA5,'FY 2024 TABLE 15'!$A$11:$M$146,13,FALSE)-AJ5 -> 5264
AA6: 5 | AB6: Amherst | AC6: 21622212.06 | AD6: 5263 | AE6: 3988762.95 | AF6: 971 | AG6: 15556122.09 | AH6: 3786 | AI6: 46087120.7 | AJ6: 11217 | AK6: =VLOOKUP(AA6,'FY 2024 TABLE 15'!$A$11:$M$146,6,FALSE)-AC6 -> 11800939.48 | AL6: =VLOOKUP(AA6,'FY 2024 TABLE 15'!$A$11:$M$146,7,FALSE)-AD6 -> 3256 | AM6: =VLOOKUP(AA6,'FY 2024 TABLE 15'!$A$11:$M$146,10,FALSE)-AE6 -> 2871252.09 | AN6: =VLOOKUP(AA6,'FY 2024 TABLE 15'!$A$11:$M$146,11,FALSE)-AF6 -> 778 | AO6: =VLOOKUP(AA6,'FY 2024 TABLE 15'!$A$11:$M$146,4,FALSE)-AG6 -> 910050.36 | AP6: =VLOOKUP(AA6,'FY 2024 TABLE 15'!$A$11:$M$146,5,FALSE)-AH6 -> 411 | AQ6: =VLOOKUP(AA6,'FY 2024 TABLE 15'!$A$11:$M$146,12,FALSE)-AI6 -> 16543315.75 | AR6: =VLOOKUP(AA6,'FY 2024 TABLE 15'!$A$11:$M$146,13,FALSE)-AJ6 -> 4747
AA7: 6 | AB7: Appomattox | AC7: 11833119.8 | AD7: 5151 | AE7: 1911552.79 | AF7: 832 | AG7: 6032373.02 | AH7: 2626 | AI7: 22253401.97 | AJ7: 9687 | AK7: =VLOOKUP(AA7,'FY 2024 TABLE 15'!$A$11:$M$146,6,FALSE)-AC7 -> 3578697.144 | AL7: =VLOOKUP(AA7,'FY 2024 TABLE 15'!$A$11:$M$146,7,FALSE)-AD7 -> 1423 | AM7: =VLOOKUP(AA7,'FY 2024 TABLE 15'!$A$11:$M$146,10,FALSE)-AE7 -> 1566300.55 | AN7: =VLOOKUP(AA7,'FY 2024 TABLE 15'!$A$11:$M$146,11,FALSE)-AF7 -> 652 | AO7: =VLOOKUP(AA7,'FY 2024 TABLE 15'!$A$11:$M$146,4,FALSE)-AG7 -> 4116423.49 | AP7: =VLOOKUP(AA7,'FY 2024 TABLE 15'!$A$11:$M$146,5,FALSE)-AH7 -> 1703 | AQ7: =VLOOKUP(AA7,'FY 2024 TABLE 15'!$A$11:$M$146,12,FALSE)-AI7 -> 9992242.584 | AR7: =VLOOKUP(AA7,'FY 2024 TABLE 15'!$A$11:$M$146,13,FALSE)-AJ7 -> 4069
A8: 1a. Expenditures for operations: (see cell comment) | F8: =SUM(VLOOKUP($A$5,'Source Data'!A2:P137,16,FALSE)+VLOOKUP($A$5,'Source Data'!A2:P137,15,FALSE))-F14-F16 ->  | AA8: 7 | AB8: Arlington | AC8: 42845280.42 | AD8: 1627 | AE8: 15319516.5 | AF8: 582 | AG8: 438473479.9 | AH8: 16651 | AI8: 521312686.9 | AJ8: 19797 | AK8: =VLOOKUP(AA8,'FY 2024 TABLE 15'!$A$11:$M$146,6,FALSE)-AC8 -> 26668670.71 | AL8: =VLOOKUP(AA8,'FY 2024 TABLE 15'!$A$11:$M$146,7,FALSE)-AD8 -> 868 | AM8: =VLOOKUP(AA8,'FY 2024 TABLE 15'!$A$11:$M$146,10,FALSE)-AE8 -> 8879392.31 | AN8: =VLOOKUP(AA8,'FY 2024 TABLE 15'!$A$11:$M$146,11,FALSE)-AF8 -> 287 | AO8: =VLOOKUP(AA8,'FY 2024 TABLE 15'!$A$11:$M$146,4,FALSE)-AG8 -> 161686445.5 | AP8: =VLOOKUP(AA8,'FY 2024 TABLE 15'!$A$11:$M$146,5,FALSE)-AH8 -> 4894 | AQ8: =VLOOKUP(AA8,'FY 2024 TABLE 15'!$A$11:$M$146,12,FALSE)-AI8 -> 209110380.1 | AR8: =VLOOKUP(AA8,'FY 2024 TABLE 15'!$A$11:$M$146,13,FALSE)-AJ8 -> 6424
A9: (Click here for Chart of Accounts) | AA9: 8 | AB9: Augusta | AC9: 44544375.29 | AD9: 4324 | AE9: 10152353.97 | AF9: 986 | AG9: 42920014.54 | AH9: 4167 | AI9: 109159008.5 | AJ9: 10597 | AK9: =VLOOKUP(AA9,'FY 2024 TABLE 15'!$A$11:$M$146,6,FALSE)-AC9 -> 23673359.62 | AL9: =VLOOKUP(AA9,'FY 2024 TABLE 15'!$A$11:$M$146,7,FALSE)-AD9 -> 2465 | AM9: =VLOOKUP(AA9,'FY 2024 TABLE 15'!$A$11:$M$146,10,FALSE)-AE9 -> 3564373.34 | AN9: =VLOOKUP(AA9,'FY 2024 TABLE 15'!$A$11:$M$146,11,FALSE)-AF9 -> 379 | AO9: =VLOOKUP(AA9,'FY 2024 TABLE 15'!$A$11:$M$146,4,FALSE)-AG9 -> 7842144.11 | AP9: =VLOOKUP(AA9,'FY 2024 TABLE 15'!$A$11:$M$146,5,FALSE)-AH9 -> 885 | AQ9: =VLOOKUP(AA9,'FY 2024 TABLE 15'!$A$11:$M$146,12,FALSE)-AI9 -> 38124322.25 | AR9: =VLOOKUP(AA9,'FY 2024 TABLE 15'!$A$11:$M$146,13,FALSE)-AJ9 -> 4060
A10: 1b. Less tuition from another county or city (revenue 1901010 and 1901020): | F10: =VLOOKUP($A$5,'Source Data'!A2:P137,15, FALSE) ->  | AA10: 9 | AB10: Bath | AC10: 1186959.349 | AD10: 2142 | AE10: 750005.6 | AF10: 1353 | AG10: 8474265.65 | AH10: 15292 | AI10: 11011559.82 | AJ10: 19871 | AK10: =VLOOKUP(AA10,'FY 2024 TABLE 15'!$A$11:$M$146,6,FALSE)-AC10 -> 511408.4307 | AL10: =VLOOKUP(AA10,'FY 2024 TABLE 15'!$A$11:$M$146,7,FALSE)-AD10 -> 1197 | AM10: =VLOOKUP(AA10,'FY 2024 TABLE 15'!$A$11:$M$146,10,FALSE)-AE10 -> 340336.52 | AN10: =VLOOKUP(AA10,'FY 2024 TABLE 15'!$A$11:$M$146,11,FALSE)-AF10 -> 790 | AO10: =VLOOKUP(AA10,'FY 2024 TABLE 15'!$A$11:$M$146,4,FALSE)-AG10 -> 531336.9 | AP10: =VLOOKUP(AA10,'FY 2024 TABLE 15'!$A$11:$M$146,5,FALSE)-AH10 -> 2410 | AQ10: =VLOOKUP(AA10,'FY 2024 TABLE 15'!$A$11:$M$146,12,FALSE)-AI10 -> 1434904.331 | AR10: =VLOOKUP(AA10,'FY 2024 TABLE 15'!$A$11:$M$146,13,FALSE)-AJ10 -> 4595
AA11: 10 | AB11: Bedford County/City 6 | AC11: 43384469.76 | AD11: 4488 | AE11: 7960882.1 | AF11: 824 | AG11: 37394612.03 | AH11: 3869 | AI11: 101757122.1 | AJ11: 10527 | AK11: =VLOOKUP(AA11,'FY 2024 TABLE 15'!$A$11:$M$146,6,FALSE)-AC11 -> 18983763.94 | AL11: =VLOOKUP(AA11,'FY 2024 TABLE 15'!$A$11:$M$146,7,FALSE)-AD11 -> 2469 | AM11: =VLOOKUP(AA11,'FY 2024 TABLE 15'!$A$11:$M$146,10,FALSE)-AE11 -> 2549088.1 | AN11: =VLOOKUP(AA11,'FY 2024 TABLE 15'!$A$11:$M$146,11,FALSE)-AF11 -> 348 | AO11: =VLOOKUP(AA11,'FY 2024 TABLE 15'!$A$11:$M$146,4,FALSE)-AG11 -> 5604.79 | AP11: =VLOOKUP(AA11,'FY 2024 TABLE 15'!$A$11:$M$146,5,FALSE)-AH11 -> 303 | AQ11: =VLOOKUP(AA11,'FY 2024 TABLE 15'!$A$11:$M$146,12,FALSE)-AI11 -> 23866447.85 | AR11: =VLOOKUP(AA11,'FY 2024 TABLE 15'!$A$11:$M$146,13,FALSE)-AJ11 -> 3486
A12: 1c. Plus state revenues to divisions participating in regional programs: | AA12: 11 | AB12: Bland | AC12: 4128450.809 | AD12: 5450 | AE12: 583024.53 | AF12: 770 | AG12: 2946824.8 | AH12: 3890 | AI12: 8544175.239 | AJ12: 11279 | AK12: =VLOOKUP(AA12,'FY 2024 TABLE 15'!$A$11:$M$146,6,FALSE)-AC12 -> 2311740.951 | AL12: =VLOOKUP(AA12,'FY 2024 TABLE 15'!$A$11:$M$146,7,FALSE)-AD12 -> 2594 | AM12: =VLOOKUP(AA12,'FY 2024 TABLE 15'!$A$11:$M$146,10,FALSE)-AE12 -> 438930.89 | AN12: =VLOOKUP(AA12,'FY 2024 TABLE 15'!$A$11:$M$146,11,FALSE)-AF12 -> 506 | AO12: =VLOOKUP(AA12,'FY 2024 TABLE 15'!$A$11:$M$146,4,FALSE)-AG12 -> 893174.45 | AP12: =VLOOKUP(AA12,'FY 2024 TABLE 15'!$A$11:$M$146,5,FALSE)-AH12 -> 906 | AQ12: =VLOOKUP(AA12,'FY 2024 TABLE 15'!$A$11:$M$146,12,FALSE)-AI12 -> 3626125.831 | AR12: =VLOOKUP(AA12,'FY 2024 TABLE 15'!$A$11:$M$146,13,FALSE)-AJ12 -> 3921
AA13: 12 | AB13: Botetourt | AC13: 19203349.99 | AD13: 4147 | AE13: 2254484.58 | AF13: 487 | AG13: 25585640.99 | AH13: 5525 | AI13: 52605487.28 | AJ13: 11359 | AK13: =VLOOKUP(AA13,'FY 2024 TABLE 15'!$A$11:$M$146,6,FALSE)-AC13 -> 7968034.897 | AL13: =VLOOKUP(AA13,'FY 2024 TABLE 15'!$A$11:$M$146,7,FALSE)-AD13 -> 1966 | AM13: =VLOOKUP(AA13,'FY 2024 TABLE 15'!$A$11:$M$146,10,FALSE)-AE13 -> 3659458.94 | AN13: =VLOOKUP(AA13,'FY 2024 TABLE 15'!$A$11:$M$146,11,FALSE)-AF13 -> 844 | AO13: =VLOOKUP(AA13,'FY 2024 TABLE 15'!$A$11:$M$146,4,FALSE)-AG13 -> 5712160.56 | AP13: =VLOOKUP(AA13,'FY 2024 TABLE 15'!$A$11:$M$146,5,FALSE)-AH13 -> 1517 | AQ13: =VLOOKUP(AA13,'FY 2024 TABLE 15'!$A$11:$M$146,12,FALSE)-AI13 -> 18295677.76 | AR13: =VLOOKUP(AA13,'FY 2024 TABLE 15'!$A$11:$M$146,13,FALSE)-AJ13 -> 4593
B14: Alternative Education | F14: =VLOOKUP($A$5,'Source Data'!$AI$3:$AK$138,3,FALSE) ->  | AA14: 13 | AB14: Brunswick | AC14: 11444215.89 | AD14: 6718 | AE14: 3447896.13 | AF14: 2024 | AG14: 5127260 | AH14: 3010 | AI14: 22353256.42 | AJ14: 13123 | AK14: =VLOOKUP(AA14,'FY 2024 TABLE 15'!$A$11:$M$146,6,FALSE)-AC14 -> 547772.3505 | AL14: =VLOOKUP(AA14,'FY 2024 TABLE 15'!$A$11:$M$146,7,FALSE)-AD14 -> 1999 | AM14: =VLOOKUP(AA14,'FY 2024 TABLE 15'!$A$11:$M$146,10,FALSE)-AE14 -> 1747343.87 | AN14: =VLOOKUP(AA14,'FY 2024 TABLE 15'!$A$11:$M$146,11,FALSE)-AF14 -> 1752 | AO14: =VLOOKUP(AA14,'FY 2024 TABLE 15'!$A$11:$M$146,4,FALSE)-AG14 -> 3440204.98 | AP14: =VLOOKUP(AA14,'FY 2024 TABLE 15'!$A$11:$M$146,5,FALSE)-AH14 -> 3218 | AQ14: =VLOOKUP(AA14,'FY 2024 TABLE 15'!$A$11:$M$146,12,FALSE)-AI14 -> 5729929.22 | AR14: =VLOOKUP(AA14,'FY 2024 TABLE 15'!$A$11:$M$146,13,FALSE)-AJ14 -> 7290
AA15: 14 | AB15: Buchanan | AC15: 16344026.5 | AD15: 5622 | AE15: 4048709.93 | AF15: 1393 | AG15: 9234576.94 | AH15: 3176 | AI15: 32815768.03 | AJ15: 11288 | AK15: =VLOOKUP(AA15,'FY 2024 TABLE 15'!$A$11:$M$146,6,FALSE)-AC15 -> 58197.30543 | AL15: =VLOOKUP(AA15,'FY 2024 TABLE 15'!$A$11:$M$146,7,FALSE)-AD15 -> 1333 | AM15: =VLOOKUP(AA15,'FY 2024 TABLE 15'!$A$11:$M$146,10,FALSE)-AE15 -> 4359764.14 | AN15: =VLOOKUP(AA15,'FY 2024 TABLE 15'!$A$11:$M$146,11,FALSE)-AF15 -> 2173 | AO15: =VLOOKUP(AA15,'FY 2024 TABLE 15'!$A$11:$M$146,4,FALSE)-AG15 -> 5337206.43 | AP15: =VLOOKUP(AA15,'FY 2024 TABLE 15'!$A$11:$M$146,5,FALSE)-AH15 -> 3003 | AQ15: =VLOOKUP(AA15,'FY 2024 TABLE 15'!$A$11:$M$146,12,FALSE)-AI15 -> 9891687.835 | AR15: =VLOOKUP(AA15,'FY 2024 TABLE 15'!$A$11:$M$146,13,FALSE)-AJ15 -> 6822
B16: Academic Year Governor's Schools | F16: =VLOOKUP($A$5,'Source Data'!$AI$3:$AL$138,4,FALSE) ->  | AA16: 15 | AB16: Buckingham | AC16: 10763176.64 | AD16: 5312 | AE16: 2861848.34 | AF16: 1412 | AG16: 6809195.47 | AH16: 3361 | AI16: 22748098.87 | AJ16: 11227 | AK16: =VLOOKUP(AA16,'FY 2024 TABLE 15'!$A$11:$M$146,6,FALSE)-AC16 -> 5766083.287 | AL16: =VLOOKUP(AA16,'FY 2024 TABLE 15'!$A$11:$M$146,7,FALSE)-AD16 -> 3306 | AM16: =VLOOKUP(AA16,'FY 2024 TABLE 15'!$A$11:$M$146,10,FALSE)-AE16 -> 2463139.51 | AN16: =VLOOKUP(AA16,'FY 2024 TABLE 15'!$A$11:$M$146,11,FALSE)-AF16 -> 1364 | AO16: =VLOOKUP(AA16,'FY 2024 TABLE 15'!$A$11:$M$146,4,FALSE)-AG16 -> 1940361.28 | AP16: =VLOOKUP(AA16,'FY 2024 TABLE 15'!$A$11:$M$146,5,FALSE)-AH16 -> 1201 | AQ16: =VLOOKUP(AA16,'FY 2024 TABLE 15'!$A$11:$M$146,12,FALSE)-AI16 -> 10789171.98 | AR16: =VLOOKUP(AA16,'FY 2024 TABLE 15'!$A$11:$M$146,13,FALSE)-AJ16 -> 6259
AA17: 16 | AB17: Campbell | AC17: 36511359.6 | AD17: 4588 | AE17: 5832127.42 | AF17: 733 | AG17: 28140257.64 | AH17: 3536 | AI17: 79345499.76 | AJ17: 9971 | AK17: =VLOOKUP(AA17,'FY 2024 TABLE 15'!$A$11:$M$146,6,FALSE)-AC17 -> 18196771.35 | AL17: =VLOOKUP(AA17,'FY 2024 TABLE 15'!$A$11:$M$146,7,FALSE)-AD17 -> 2400 | AM17: =VLOOKUP(AA17,'FY 2024 TABLE 15'!$A$11:$M$146,10,FALSE)-AE17 -> 5736268.74 | AN17: =VLOOKUP(AA17,'FY 2024 TABLE 15'!$A$11:$M$146,11,FALSE)-AF17 -> 745 | AO17: =VLOOKUP(AA17,'FY 2024 TABLE 15'!$A$11:$M$146,4,FALSE)-AG17 -> 4153996.78 | AP17: =VLOOKUP(AA17,'FY 2024 TABLE 15'!$A$11:$M$146,5,FALSE)-AH17 -> 589 | AQ17: =VLOOKUP(AA17,'FY 2024 TABLE 15'!$A$11:$M$146,12,FALSE)-AI17 -> 29911390.71 | AR17: =VLOOKUP(AA17,'FY 2024 TABLE 15'!$A$11:$M$146,13,FALSE)-AJ17 -> 3984
A18: 1d. Total expenditures for operations: | H18: =SUM(F8-F10)+F14+F16 ->  | I18: =VLOOKUP($A$5, 'FY 2024 TABLE 15'!A11:M146, 12, FALSE) ->  | J18: =IF(H18=I18, "OK", "???") ->  | AA18: 17 | AB18: Caroline | AC18: 20200900.29 | AD18: 4875 | AE18: 2710551.99 | AF18: 654 | AG18: 14901571.99 | AH18: 3596 | AI18: 42725096.15 | AJ18: 10311 | AK18: =VLOOKUP(AA18,'FY 2024 TABLE 15'!$A$11:$M$146,6,FALSE)-AC18 -> 8527402.536 | AL18: =VLOOKUP(AA18,'FY 2024 TABLE 15'!$A$11:$M$146,7,FALSE)-AD18 -> 1463 | AM18: =VLOOKUP(AA18,'FY 2024 TABLE 15'!$A$11:$M$146,10,FALSE)-AE18 -> 6111105.39 | AN18: =VLOOKUP(AA18,'FY 2024 TABLE 15'!$A$11:$M$146,11,FALSE)-AF18 -> 1292 | AO18: =VLOOKUP(AA18,'FY 2024 TABLE 15'!$A$11:$M$146,4,FALSE)-AG18 -> 4609904.22 | AP18: =VLOOKUP(AA18,'FY 2024 TABLE 15'!$A$11:$M$146,5,FALSE)-AH18 -> 708 | AQ18: =VLOOKUP(AA18,'FY 2024 TABLE 15'!$A$11:$M$146,12,FALSE)-AI18 -> 20888402.97 | AR18: =VLOOKUP(AA18,'FY 2024 TABLE 15'!$A$11:$M$146,13,FALSE)-AJ18 -> 3723
AA19: 18 | AB19: Carroll | AC19: 21232060.22 | AD19: 5567 | AE19: 4390794.76 | AF19: 1151 | AG19: 13152665.24 | AH19: 3449 | AI19: 43217092.76 | AJ19: 11332 | AK19: =VLOOKUP(AA19,'FY 2024 TABLE 15'!$A$11:$M$146,6,FALSE)-AC19 -> 7345324.296 | AL19: =VLOOKUP(AA19,'FY 2024 TABLE 15'!$A$11:$M$146,7,FALSE)-AD19 -> 2767 | AM19: =VLOOKUP(AA19,'FY 2024 TABLE 15'!$A$11:$M$146,10,FALSE)-AE19 -> 11519449.96 | AN19: =VLOOKUP(AA19,'FY 2024 TABLE 15'!$A$11:$M$146,11,FALSE)-AF19 -> 3489 | AO19: =VLOOKUP(AA19,'FY 2024 TABLE 15'!$A$11:$M$146,4,FALSE)-AG19 -> 854362.75 | AP19: =VLOOKUP(AA19,'FY 2024 TABLE 15'!$A$11:$M$146,5,FALSE)-AH19 -> 636 | AQ19: =VLOOKUP(AA19,'FY 2024 TABLE 15'!$A$11:$M$146,12,FALSE)-AI19 -> 20294486.57 | AR19: =VLOOKUP(AA19,'FY 2024 TABLE 15'!$A$11:$M$146,13,FALSE)-AJ19 -> 7191
A20: 2a. Less State Revenues: (see cell comment) | F20: =SUM(VLOOKUP($A$5,'Source Data'!A2:P137,2,FALSE)-VLOOKUP($A$5,'Source Data'!A2:P137,6,FALSE))-F26-F28 ->  | AA20: 19 | AB20: Charles City | AC20: 3140828.666 | AD20: 4690 | AE20: 1137471.43 | AF20: 1699 | AG20: 5312950.03 | AH20: 7933 | AI20: 10508680.87 | AJ20: 15692 | AK20: =VLOOKUP(AA20,'FY 2024 TABLE 15'!$A$11:$M$146,6,FALSE)-AC20 -> 121303.8942 | AL20: =VLOOKUP(AA20,'FY 2024 TABLE 15'!$A$11:$M$146,7,FALSE)-AD20 -> 1511 | AM20: =VLOOKUP(AA20,'FY 2024 TABLE 15'!$A$11:$M$146,10,FALSE)-AE20 -> 838805.33 | AN20: =VLOOKUP(AA20,'FY 2024 TABLE 15'!$A$11:$M$146,11,FALSE)-AF20 -> 2058 | AO20: =VLOOKUP(AA20,'FY 2024 TABLE 15'!$A$11:$M$146,4,FALSE)-AG20 -> 1918582.8 | AP20: =VLOOKUP(AA20,'FY 2024 TABLE 15'!$A$11:$M$146,5,FALSE)-AH20 -> 5814 | AQ20: =VLOOKUP(AA20,'FY 2024 TABLE 15'!$A$11:$M$146,12,FALSE)-AI20 -> 2887121.104 | AR20: =VLOOKUP(AA20,'FY 2024 TABLE 15'!$A$11:$M$146,13,FALSE)-AJ20 -> 9773
AA21: 20 | AB21: Charlotte | AC21: 15410322.18 | AD21: 8071 | AE21: 2269396.43 | AF21: 1189 | AG21: 3975363.91 | AH21: 2082 | AI21: 23718660.58 | AJ21: 12423 | AK21: =VLOOKUP(AA21,'FY 2024 TABLE 15'!$A$11:$M$146,6,FALSE)-AC21 -> 465013.3192 | AL21: =VLOOKUP(AA21,'FY 2024 TABLE 15'!$A$11:$M$146,7,FALSE)-AD21 -> 1333 | AM21: =VLOOKUP(AA21,'FY 2024 TABLE 15'!$A$11:$M$146,10,FALSE)-AE21 -> 2590903.02 | AN21: =VLOOKUP(AA21,'FY 2024 TABLE 15'!$A$11:$M$146,11,FALSE)-AF21 -> 1690 | AO21: =VLOOKUP(AA21,'FY 2024 TABLE 15'!$A$11:$M$146,4,FALSE)-AG21 -> 1453816.19 | AP21: =VLOOKUP(AA21,'FY 2024 TABLE 15'!$A$11:$M$146,5,FALSE)-AH21 -> 1134 | AQ21: =VLOOKUP(AA21,'FY 2024 TABLE 15'!$A$11:$M$146,12,FALSE)-AI21 -> 4675207.069 | AR21: =VLOOKUP(AA21,'FY 2024 TABLE 15'!$A$11:$M$146,13,FALSE)-AJ21 -> 4397
A22: 2b. Plus the sum of all Beginning-Year Balances from State funds: | F22: =VLOOKUP($A$5,'Source Data'!A2:P137,3, FALSE) ->  | AA22: 21 | AB22: Chesterfield | AC22: 253483336.9 | AD22: 4210 | AE22: 36425574.75 | AF22: 605 | AG22: 243653191 | AH22: 4046 | AI22: 595613357.3 | AJ22: 9892 | AK22: =VLOOKUP(AA22,'FY 2024 TABLE 15'!$A$11:$M$146,6,FALSE)-AC22 -> 149872958.6 | AL22: =VLOOKUP(AA22,'FY 2024 TABLE 15'!$A$11:$M$146,7,FALSE)-AD22 -> 2124 | AM22: =VLOOKUP(AA22,'FY 2024 TABLE 15'!$A$11:$M$146,10,FALSE)-AE22 -> 45813579.12 | AN22: =VLOOKUP(AA22,'FY 2024 TABLE 15'!$A$11:$M$146,11,FALSE)-AF22 -> 686 | AO22: =VLOOKUP(AA22,'FY 2024 TABLE 15'!$A$11:$M$146,4,FALSE)-AG22 -> 111600444.1 | AP22: =VLOOKUP(AA22,'FY 2024 TABLE 15'!$A$11:$M$146,5,FALSE)-AH22 -> 1533 | AQ22: =VLOOKUP(AA22,'FY 2024 TABLE 15'!$A$11:$M$146,12,FALSE)-AI22 -> 328430892.2 | AR22: =VLOOKUP(AA22,'FY 2024 TABLE 15'!$A$11:$M$146,13,FALSE)-AJ22 -> 4618
AA23: 22 | AB23: Clarke | AC23: 6430364.349 | AD23: 3212 | AE23: 1146112.44 | AF23: 573 | AG23: 13377174.24 | AH23: 6682 | AI23: 23283260.13 | AJ23: 11631 | AK23: =VLOOKUP(AA23,'FY 2024 TABLE 15'!$A$11:$M$146,6,FALSE)-AC23 -> 1740878.421 | AL23: =VLOOKUP(AA23,'FY 2024 TABLE 15'!$A$11:$M$146,7,FALSE)-AD23 -> 1042 | AM23: =VLOOKUP(AA23,'FY 2024 TABLE 15'!$A$11:$M$146,10,FALSE)-AE23 -> 809205.99 | AN23: =VLOOKUP(AA23,'FY 2024 TABLE 15'!$A$11:$M$146,11,FALSE)-AF23 -> 445 | AO23: =VLOOKUP(AA23,'FY 2024 TABLE 15'!$A$11:$M$146,4,FALSE)-AG23 -> 2719342.48 | AP23: =VLOOKUP(AA23,'FY 2024 TABLE 15'!$A$11:$M$146,5,FALSE)-AH23 -> 1697 | AQ23: =VLOOKUP(AA23,'FY 2024 TABLE 15'!$A$11:$M$146,12,FALSE)-AI23 -> 5847791.071 | AR23: =VLOOKUP(AA23,'FY 2024 TABLE 15'!$A$11:$M$146,13,FALSE)-AJ23 -> 3534
A24: 2c. Plus state revenues to divisions participating in regional programs: | AA24: 23 | AB24: Craig | AC24: 3675067.296 | AD24: 5985 | AE24: 697446.8 | AF24: 1136 | AG24: 1845916.66 | AH24: 3006 | AI24: 7028651.816 | AJ24: 11446 | AK24: =VLOOKUP(AA24,'FY 2024 TABLE 15'!$A$11:$M$146,6,FALSE)-AC24 -> 227829.0341 | AL24: =VLOOKUP(AA24,'FY 2024 TABLE 15'!$A$11:$M$146,7,FALSE)-AD24 -> 2350 | AM24: =VLOOKUP(AA24,'FY 2024 TABLE 15'!$A$11:$M$146,10,FALSE)-AE24 -> 232140.92 | AN24: =VLOOKUP(AA24,'FY 2024 TABLE 15'!$A$11:$M$146,11,FALSE)-AF24 -> 849 | AO24: =VLOOKUP(AA24,'FY 2024 TABLE 15'!$A$11:$M$146,4,FALSE)-AG24 -> 846921.46 | AP24: =VLOOKUP(AA24,'FY 2024 TABLE 15'!$A$11:$M$146,5,FALSE)-AH24 -> 2745 | AQ24: =VLOOKUP(AA24,'FY 2024 TABLE 15'!$A$11:$M$146,12,FALSE)-AI24 -> 1370457.574 | AR24: =VLOOKUP(AA24,'FY 2024 TABLE 15'!$A$11:$M$146,13,FALSE)-AJ24 -> 6492
AA25: 24 | AB25: Culpeper | AC25: 35756332.52 | AD25: 4392 | AE25: 5710338.14 | AF25: 701 | AG25: 31476857.79 | AH25: 3866 | AI25: 82003152.27 | AJ25: 10072 | AK25: =VLOOKUP(AA25,'FY 2024 TABLE 15'!$A$11:$M$146,6,FALSE)-AC25 -> 15834659.58 | AL25: =VLOOKUP(AA25,'FY 2024 TABLE 15'!$A$11:$M$146,7,FALSE)-AD25 -> 1778 | AM25: =VLOOKUP(AA25,'FY 2024 TABLE 15'!$A$11:$M$146,10,FALSE)-AE25 -> 4264891.61 | AN25: =VLOOKUP(AA25,'FY 2024 TABLE 15'!$A$11:$M$146,11,FALSE)-AF25 -> 492 | AO25: =VLOOKUP(AA25,'FY 2024 TABLE 15'!$A$11:$M$146,4,FALSE)-AG25 -> 9640366.57 | AP25: =VLOOKUP(AA25,'FY 2024 TABLE 15'!$A$11:$M$146,5,FALSE)-AH25 -> 1051 | AQ25: =VLOOKUP(AA25,'FY 2024 TABLE 15'!$A$11:$M$146,12,FALSE)-AI25 -> 32711826.16 | AR25: =VLOOKUP(AA25,'FY 2024 TABLE 15'!$A$11:$M$146,13,FALSE)-AJ25 -> 3647
B26: Alternative Education | F26: =VLOOKUP($A$5,'Source Data'!$AI$3:$AK$138,3,FALSE) ->  | AA26: 25 | AB26: Cumberland | AC26: 8437451.216 | AD26: 6256 | AE26: 1746157.08 | AF26: 1295 | AG26: 3419428.26 | AH26: 2535 | AI26: 15201633.98 | AJ26: 11272 | AK26: =VLOOKUP(AA26,'FY 2024 TABLE 15'!$A$11:$M$146,6,FALSE)-AC26 -> 3228934.154 | AL26: =VLOOKUP(AA26,'FY 2024 TABLE 15'!$A$11:$M$146,7,FALSE)-AD26 -> 3153 | AM26: =VLOOKUP(AA26,'FY 2024 TABLE 15'!$A$11:$M$146,10,FALSE)-AE26 -> 2123626.29 | AN26: =VLOOKUP(AA26,'FY 2024 TABLE 15'!$A$11:$M$146,11,FALSE)-AF26 -> 1826 | AO26: =VLOOKUP(AA26,'FY 2024 TABLE 15'!$A$11:$M$146,4,FALSE)-AG26 -> 2215553.01 | AP26: =VLOOKUP(AA26,'FY 2024 TABLE 15'!$A$11:$M$146,5,FALSE)-AH26 -> 2010 | AQ26: =VLOOKUP(AA26,'FY 2024 TABLE 15'!$A$11:$M$146,12,FALSE)-AI26 -> 7759217.334 | AR26: =VLOOKUP(AA26,'FY 2024 TABLE 15'!$A$11:$M$146,13,FALSE)-AJ26 -> 7246
AA27: 26 | AB27: Dickenson | AC27: 13097899.08 | AD27: 6059 | AE27: 2115623.85 | AF27: 979 | AG27: 5826275.53 | AH27: 2695 | AI27: 23437483.7 | AJ27: 10841 | AK27: =VLOOKUP(AA27,'FY 2024 TABLE 15'!$A$11:$M$146,6,FALSE)-AC27 -> 5315696.54 | AL27: =VLOOKUP(AA27,'FY 2024 TABLE 15'!$A$11:$M$146,7,FALSE)-AD27 -> 3832 | AM27: =VLOOKUP(AA27,'FY 2024 TABLE 15'!$A$11:$M$146,10,FALSE)-AE27 -> 4075965.15 | AN27: =VLOOKUP(AA27,'FY 2024 TABLE 15'!$A$11:$M$146,11,FALSE)-AF27 -> 2347 | AO27: =VLOOKUP(AA27,'FY 2024 TABLE 15'!$A$11:$M$146,4,FALSE)-AG27 -> -2093289.75 | AP27: =VLOOKUP(AA27,'FY 2024 TABLE 15'!$A$11:$M$146,5,FALSE)-AH27 -> -690 | AQ27: =VLOOKUP(AA27,'FY 2024 TABLE 15'!$A$11:$M$146,12,FALSE)-AI27 -> 7477877.52 | AR27: =VLOOKUP(AA27,'FY 2024 TABLE 15'!$A$11:$M$146,13,FALSE)-AJ27 -> 5765
B28: Academic Year Governor's Schools | F28: =VLOOKUP($A$5,'Source Data'!$AI$3:$AL$138,4,FALSE) ->  | AA28: 27 | AB28: Dinwiddie | AC28: 22978123.26 | AD28: 5306 | AE28: 3378804.69 | AF28: 780 | AG28: 14811498.7 | AH28: 3420 | AI28: 45769912.13 | AJ28: 10569 | AK28: =VLOOKUP(AA28,'FY 2024 TABLE 15'!$A$11:$M$146,6,FALSE)-AC28 -> 11716043.86 | AL28: =VLOOKUP(AA28,'FY 2024 TABLE 15'!$A$11:$M$146,7,FALSE)-AD28 -> 2894 | AM28: =VLOOKUP(AA28,'FY 2024 TABLE 15'!$A$11:$M$146,10,FALSE)-AE28 -> 6544615.75 | AN28: =VLOOKUP(AA28,'FY 2024 TABLE 15'!$A$11:$M$146,11,FALSE)-AF28 -> 1566 | AO28: =VLOOKUP(AA28,'FY 2024 TABLE 15'!$A$11:$M$146,4,FALSE)-AG28 -> 3680435.94 | AP28: =VLOOKUP(AA28,'FY 2024 TABLE 15'!$A$11:$M$146,5,FALSE)-AH28 -> 951 | AQ28: =VLOOKUP(AA28,'FY 2024 TABLE 15'!$A$11:$M$146,12,FALSE)-AI28 -> 22935256.35 | AR28: =VLOOKUP(AA28,'FY 2024 TABLE 15'!$A$11:$M$146,13,FALSE)-AJ28 -> 5670
AA29: 28 | AB29: Essex | AC29: 6458458.118 | AD29: 4604 | AE29: 1572821.01 | AF29: 1121 | AG29: 7766353.1 | AH29: 5537 | AI29: 17475398.03 | AJ29: 12458 | AK29: =VLOOKUP(AA29,'FY 2024 TABLE 15'!$A$11:$M$146,6,FALSE)-AC29 -> 2049374.122 | AL29: =VLOOKUP(AA29,'FY 2024 TABLE 15'!$A$11:$M$146,7,FALSE)-AD29 -> 2956 | AM29: =VLOOKUP(AA29,'FY 2024 TABLE 15'!$A$11:$M$146,10,FALSE)-AE29 -> 1597811.95 | AN29: =VLOOKUP(AA29,'FY 2024 TABLE 15'!$A$11:$M$146,11,FALSE)-AF29 -> 1696 | AO29: =VLOOKUP(AA29,'FY 2024 TABLE 15'!$A$11:$M$146,4,FALSE)-AG29 -> -261965.61 | AP29: =VLOOKUP(AA29,'FY 2024 TABLE 15'!$A$11:$M$146,5,FALSE)-AH29 -> 1131 | AQ29: =VLOOKUP(AA29,'FY 2024 TABLE 15'!$A$11:$M$146,12,FALSE)-AI29 -> 3536015.882 | AR29: =VLOOKUP(AA29,'FY 2024 TABLE 15'!$A$11:$M$146,13,FALSE)-AJ29 -> 6213
A30: 2d. Less the sum of all End-Of-Year Balances from State funds: | F30: =VLOOKUP($A$5,'Source Data'!A2:P137,4, FALSE) ->  | AA30: 29 | AB30: Fairfax County/City6 | AC30: 434981226 | AD30: 2321 | AE30: 121706702.3 | AF30: 649 | AG30: 2040017091 | AH30: 10883 | AI30: 2792362635 | AJ30: 14897 | AK30: =VLOOKUP(AA30,'FY 2024 TABLE 15'!$A$11:$M$146,6,FALSE)-AC30 -> 298181220.8 | AL30: =VLOOKUP(AA30,'FY 2024 TABLE 15'!$A$11:$M$146,7,FALSE)-AD30 -> 1735 | AM30: =VLOOKUP(AA30,'FY 2024 TABLE 15'!$A$11:$M$146,10,FALSE)-AE30 -> 113902988.2 | AN30: =VLOOKUP(AA30,'FY 2024 TABLE 15'!$A$11:$M$146,11,FALSE)-AF30 -> 655 | AO30: =VLOOKUP(AA30,'FY 2024 TABLE 15'!$A$11:$M$146,4,FALSE)-AG30 -> 476146058.9 | AP30: =VLOOKUP(AA30,'FY 2024 TABLE 15'!$A$11:$M$146,5,FALSE)-AH30 -> 3038 | AQ30: =VLOOKUP(AA30,'FY 2024 TABLE 15'!$A$11:$M$146,12,FALSE)-AI30 -> 940989709.8 | AR30: =VLOOKUP(AA30,'FY 2024 TABLE 15'!$A$11:$M$146,13,FALSE)-AJ30 -> 5758
AA31: 30 | AB31: Fauquier | AC31: 32413433.15 | AD31: 2941 | AE31: 5411069.43 | AF31: 491 | AG31: 88249815.41 | AH31: 8007 | AI31: 138512448 | AJ31: 12567 | AK31: =VLOOKUP(AA31,'FY 2024 TABLE 15'!$A$11:$M$146,6,FALSE)-AC31 -> 17729355.66 | AL31: =VLOOKUP(AA31,'FY 2024 TABLE 15'!$A$11:$M$146,7,FALSE)-AD31 -> 1700 | AM31: =VLOOKUP(AA31,'FY 2024 TABLE 15'!$A$11:$M$146,10,FALSE)-AE31 -> 6450348.36 | AN31: =VLOOKUP(AA31,'FY 2024 TABLE 15'!$A$11:$M$146,11,FALSE)-AF31 -> 607 | AO31: =VLOOKUP(AA31,'FY 2024 TABLE 15'!$A$11:$M$146,4,FALSE)-AG31 -> 10196156.87 | AP31: =VLOOKUP(AA31,'FY 2024 TABLE 15'!$A$11:$M$146,5,FALSE)-AH31 -> 1104 | AQ31: =VLOOKUP(AA31,'FY 2024 TABLE 15'!$A$11:$M$146,12,FALSE)-AI31 -> 38168442.15 | AR31: =VLOOKUP(AA31,'FY 2024 TABLE 15'!$A$11:$M$146,13,FALSE)-AJ31 -> 3784
A32: 2e. Less total State funds used for capital expenditures and | AA32: 31 | AB32: Floyd | AC32: 9518506.5 | AD32: 4634 | AE32: 1775173.4 | AF32: 864 | AG32: 7355488.73 | AH32: 3581 | AI32: 21074985.31 | AJ32: 10260 | AK32: =VLOOKUP(AA32,'FY 2024 TABLE 15'!$A$11:$M$146,6,FALSE)-AC32 -> 3177915.28 | AL32: =VLOOKUP(AA32,'FY 2024 TABLE 15'!$A$11:$M$146,7,FALSE)-AD32 -> 2813 | AM32: =VLOOKUP(AA32,'FY 2024 TABLE 15'!$A$11:$M$146,10,FALSE)-AE32 -> 1267103.64 | AN32: =VLOOKUP(AA32,'FY 2024 TABLE 15'!$A$11:$M$146,11,FALSE)-AF32 -> 920 | AO32: =VLOOKUP(AA32,'FY 2024 TABLE 15'!$A$11:$M$146,4,FALSE)-AG32 -> 14049.72 | AP32: =VLOOKUP(AA32,'FY 2024 TABLE 15'!$A$11:$M$146,5,FALSE)-AH32 -> 742 | AQ32: =VLOOKUP(AA32,'FY 2024 TABLE 15'!$A$11:$M$146,12,FALSE)-AI32 -> 4834721.82 | AR32: =VLOOKUP(AA32,'FY 2024 TABLE 15'!$A$11:$M$146,13,FALSE)-AJ32 -> 4938
A33: Debt Service (Schedule G of ASRFIN): | F33: =VLOOKUP($A$5,'Source Data'!A2:P137,5, FALSE) ->  | AA33: 32 | AB33: Fluvanna | AC33: 15797122.89 | AD33: 4441 | AE33: 1904162.99 | AF33: 535 | AG33: 15631264.51 | AH33: 4395 | AI33: 37552319.99 | AJ33: 10558 | AK33: =VLOOKUP(AA33,'FY 2024 TABLE 15'!$A$11:$M$146,6,FALSE)-AC33 -> 6891895.656 | AL33: =VLOOKUP(AA33,'FY 2024 TABLE 15'!$A$11:$M$146,7,FALSE)-AD33 -> 2334 | AM33: =VLOOKUP(AA33,'FY 2024 TABLE 15'!$A$11:$M$146,10,FALSE)-AE33 -> 2517482.12 | AN33: =VLOOKUP(AA33,'FY 2024 TABLE 15'!$A$11:$M$146,11,FALSE)-AF33 -> 785 | AO33: =VLOOKUP(AA33,'FY 2024 TABLE 15'!$A$11:$M$146,4,FALSE)-AG33 -> 5400391.6 | AP33: =VLOOKUP(AA33,'FY 2024 TABLE 15'!$A$11:$M$146,5,FALSE)-AH33 -> 1885 | AQ33: =VLOOKUP(AA33,'FY 2024 TABLE 15'!$A$11:$M$146,12,FALSE)-AI33 -> 15664678.9 | AR33: =VLOOKUP(AA33,'FY 2024 TABLE 15'!$A$11:$M$146,13,FALSE)-AJ33 -> 5332
AA34: 33 | AB34: Franklin | AC34: 32417948.53 | AD34: 4450 | AE34: 7021754.76 | AF34: 964 | AG34: 34086578.51 | AH34: 4679 | AI34: 82025946.7 | AJ34: 11260 | AK34: =VLOOKUP(AA34,'FY 2024 TABLE 15'!$A$11:$M$146,6,FALSE)-AC34 -> 10097319.76 | AL34: =VLOOKUP(AA34,'FY 2024 TABLE 15'!$A$11:$M$146,7,FALSE)-AD34 -> 2534 | AM34: =VLOOKUP(AA34,'FY 2024 TABLE 15'!$A$11:$M$146,10,FALSE)-AE34 -> 8028740.18 | AN34: =VLOOKUP(AA34,'FY 2024 TABLE 15'!$A$11:$M$146,11,FALSE)-AF34 -> 1509 | AO34: =VLOOKUP(AA34,'FY 2024 TABLE 15'!$A$11:$M$146,4,FALSE)-AG34 -> 2563807.47 | AP34: =VLOOKUP(AA34,'FY 2024 TABLE 15'!$A$11:$M$146,5,FALSE)-AH34 -> 1342 | AQ34: =VLOOKUP(AA34,'FY 2024 TABLE 15'!$A$11:$M$146,12,FALSE)-AI34 -> 21803974.01 | AR34: =VLOOKUP(AA34,'FY 2024 TABLE 15'!$A$11:$M$146,13,FALSE)-AJ34 -> 5797
A35: 2f. Total State Expenditures for Operations: | F35: =F20+F22+F26+F28-F30-F33 ->  | AA35: 34 | AB35: Frederick | AC35: 57317156.64 | AD35: 4310 | AE35: 7443766.62 | AF35: 560 | AG35: 77904212.5 | AH35: 5858 | AI35: 157226122.6 | AJ35: 11823 | AK35: =VLOOKUP(AA35,'FY 2024 TABLE 15'!$A$11:$M$146,6,FALSE)-AC35 -> 27919627.12 | AL35: =VLOOKUP(AA35,'FY 2024 TABLE 15'!$A$11:$M$146,7,FALSE)-AD35 -> 1663 | AM35: =VLOOKUP(AA35,'FY 2024 TABLE 15'!$A$11:$M$146,10,FALSE)-AE35 -> 6249268.24 | AN35: =VLOOKUP(AA35,'FY 2024 TABLE 15'!$A$11:$M$146,11,FALSE)-AF35 -> 400 | AO35: =VLOOKUP(AA35,'FY 2024 TABLE 15'!$A$11:$M$146,4,FALSE)-AG35 -> 27438429.96 | AP35: =VLOOKUP(AA35,'FY 2024 TABLE 15'!$A$11:$M$146,5,FALSE)-AH35 -> 1525 | AQ35: =VLOOKUP(AA35,'FY 2024 TABLE 15'!$A$11:$M$146,12,FALSE)-AI35 -> 67292099.24 | AR35: =VLOOKUP(AA35,'FY 2024 TABLE 15'!$A$11:$M$146,13,FALSE)-AJ35 -> 3911
AA36: 35 | AB36: Giles | AC36: 12138052.16 | AD36: 4930 | AE36: 2603625.78 | AF36: 1057 | AG36: 7840386.54 | AH36: 3184 | AI36: 25308861.22 | AJ36: 10279 | AK36: =VLOOKUP(AA36,'FY 2024 TABLE 15'!$A$11:$M$146,6,FALSE)-AC36 -> 16476036.01 | AL36: =VLOOKUP(AA36,'FY 2024 TABLE 15'!$A$11:$M$146,7,FALSE)-AD36 -> 3129 | AM36: =VLOOKUP(AA36,'FY 2024 TABLE 15'!$A$11:$M$146,10,FALSE)-AE36 -> 1762154.29 | AN36: =VLOOKUP(AA36,'FY 2024 TABLE 15'!$A$11:$M$146,11,FALSE)-AF36 -> 173 | AO36: =VLOOKUP(AA36,'FY 2024 TABLE 15'!$A$11:$M$146,4,FALSE)-AG36 -> 1457174.18 | AP36: =VLOOKUP(AA36,'FY 2024 TABLE 15'!$A$11:$M$146,5,FALSE)-AH36 -> -565 | AQ36: =VLOOKUP(AA36,'FY 2024 TABLE 15'!$A$11:$M$146,12,FALSE)-AI36 -> 20119010.74 | AR36: =VLOOKUP(AA36,'FY 2024 TABLE 15'!$A$11:$M$146,13,FALSE)-AJ36 -> 2516
A37: 2g. State Per Pupil Amount: | H37: =ROUND(F35/$F$63,0) ->  | I37: =VLOOKUP($A$5, 'FY 2024 TABLE 15'!A11:M146, 7, FALSE) ->  | J37: =IF(H37=I37, "OK", "???") ->  | AA37: 36 | AB37: Gloucester | AC37: 23994745.33 | AD37: 4371 | AE37: 3441759.72 | AF37: 627 | AG37: 25370925.02 | AH37: 4622 | AI37: 58650885.18 | AJ37: 10684 | AK37: =VLOOKUP(AA37,'FY 2024 TABLE 15'!$A$11:$M$146,6,FALSE)-AC37 -> 7307808.967 | AL37: =VLOOKUP(AA37,'FY 2024 TABLE 15'!$A$11:$M$146,7,FALSE)-AD37 -> 1967 | AM37: =VLOOKUP(AA37,'FY 2024 TABLE 15'!$A$11:$M$146,10,FALSE)-AE37 -> 3512688.39 | AN37: =VLOOKUP(AA37,'FY 2024 TABLE 15'!$A$11:$M$146,11,FALSE)-AF37 -> 781 | AO37: =VLOOKUP(AA37,'FY 2024 TABLE 15'!$A$11:$M$146,4,FALSE)-AG37 -> 10471346.04 | AP37: =VLOOKUP(AA37,'FY 2024 TABLE 15'!$A$11:$M$146,5,FALSE)-AH37 -> 2635 | AQ37: =VLOOKUP(AA37,'FY 2024 TABLE 15'!$A$11:$M$146,12,FALSE)-AI37 -> 22744214.91 | AR37: =VLOOKUP(AA37,'FY 2024 TABLE 15'!$A$11:$M$146,13,FALSE)-AJ37 -> 5797
AA38: 37 | AB38: Goochland | AC38: 3622436.917 | AD38: 1405 | AE38: 1395710.38 | AF38: 541 | AG38: 21695845.03 | AH38: 8414 | AI38: 30019576.15 | AJ38: 11643 | AK38: =VLOOKUP(AA38,'FY 2024 TABLE 15'!$A$11:$M$146,6,FALSE)-AC38 -> 2531893.933 | AL38: =VLOOKUP(AA38,'FY 2024 TABLE 15'!$A$11:$M$146,7,FALSE)-AD38 -> 977 | AM38: =VLOOKUP(AA38,'FY 2024 TABLE 15'!$A$11:$M$146,10,FALSE)-AE38 -> 1113125.99 | AN38: =VLOOKUP(AA38,'FY 2024 TABLE 15'!$A$11:$M$146,11,FALSE)-AF38 -> 430 | AO38: =VLOOKUP(AA38,'FY 2024 TABLE 15'!$A$11:$M$146,4,FALSE)-AG38 -> 7136475.61 | AP38: =VLOOKUP(AA38,'FY 2024 TABLE 15'!$A$11:$M$146,5,FALSE)-AH38 -> 2747 | AQ38: =VLOOKUP(AA38,'FY 2024 TABLE 15'!$A$11:$M$146,12,FALSE)-AI38 -> 11659314.47 | AR38: =VLOOKUP(AA38,'FY 2024 TABLE 15'!$A$11:$M$146,13,FALSE)-AJ38 -> 4491
A39: 3a. Less State Sales Tax Revenues (revenues 240308 and 240312): | F39: =VLOOKUP($A$5,'Source Data'!A2:P137,8, FALSE) ->  | AA39: 38 | AB39: Grayson | AC39: 9291124.129 | AD39: 5684 | AE39: 2411240.13 | AF39: 1475 | AG39: 6459309.9 | AH39: 3952 | AI39: 20382656.06 | AJ39: 12470 | AK39: =VLOOKUP(AA39,'FY 2024 TABLE 15'!$A$11:$M$146,6,FALSE)-AC39 -> 3273447.501 | AL39: =VLOOKUP(AA39,'FY 2024 TABLE 15'!$A$11:$M$146,7,FALSE)-AD39 -> 2334 | AM39: =VLOOKUP(AA39,'FY 2024 TABLE 15'!$A$11:$M$146,10,FALSE)-AE39 -> 2179815.67 | AN39: =VLOOKUP(AA39,'FY 2024 TABLE 15'!$A$11:$M$146,11,FALSE)-AF39 -> 1455 | AO39: =VLOOKUP(AA39,'FY 2024 TABLE 15'!$A$11:$M$146,4,FALSE)-AG39 -> 1076255.25 | AP39: =VLOOKUP(AA39,'FY 2024 TABLE 15'!$A$11:$M$146,5,FALSE)-AH39 -> 857 | AQ39: =VLOOKUP(AA39,'FY 2024 TABLE 15'!$A$11:$M$146,12,FALSE)-AI39 -> 6633226.141 | AR39: =VLOOKUP(AA39,'FY 2024 TABLE 15'!$A$11:$M$146,13,FALSE)-AJ39 -> 4771
AA40: 39 | AB40: Greene | AC40: 15148475.14 | AD40: 4809 | AE40: 2006402.28 | AF40: 637 | AG40: 12627965 | AH40: 4009 | AI40: 33233945.78 | AJ40: 10550 | AK40: =VLOOKUP(AA40,'FY 2024 TABLE 15'!$A$11:$M$146,6,FALSE)-AC40 -> 4986750.651 | AL40: =VLOOKUP(AA40,'FY 2024 TABLE 15'!$A$11:$M$146,7,FALSE)-AD40 -> 2298 | AM40: =VLOOKUP(AA40,'FY 2024 TABLE 15'!$A$11:$M$146,10,FALSE)-AE40 -> 2988631.4 | AN40: =VLOOKUP(AA40,'FY 2024 TABLE 15'!$A$11:$M$146,11,FALSE)-AF40 -> 1126 | AO40: =VLOOKUP(AA40,'FY 2024 TABLE 15'!$A$11:$M$146,4,FALSE)-AG40 -> 737775.15 | AP40: =VLOOKUP(AA40,'FY 2024 TABLE 15'!$A$11:$M$146,5,FALSE)-AH40 -> 709 | AQ40: =VLOOKUP(AA40,'FY 2024 TABLE 15'!$A$11:$M$146,12,FALSE)-AI40 -> 9735338.401 | AR40: =VLOOKUP(AA40,'FY 2024 TABLE 15'!$A$11:$M$146,13,FALSE)-AJ40 -> 4617
A41: 3b. State Sales Tax Per Pupil Amount | H41: =ROUND(F39/$F$63,0) ->  | I41: =VLOOKUP($A$5, 'FY 2024 TABLE 15'!A11:M146, 9, FALSE) ->  | J41: =IF(H41=I41, "OK", "???") ->  | AA41: 40 | AB41: Greensville/Emporia 6 | AC41: 15660627.03 | AD41: 6257 | AE41: 3289899.71 | AF41: 1314 | AG41: 5703236.96 | AH41: 2279 | AI41: 27294671.44 | AJ41: 10906 | AK41: =VLOOKUP(AA41,'FY 2024 TABLE 15'!$A$11:$M$146,6,FALSE)-AC41 -> 704784.2459 | AL41: =VLOOKUP(AA41,'FY 2024 TABLE 15'!$A$11:$M$146,7,FALSE)-AD41 -> 1777 | AM41: =VLOOKUP(AA41,'FY 2024 TABLE 15'!$A$11:$M$146,10,FALSE)-AE41 -> 6078450.87 | AN41: =VLOOKUP(AA41,'FY 2024 TABLE 15'!$A$11:$M$146,11,FALSE)-AF41 -> 3285 | AO41: =VLOOKUP(AA41,'FY 2024 TABLE 15'!$A$11:$M$146,4,FALSE)-AG41 -> 5801502.99 | AP41: =VLOOKUP(AA41,'FY 2024 TABLE 15'!$A$11:$M$146,5,FALSE)-AH41 -> 3369 | AQ41: =VLOOKUP(AA41,'FY 2024 TABLE 15'!$A$11:$M$146,12,FALSE)-AI41 -> 12708267.98 | AR41: =VLOOKUP(AA41,'FY 2024 TABLE 15'!$A$11:$M$146,13,FALSE)-AJ41 -> 8731
AA42: 41 | AB42: Halifax | AC42: 28722996.33 | AD42: 5604 | AE42: 6786712.33 | AF42: 1324 | AG42: 15414178.95 | AH42: 3007 | AI42: 56739220.09 | AJ42: 11070 | AK42: =VLOOKUP(AA42,'FY 2024 TABLE 15'!$A$11:$M$146,6,FALSE)-AC42 -> 13166148.53 | AL42: =VLOOKUP(AA42,'FY 2024 TABLE 15'!$A$11:$M$146,7,FALSE)-AD42 -> 3628 | AM42: =VLOOKUP(AA42,'FY 2024 TABLE 15'!$A$11:$M$146,10,FALSE)-AE42 -> 5838245.27 | AN42: =VLOOKUP(AA42,'FY 2024 TABLE 15'!$A$11:$M$146,11,FALSE)-AF42 -> 1459 | AO42: =VLOOKUP(AA42,'FY 2024 TABLE 15'!$A$11:$M$146,4,FALSE)-AG42 -> 665589.55 | AP42: =VLOOKUP(AA42,'FY 2024 TABLE 15'!$A$11:$M$146,5,FALSE)-AH42 -> 537 | AQ42: =VLOOKUP(AA42,'FY 2024 TABLE 15'!$A$11:$M$146,12,FALSE)-AI42 -> 20142846.13 | AR42: =VLOOKUP(AA42,'FY 2024 TABLE 15'!$A$11:$M$146,13,FALSE)-AJ42 -> 5875
A43: 4a. Less Federal Revenues: (see cell comment) | F43: =VLOOKUP($A$5,'Source Data'!A2:P137,9, FALSE) ->  | AA43: 42 | AB43: Hanover | AC43: 67951721.55 | AD43: 3767 | AE43: 9459907.79 | AF43: 524 | AG43: 84149458.82 | AH43: 4665 | AI43: 180455975 | AJ43: 10004 | AK43: =VLOOKUP(AA43,'FY 2024 TABLE 15'!$A$11:$M$146,6,FALSE)-AC43 -> 22105204.91 | AL43: =VLOOKUP(AA43,'FY 2024 TABLE 15'!$A$11:$M$146,7,FALSE)-AD43 -> 1595 | AM43: =VLOOKUP(AA43,'FY 2024 TABLE 15'!$A$11:$M$146,10,FALSE)-AE43 -> 2993391.71 | AN43: =VLOOKUP(AA43,'FY 2024 TABLE 15'!$A$11:$M$146,11,FALSE)-AF43 -> 218 | AO43: =VLOOKUP(AA43,'FY 2024 TABLE 15'!$A$11:$M$146,4,FALSE)-AG43 -> 38217292.44 | AP43: =VLOOKUP(AA43,'FY 2024 TABLE 15'!$A$11:$M$146,5,FALSE)-AH43 -> 2621 | AQ43: =VLOOKUP(AA43,'FY 2024 TABLE 15'!$A$11:$M$146,12,FALSE)-AI43 -> 66160953.8 | AR43: =VLOOKUP(AA43,'FY 2024 TABLE 15'!$A$11:$M$146,13,FALSE)-AJ43 -> 4680
AA44: 43 | AB44: Henrico | AC44: 166584354 | AD44: 3252 | AE44: 44919423.94 | AF44: 877 | AG44: 235604613.3 | AH44: 4599 | AI44: 501535231.5 | AJ44: 9790 | AK44: =VLOOKUP(AA44,'FY 2024 TABLE 15'!$A$11:$M$146,6,FALSE)-AC44 -> 88994509.57 | AL44: =VLOOKUP(AA44,'FY 2024 TABLE 15'!$A$11:$M$146,7,FALSE)-AD44 -> 1817 | AM44: =VLOOKUP(AA44,'FY 2024 TABLE 15'!$A$11:$M$146,10,FALSE)-AE44 -> 32389302.41 | AN44: =VLOOKUP(AA44,'FY 2024 TABLE 15'!$A$11:$M$146,11,FALSE)-AF44 -> 656 | AO44: =VLOOKUP(AA44,'FY 2024 TABLE 15'!$A$11:$M$146,4,FALSE)-AG44 -> 106728912 | AP44: =VLOOKUP(AA44,'FY 2024 TABLE 15'!$A$11:$M$146,5,FALSE)-AH44 -> 2190 | AQ44: =VLOOKUP(AA44,'FY 2024 TABLE 15'!$A$11:$M$146,12,FALSE)-AI44 -> 252744912.4 | AR44: =VLOOKUP(AA44,'FY 2024 TABLE 15'!$A$11:$M$146,13,FALSE)-AJ44 -> 5169
A45: 4b. Plus the sum of all Beginning-Year Balances from Federal funds: | F45: =VLOOKUP($A$5,'Source Data'!A2:P137,10, FALSE) ->  | AA45: 44 | AB45: Henry | AC45: 43491470.73 | AD45: 5837 | AE45: 9672550.36 | AF45: 1298 | AG45: 14984833.34 | AH45: 2011 | AI45: 76087541.41 | AJ45: 10211 | AK45: =VLOOKUP(AA45,'FY 2024 TABLE 15'!$A$11:$M$146,6,FALSE)-AC45 -> 18864956.35 | AL45: =VLOOKUP(AA45,'FY 2024 TABLE 15'!$A$11:$M$146,7,FALSE)-AD45 -> 3177 | AM45: =VLOOKUP(AA45,'FY 2024 TABLE 15'!$A$11:$M$146,10,FALSE)-AE45 -> 6193911.56 | AN45: =VLOOKUP(AA45,'FY 2024 TABLE 15'!$A$11:$M$146,11,FALSE)-AF45 -> 996 | AO45: =VLOOKUP(AA45,'FY 2024 TABLE 15'!$A$11:$M$146,4,FALSE)-AG45 -> 2353188.69 | AP45: =VLOOKUP(AA45,'FY 2024 TABLE 15'!$A$11:$M$146,5,FALSE)-AH45 -> 495 | AQ45: =VLOOKUP(AA45,'FY 2024 TABLE 15'!$A$11:$M$146,12,FALSE)-AI45 -> 28743108.8 | AR45: =VLOOKUP(AA45,'FY 2024 TABLE 15'!$A$11:$M$146,13,FALSE)-AJ45 -> 4943
AA46: 45 | AB46: Highland | AC46: 1502165.475 | AD46: 6997 | AE46: 236408.64 | AF46: 1101 | AG46: 2190028.83 | AH46: 10201 | AI46: 4169812.785 | AJ46: 19422 | AK46: =VLOOKUP(AA46,'FY 2024 TABLE 15'!$A$11:$M$146,6,FALSE)-AC46 -> 377711.6749 | AL46: =VLOOKUP(AA46,'FY 2024 TABLE 15'!$A$11:$M$146,7,FALSE)-AD46 -> 1870 | AM46: =VLOOKUP(AA46,'FY 2024 TABLE 15'!$A$11:$M$146,10,FALSE)-AE46 -> 191990.51 | AN46: =VLOOKUP(AA46,'FY 2024 TABLE 15'!$A$11:$M$146,11,FALSE)-AF46 -> 920 | AO46: =VLOOKUP(AA46,'FY 2024 TABLE 15'!$A$11:$M$146,4,FALSE)-AG46 -> 408113.17 | AP46: =VLOOKUP(AA46,'FY 2024 TABLE 15'!$A$11:$M$146,5,FALSE)-AH46 -> 2054 | AQ46: =VLOOKUP(AA46,'FY 2024 TABLE 15'!$A$11:$M$146,12,FALSE)-AI46 -> 1025724.255 | AR46: =VLOOKUP(AA46,'FY 2024 TABLE 15'!$A$11:$M$146,13,FALSE)-AJ46 -> 5085
A47: 4c. Less the sum of all End-Of-Year Balances from Federal funds: | F47: =VLOOKUP($A$5,'Source Data'!A2:P137,11, FALSE) ->  | AA47: 46 | AB47: Isle Of Wight | AC47: 22820508.57 | AD47: 4195 | AE47: 3595749.66 | AF47: 661 | AG47: 25157730.13 | AH47: 4625 | AI47: 57626598.22 | AJ47: 10593 | AK47: =VLOOKUP(AA47,'FY 2024 TABLE 15'!$A$11:$M$146,6,FALSE)-AC47 -> 12834601.65 | AL47: =VLOOKUP(AA47,'FY 2024 TABLE 15'!$A$11:$M$146,7,FALSE)-AD47 -> 2203 | AM47: =VLOOKUP(AA47,'FY 2024 TABLE 15'!$A$11:$M$146,10,FALSE)-AE47 -> 2625877.56 | AN47: =VLOOKUP(AA47,'FY 2024 TABLE 15'!$A$11:$M$146,11,FALSE)-AF47 -> 455 | AO47: =VLOOKUP(AA47,'FY 2024 TABLE 15'!$A$11:$M$146,4,FALSE)-AG47 -> 6795303.13 | AP47: =VLOOKUP(AA47,'FY 2024 TABLE 15'!$A$11:$M$146,5,FALSE)-AH47 -> 1108 | AQ47: =VLOOKUP(AA47,'FY 2024 TABLE 15'!$A$11:$M$146,12,FALSE)-AI47 -> 24307130.14 | AR47: =VLOOKUP(AA47,'FY 2024 TABLE 15'!$A$11:$M$146,13,FALSE)-AJ47 -> 4108
AA48: 48 | AB48: King George | AC48: 18769343.57 | AD48: 4332 | AE48: 2722510.93 | AF48: 628 | AG48: 17265504 | AH48: 3985 | AI48: 43496614.64 | AJ48: 10040 | AK48: =VLOOKUP(AA48,'FY 2024 TABLE 15'!$A$11:$M$146,6,FALSE)-AC48 -> 7790493.837 | AL48: =VLOOKUP(AA48,'FY 2024 TABLE 15'!$A$11:$M$146,7,FALSE)-AD48 -> 1581 | AM48: =VLOOKUP(AA48,'FY 2024 TABLE 15'!$A$11:$M$146,10,FALSE)-AE48 -> 2345306.09 | AN48: =VLOOKUP(AA48,'FY 2024 TABLE 15'!$A$11:$M$146,11,FALSE)-AF48 -> 500 | AO48: =VLOOKUP(AA48,'FY 2024 TABLE 15'!$A$11:$M$146,4,FALSE)-AG48 -> 6799177.23 | AP48: =VLOOKUP(AA48,'FY 2024 TABLE 15'!$A$11:$M$146,5,FALSE)-AH48 -> 1372 | AQ48: =VLOOKUP(AA48,'FY 2024 TABLE 15'!$A$11:$M$146,12,FALSE)-AI48 -> 18630645.36 | AR48: =VLOOKUP(AA48,'FY 2024 TABLE 15'!$A$11:$M$146,13,FALSE)-AJ48 -> 3790
A49: 4d. Less total Federal funds used for capital expenditures (Schedule G of ASRFIN): | F49: =VLOOKUP($A$5,'Source Data'!A2:P137,12, FALSE) ->  | AA49: 49 | AB49: King & Queen | AC49: 4410160.494 | AD49: 5261 | AE49: 972321.92 | AF49: 1160 | AG49: 3990541.17 | AH49: 4760 | AI49: 10419830.68 | AJ49: 12430 | AK49: =VLOOKUP(AA49,'FY 2024 TABLE 15'!$A$11:$M$146,6,FALSE)-AC49 -> 2563024.916 | AL49: =VLOOKUP(AA49,'FY 2024 TABLE 15'!$A$11:$M$146,7,FALSE)-AD49 -> 2952 | AM49: =VLOOKUP(AA49,'FY 2024 TABLE 15'!$A$11:$M$146,10,FALSE)-AE49 -> 966732.87 | AN49: =VLOOKUP(AA49,'FY 2024 TABLE 15'!$A$11:$M$146,11,FALSE)-AF49 -> 1124 | AO49: =VLOOKUP(AA49,'FY 2024 TABLE 15'!$A$11:$M$146,4,FALSE)-AG49 -> 982653.7 | AP49: =VLOOKUP(AA49,'FY 2024 TABLE 15'!$A$11:$M$146,5,FALSE)-AH49 -> 1097 | AQ49: =VLOOKUP(AA49,'FY 2024 TABLE 15'!$A$11:$M$146,12,FALSE)-AI49 -> 4515026.506 | AR49: =VLOOKUP(AA49,'FY 2024 TABLE 15'!$A$11:$M$146,13,FALSE)-AJ49 -> 5160
AA50: 50 | AB50: King William | AC50: 11171578.96 | AD50: 5127 | AE50: 1426201.96 | AF50: 654 | AG50: 9529929 | AH50: 4373 | AI50: 24279784.92 | AJ50: 11142 | AK50: =VLOOKUP(AA50,'FY 2024 TABLE 15'!$A$11:$M$146,6,FALSE)-AC50 -> 2894925.102 | AL50: =VLOOKUP(AA50,'FY 2024 TABLE 15'!$A$11:$M$146,7,FALSE)-AD50 -> 1589 | AM50: =VLOOKUP(AA50,'FY 2024 TABLE 15'!$A$11:$M$146,10,FALSE)-AE50 -> 1610927.61 | AN50: =VLOOKUP(AA50,'FY 2024 TABLE 15'!$A$11:$M$146,11,FALSE)-AF50 -> 796 | AO50: =VLOOKUP(AA50,'FY 2024 TABLE 15'!$A$11:$M$146,4,FALSE)-AG50 -> 1332360.21 | AP50: =VLOOKUP(AA50,'FY 2024 TABLE 15'!$A$11:$M$146,5,FALSE)-AH50 -> 813 | AQ50: =VLOOKUP(AA50,'FY 2024 TABLE 15'!$A$11:$M$146,12,FALSE)-AI50 -> 6617594.842 | AR50: =VLOOKUP(AA50,'FY 2024 TABLE 15'!$A$11:$M$146,13,FALSE)-AJ50 -> 3611
A51: 4e. Total Federal Expenditures for Operations: | F51: =F43+F45-F47-F49 ->  | AA51: 51 | AB51: Lancaster | AC51: 2683580.39 | AD51: 2220 | AE51: 1420354.51 | AF51: 1175 | AG51: 10668952.1 | AH51: 8827 | AI51: 16074220.6 | AJ51: 13299 | AK51: =VLOOKUP(AA51,'FY 2024 TABLE 15'!$A$11:$M$146,6,FALSE)-AC51 -> -171820.0304 | AL51: =VLOOKUP(AA51,'FY 2024 TABLE 15'!$A$11:$M$146,7,FALSE)-AD51 -> 250 | AM51: =VLOOKUP(AA51,'FY 2024 TABLE 15'!$A$11:$M$146,10,FALSE)-AE51 -> 788545.36 | AN51: =VLOOKUP(AA51,'FY 2024 TABLE 15'!$A$11:$M$146,11,FALSE)-AF51 -> 998 | AO51: =VLOOKUP(AA51,'FY 2024 TABLE 15'!$A$11:$M$146,4,FALSE)-AG51 -> 2132460.68 | AP51: =VLOOKUP(AA51,'FY 2024 TABLE 15'!$A$11:$M$146,5,FALSE)-AH51 -> 3764 | AQ51: =VLOOKUP(AA51,'FY 2024 TABLE 15'!$A$11:$M$146,12,FALSE)-AI51 -> 2920337.87 | AR51: =VLOOKUP(AA51,'FY 2024 TABLE 15'!$A$11:$M$146,13,FALSE)-AJ51 -> 5383
AA52: 52 | AB52: Lee | AC52: 22782943.54 | AD52: 7024 | AE52: 6900436.39 | AF52: 2127 | AG52: 5378944.79 | AH52: 1658 | AI52: 38714886.84 | AJ52: 11936 | AK52: =VLOOKUP(AA52,'FY 2024 TABLE 15'!$A$11:$M$146,6,FALSE)-AC52 -> 3084863.036 | AL52: =VLOOKUP(AA52,'FY 2024 TABLE 15'!$A$11:$M$146,7,FALSE)-AD52 -> 1649 | AM52: =VLOOKUP(AA52,'FY 2024 TABLE 15'!$A$11:$M$146,10,FALSE)-AE52 -> 3288655.06 | AN52: =VLOOKUP(AA52,'FY 2024 TABLE 15'!$A$11:$M$146,11,FALSE)-AF52 -> 1289 | AO52: =VLOOKUP(AA52,'FY 2024 TABLE 15'!$A$11:$M$146,4,FALSE)-AG52 -> 5781295.6 | AP52: =VLOOKUP(AA52,'FY 2024 TABLE 15'!$A$11:$M$146,5,FALSE)-AH52 -> 2084 | AQ52: =VLOOKUP(AA52,'FY 2024 TABLE 15'!$A$11:$M$146,12,FALSE)-AI52 -> 12562182.62 | AR52: =VLOOKUP(AA52,'FY 2024 TABLE 15'!$A$11:$M$146,13,FALSE)-AJ52 -> 5256
A53: 4f. Federal Per Pupil Amount: | H53: =ROUND(F51/$F$63,0) ->  | I53: =VLOOKUP($A$5, 'FY 2024 TABLE 15'!A11:M146, 11, FALSE) ->  | J53: =IF(H53=I53, "OK", "???") ->  | AA53: 53 | AB53: Loudoun | AC53: 247079002.5 | AD53: 3125 | AE53: 23842586.88 | AF53: 302 | AG53: 783864546.4 | AH53: 9914 | AI53: 1131936740 | AJ53: 14317 | AK53: =VLOOKUP(AA53,'FY 2024 TABLE 15'!$A$11:$M$146,6,FALSE)-AC53 -> 141608167.2 | AL53: =VLOOKUP(AA53,'FY 2024 TABLE 15'!$A$11:$M$146,7,FALSE)-AD53 -> 1590 | AM53: =VLOOKUP(AA53,'FY 2024 TABLE 15'!$A$11:$M$146,10,FALSE)-AE53 -> 17853887.42 | AN53: =VLOOKUP(AA53,'FY 2024 TABLE 15'!$A$11:$M$146,11,FALSE)-AF53 -> 204 | AO53: =VLOOKUP(AA53,'FY 2024 TABLE 15'!$A$11:$M$146,4,FALSE)-AG53 -> 421921251.3 | AP53: =VLOOKUP(AA53,'FY 2024 TABLE 15'!$A$11:$M$146,5,FALSE)-AH53 -> 4712 | AQ53: =VLOOKUP(AA53,'FY 2024 TABLE 15'!$A$11:$M$146,12,FALSE)-AI53 -> 614364068.8 | AR53: =VLOOKUP(AA53,'FY 2024 TABLE 15'!$A$11:$M$146,13,FALSE)-AJ53 -> 6866
AA54: 54 | AB54: Louisa | AC54: 16123133.53 | AD54: 3363 | AE54: 3658308.5 | AF54: 763 | AG54: 29701750.98 | AH54: 6195 | AI54: 54795130.99 | AJ54: 11428 | AK54: =VLOOKUP(AA54,'FY 2024 TABLE 15'!$A$11:$M$146,6,FALSE)-AC54 -> 11577832.65 | AL54: =VLOOKUP(AA54,'FY 2024 TABLE 15'!$A$11:$M$146,7,FALSE)-AD54 -> 2031 | AM54: =VLOOKUP(AA54,'FY 2024 TABLE 15'!$A$11:$M$146,10,FALSE)-AE54 -> 9447298.06 | AN54: =VLOOKUP(AA54,'FY 2024 TABLE 15'!$A$11:$M$146,11,FALSE)-AF54 -> 1789 | AO54: =VLOOKUP(AA54,'FY 2024 TABLE 15'!$A$11:$M$146,4,FALSE)-AG54 -> 8513931.76 | AP54: =VLOOKUP(AA54,'FY 2024 TABLE 15'!$A$11:$M$146,5,FALSE)-AH54 -> 1246 | AQ54: =VLOOKUP(AA54,'FY 2024 TABLE 15'!$A$11:$M$146,12,FALSE)-AI54 -> 31470729.37 | AR54: =VLOOKUP(AA54,'FY 2024 TABLE 15'!$A$11:$M$146,13,FALSE)-AJ54 -> 5369
A55: 5a. Total Local Expenditures for Operations | F55: =H18-F35-F39-F51 ->  | AA55: 55 | AB55: Lunenburg | AC55: 9205591.026 | AD55: 5957 | AE55: 1845031.41 | AF55: 1194 | AG55: 3024319.99 | AH55: 1957 | AI55: 15876594.51 | AJ55: 10275 | AK55: =VLOOKUP(AA55,'FY 2024 TABLE 15'!$A$11:$M$146,6,FALSE)-AC55 -> 5082140.044 | AL55: =VLOOKUP(AA55,'FY 2024 TABLE 15'!$A$11:$M$146,7,FALSE)-AD55 -> 3124 | AM55: =VLOOKUP(AA55,'FY 2024 TABLE 15'!$A$11:$M$146,10,FALSE)-AE55 -> 1923688.26 | AN55: =VLOOKUP(AA55,'FY 2024 TABLE 15'!$A$11:$M$146,11,FALSE)-AF55 -> 1201 | AO55: =VLOOKUP(AA55,'FY 2024 TABLE 15'!$A$11:$M$146,4,FALSE)-AG55 -> 3444798.43 | AP55: =VLOOKUP(AA55,'FY 2024 TABLE 15'!$A$11:$M$146,5,FALSE)-AH55 -> 2155 | AQ55: =VLOOKUP(AA55,'FY 2024 TABLE 15'!$A$11:$M$146,12,FALSE)-AI55 -> 10838864.17 | AR55: =VLOOKUP(AA55,'FY 2024 TABLE 15'!$A$11:$M$146,13,FALSE)-AJ55 -> 6705
AA56: 56 | AB56: Madison | AC56: 7578059.989 | AD56: 4366 | AE56: 1404993.75 | AF56: 810 | AG56: 9190317.86 | AH56: 5295 | AI56: 20334864.72 | AJ56: 11716 | AK56: =VLOOKUP(AA56,'FY 2024 TABLE 15'!$A$11:$M$146,6,FALSE)-AC56 -> 2188146.531 | AL56: =VLOOKUP(AA56,'FY 2024 TABLE 15'!$A$11:$M$146,7,FALSE)-AD56 -> 1487 | AM56: =VLOOKUP(AA56,'FY 2024 TABLE 15'!$A$11:$M$146,10,FALSE)-AE56 -> 1481192.24 | AN56: =VLOOKUP(AA56,'FY 2024 TABLE 15'!$A$11:$M$146,11,FALSE)-AF56 -> 920 | AO56: =VLOOKUP(AA56,'FY 2024 TABLE 15'!$A$11:$M$146,4,FALSE)-AG56 -> 1219468.89 | AP56: =VLOOKUP(AA56,'FY 2024 TABLE 15'!$A$11:$M$146,5,FALSE)-AH56 -> 944 | AQ56: =VLOOKUP(AA56,'FY 2024 TABLE 15'!$A$11:$M$146,12,FALSE)-AI56 -> 5460199.701 | AR56: =VLOOKUP(AA56,'FY 2024 TABLE 15'!$A$11:$M$146,13,FALSE)-AJ56 -> 3744
A57: 5b. Local Per Pupil Amount: | H57: =ROUND(F55/$F$63,0) ->  | I57: =VLOOKUP($A$5, 'FY 2024 TABLE 15'!A11:M146, 5, FALSE) ->  | J57: =IF(H57=I57, "OK", "???") ->  | AA57: 57 | AB57: Mathews | AC57: 4255762.371 | AD57: 3943 | AE57: 949361.76 | AF57: 880 | AG57: 6966117.07 | AH57: 6455 | AI57: 13390439.52 | AJ57: 12407 | AK57: =VLOOKUP(AA57,'FY 2024 TABLE 15'!$A$11:$M$146,6,FALSE)-AC57 -> 257128.879 | AL57: =VLOOKUP(AA57,'FY 2024 TABLE 15'!$A$11:$M$146,7,FALSE)-AD57 -> 1552 | AM57: =VLOOKUP(AA57,'FY 2024 TABLE 15'!$A$11:$M$146,10,FALSE)-AE57 -> 587988.89 | AN57: =VLOOKUP(AA57,'FY 2024 TABLE 15'!$A$11:$M$146,11,FALSE)-AF57 -> 992 | AO57: =VLOOKUP(AA57,'FY 2024 TABLE 15'!$A$11:$M$146,4,FALSE)-AG57 -> 3203664.59 | AP57: =VLOOKUP(AA57,'FY 2024 TABLE 15'!$A$11:$M$146,5,FALSE)-AH57 -> 5927 | AQ57: =VLOOKUP(AA57,'FY 2024 TABLE 15'!$A$11:$M$146,12,FALSE)-AI57 -> 4111888.439 | AR57: =VLOOKUP(AA57,'FY 2024 TABLE 15'!$A$11:$M$146,13,FALSE)-AJ57 -> 8902
AA58: 58 | AB58: Mecklenburg | AC58: 21476935.86 | AD58: 4909 | AE58: 5188627.25 | AF58: 1186 | AG58: 13494053.51 | AH58: 3084 | AI58: 44766896.86 | AJ58: 10232 | AK58: =VLOOKUP(AA58,'FY 2024 TABLE 15'!$A$11:$M$146,6,FALSE)-AC58 -> 6377426.376 | AL58: =VLOOKUP(AA58,'FY 2024 TABLE 15'!$A$11:$M$146,7,FALSE)-AD58 -> 2297 | AM58: =VLOOKUP(AA58,'FY 2024 TABLE 15'!$A$11:$M$146,10,FALSE)-AE58 -> 3819781.78 | AN58: =VLOOKUP(AA58,'FY 2024 TABLE 15'!$A$11:$M$146,11,FALSE)-AF58 -> 1145 | AO58: =VLOOKUP(AA58,'FY 2024 TABLE 15'!$A$11:$M$146,4,FALSE)-AG58 -> 8783976.04 | AP58: =VLOOKUP(AA58,'FY 2024 TABLE 15'!$A$11:$M$146,5,FALSE)-AH58 -> 2680 | AQ58: =VLOOKUP(AA58,'FY 2024 TABLE 15'!$A$11:$M$146,12,FALSE)-AI58 -> 19441235.42 | AR58: =VLOOKUP(AA58,'FY 2024 TABLE 15'!$A$11:$M$146,13,FALSE)-AJ58 -> 6380
A59: 6a. Total Expenditures for Operations: | F59: =H18 ->  | AA59: 59 | AB59: Middlesex | AC59: 3386532.894 | AD59: 2787 | AE59: 1102078.19 | AF59: 907 | AG59: 7979626.03 | AH59: 6566 | AI59: 13755435.67 | AJ59: 11319 | AK59: =VLOOKUP(AA59,'FY 2024 TABLE 15'!$A$11:$M$146,6,FALSE)-AC59 -> 1795000.586 | AL59: =VLOOKUP(AA59,'FY 2024 TABLE 15'!$A$11:$M$146,7,FALSE)-AD59 -> 1479 | AM59: =VLOOKUP(AA59,'FY 2024 TABLE 15'!$A$11:$M$146,10,FALSE)-AE59 -> 1483307.64 | AN59: =VLOOKUP(AA59,'FY 2024 TABLE 15'!$A$11:$M$146,11,FALSE)-AF59 -> 1221 | AO59: =VLOOKUP(AA59,'FY 2024 TABLE 15'!$A$11:$M$146,4,FALSE)-AG59 -> 4100852.13 | AP59: =VLOOKUP(AA59,'FY 2024 TABLE 15'!$A$11:$M$146,5,FALSE)-AH59 -> 3379 | AQ59: =VLOOKUP(AA59,'FY 2024 TABLE 15'!$A$11:$M$146,12,FALSE)-AI59 -> 7556023.996 | AR59: =VLOOKUP(AA59,'FY 2024 TABLE 15'!$A$11:$M$146,13,FALSE)-AJ59 -> 6226
AA60: 60 | AB60: Montgomery | AC60: 40775336.82 | AD60: 4202 | AE60: 7684888.94 | AF60: 792 | AG60: 49981636.53 | AH60: 5150 | AI60: 109740361.9 | AJ60: 11308 | AK60: =VLOOKUP(AA60,'FY 2024 TABLE 15'!$A$11:$M$146,6,FALSE)-AC60 -> 16863884.72 | AL60: =VLOOKUP(AA60,'FY 2024 TABLE 15'!$A$11:$M$146,7,FALSE)-AD60 -> 1823 | AM60: =VLOOKUP(AA60,'FY 2024 TABLE 15'!$A$11:$M$146,10,FALSE)-AE60 -> 3155355.09 | AN60: =VLOOKUP(AA60,'FY 2024 TABLE 15'!$A$11:$M$146,11,FALSE)-AF60 -> 341 | AO60: =VLOOKUP(AA60,'FY 2024 TABLE 15'!$A$11:$M$146,4,FALSE)-AG60 -> 11100952.57 | AP60: =VLOOKUP(AA60,'FY 2024 TABLE 15'!$A$11:$M$146,5,FALSE)-AH60 -> 1235 | AQ60: =VLOOKUP(AA60,'FY 2024 TABLE 15'!$A$11:$M$146,12,FALSE)-AI60 -> 34879317.04 | AR60: =VLOOKUP(AA60,'FY 2024 TABLE 15'!$A$11:$M$146,13,FALSE)-AJ60 -> 3809
A61: 6b. Total Per Pupil Amount: | H61: =ROUND(F59/$F$63,0) ->  | I61: =VLOOKUP($A$5, 'FY 2024 TABLE 15'!A11:M146, 13, FALSE) ->  | J61: =IF(H61=I61, "OK", "???") ->  | AA61: 62 | AB61: Nelson | AC61: 6434108.688 | AD61: 3424 | AE61: 1658011.06 | AF61: 882 | AG61: 15900407.84 | AH61: 8462 | AI61: 26140423.49 | AJ61: 13912 | AK61: =VLOOKUP(AA61,'FY 2024 TABLE 15'!$A$11:$M$146,6,FALSE)-AC61 -> -470530.778 | AL61: =VLOOKUP(AA61,'FY 2024 TABLE 15'!$A$11:$M$146,7,FALSE)-AD61 -> 620 | AM61: =VLOOKUP(AA61,'FY 2024 TABLE 15'!$A$11:$M$146,10,FALSE)-AE61 -> 3014087.39 | AN61: =VLOOKUP(AA61,'FY 2024 TABLE 15'!$A$11:$M$146,11,FALSE)-AF61 -> 2286 | AO61: =VLOOKUP(AA61,'FY 2024 TABLE 15'!$A$11:$M$146,4,FALSE)-AG61 -> 3239058.35 | AP61: =VLOOKUP(AA61,'FY 2024 TABLE 15'!$A$11:$M$146,5,FALSE)-AH61 -> 4515 | AQ61: =VLOOKUP(AA61,'FY 2024 TABLE 15'!$A$11:$M$146,12,FALSE)-AI61 -> 5962143.122 | AR61: =VLOOKUP(AA61,'FY 2024 TABLE 15'!$A$11:$M$146,13,FALSE)-AJ61 -> 7855
AA62: 63 | AB62: New Kent | AC62: 11918455.78 | AD62: 3786 | AE62: 1292537.01 | AF62: 411 | AG62: 13747650.56 | AH62: 4367 | AI62: 30261013.83 | AJ62: 9613 | AK62: =VLOOKUP(AA62,'FY 2024 TABLE 15'!$A$11:$M$146,6,FALSE)-AC62 -> 8059136.416 | AL62: =VLOOKUP(AA62,'FY 2024 TABLE 15'!$A$11:$M$146,7,FALSE)-AD62 -> 1855 | AM62: =VLOOKUP(AA62,'FY 2024 TABLE 15'!$A$11:$M$146,10,FALSE)-AE62 -> 2820121.53 | AN62: =VLOOKUP(AA62,'FY 2024 TABLE 15'!$A$11:$M$146,11,FALSE)-AF62 -> 750 | AO62: =VLOOKUP(AA62,'FY 2024 TABLE 15'!$A$11:$M$146,4,FALSE)-AG62 -> 6888573.72 | AP62: =VLOOKUP(AA62,'FY 2024 TABLE 15'!$A$11:$M$146,5,FALSE)-AH62 -> 1460 | AQ62: =VLOOKUP(AA62,'FY 2024 TABLE 15'!$A$11:$M$146,12,FALSE)-AI62 -> 18981173.89 | AR62: =VLOOKUP(AA62,'FY 2024 TABLE 15'!$A$11:$M$146,13,FALSE)-AJ62 -> 4292
A63: 7. End-Of-Year Average Daily Membership (includes Pre-K): | F63: =VLOOKUP($A$5,'Source Data'!A2:Q137,17, FALSE) ->  | AA63: 65 | AB63: Northampton | AC63: 7570787.07 | AD63: 4621 | AE63: 2274538.4 | AF63: 1388 | AG63: 7606921.37 | AH63: 4644 | AI63: 19161249.96 | AJ63: 11697 | AK63: =VLOOKUP(AA63,'FY 2024 TABLE 15'!$A$11:$M$146,6,FALSE)-AC63 -> 1741978.6 | AL63: =VLOOKUP(AA63,'FY 2024 TABLE 15'!$A$11:$M$146,7,FALSE)-AD63 -> 2432 | AM63: =VLOOKUP(AA63,'FY 2024 TABLE 15'!$A$11:$M$146,10,FALSE)-AE63 -> 1605192.11 | AN63: =VLOOKUP(AA63,'FY 2024 TABLE 15'!$A$11:$M$146,11,FALSE)-AF63 -> 1550 | AO63: =VLOOKUP(AA63,'FY 2024 TABLE 15'!$A$11:$M$146,4,FALSE)-AG63 -> 2743198.55 | AP63: =VLOOKUP(AA63,'FY 2024 TABLE 15'!$A$11:$M$146,5,FALSE)-AH63 -> 3195 | AQ63: =VLOOKUP(AA63,'FY 2024 TABLE 15'!$A$11:$M$146,12,FALSE)-AI63 -> 6410165.08 | AR63: =VLOOKUP(AA63,'FY 2024 TABLE 15'!$A$11:$M$146,13,FALSE)-AJ63 -> 7671
AA64: 66 | AB64: Northumberland | AC64: 2699809.835 | AD64: 2062 | AE64: 1226668.54 | AF64: 937 | AG64: 11298387.91 | AH64: 8631 | AI64: 16720121.09 | AJ64: 12773 | AK64: =VLOOKUP(AA64,'FY 2024 TABLE 15'!$A$11:$M$146,6,FALSE)-AC64 -> 1661850.615 | AL64: =VLOOKUP(AA64,'FY 2024 TABLE 15'!$A$11:$M$146,7,FALSE)-AD64 -> 1689 | AM64: =VLOOKUP(AA64,'FY 2024 TABLE 15'!$A$11:$M$146,10,FALSE)-AE64 -> 2995149.99 | AN64: =VLOOKUP(AA64,'FY 2024 TABLE 15'!$A$11:$M$146,11,FALSE)-AF64 -> 2694 | AO64: =VLOOKUP(AA64,'FY 2024 TABLE 15'!$A$11:$M$146,4,FALSE)-AG64 -> 1743396.05 | AP64: =VLOOKUP(AA64,'FY 2024 TABLE 15'!$A$11:$M$146,5,FALSE)-AH64 -> 2585 | AQ64: =VLOOKUP(AA64,'FY 2024 TABLE 15'!$A$11:$M$146,12,FALSE)-AI64 -> 6480416.055 | AR64: =VLOOKUP(AA64,'FY 2024 TABLE 15'!$A$11:$M$146,13,FALSE)-AJ64 -> 7179
AA65: 67 | AB65: Nottoway | AC65: 12916573.28 | AD65: 5993 | AE65: 2536767.67 | AF65: 1177 | AG65: 4456018.95 | AH65: 2067 | AI65: 22198143.84 | AJ65: 10299 | AK65: =VLOOKUP(AA65,'FY 2024 TABLE 15'!$A$11:$M$146,6,FALSE)-AC65 -> 3186403.157 | AL65: =VLOOKUP(AA65,'FY 2024 TABLE 15'!$A$11:$M$146,7,FALSE)-AD65 -> 2832 | AM65: =VLOOKUP(AA65,'FY 2024 TABLE 15'!$A$11:$M$146,10,FALSE)-AE65 -> 6006589.13 | AN65: =VLOOKUP(AA65,'FY 2024 TABLE 15'!$A$11:$M$146,11,FALSE)-AF65 -> 3505 | AO65: =VLOOKUP(AA65,'FY 2024 TABLE 15'!$A$11:$M$146,4,FALSE)-AG65 -> 2068037.15 | AP65: =VLOOKUP(AA65,'FY 2024 TABLE 15'!$A$11:$M$146,5,FALSE)-AH65 -> 1509 | AQ65: =VLOOKUP(AA65,'FY 2024 TABLE 15'!$A$11:$M$146,12,FALSE)-AI65 -> 11626670.16 | AR65: =VLOOKUP(AA65,'FY 2024 TABLE 15'!$A$11:$M$146,13,FALSE)-AJ65 -> 8239
A66: Cell Comment Detail: | AA66: 68 | AB66: Orange | AC66: 21495573.6 | AD66: 4252 | AE66: 5431319.88 | AF66: 1074 | AG66: 20717662.56 | AH66: 4098 | AI66: 53172592.21 | AJ66: 10517 | AK66: =VLOOKUP(AA66,'FY 2024 TABLE 15'!$A$11:$M$146,6,FALSE)-AC66 -> 11182917.43 | AL66: =VLOOKUP(AA66,'FY 2024 TABLE 15'!$A$11:$M$146,7,FALSE)-AD66 -> 2216 | AM66: =VLOOKUP(AA66,'FY 2024 TABLE 15'!$A$11:$M$146,10,FALSE)-AE66 -> 3649880.5 | AN66: =VLOOKUP(AA66,'FY 2024 TABLE 15'!$A$11:$M$146,11,FALSE)-AF66 -> 723 | AO66: =VLOOKUP(AA66,'FY 2024 TABLE 15'!$A$11:$M$146,4,FALSE)-AG66 -> 2747532.32 | AP66: =VLOOKUP(AA66,'FY 2024 TABLE 15'!$A$11:$M$146,5,FALSE)-AH66 -> 546 | AQ66: =VLOOKUP(AA66,'FY 2024 TABLE 15'!$A$11:$M$146,12,FALSE)-AI66 -> 19140773.68 | AR66: =VLOOKUP(AA66,'FY 2024 TABLE 15'!$A$11:$M$146,13,FALSE)-AJ66 -> 3795
A67: Item 1a: TOTAL EXPENDITURES FOR OPERATIONS DEFINED AS: a) From the Annual School Report Financial Section (ASRFIN) the sum of all expenditures in ASRFIN functions between 61100 and 69950; excluding functions 67100, 68900, and 69900; b) ASRFIN Programs 1 through 8, 11 only (exclude programs 9 and 10); c) Exclude object code 8200, 8210, and 8220 from all functions; d) Exclude object code 8100 from the Facilities function only (functions 66100 through 66600); e) Exclude object codes 8110 and 8120 from Technology (Activity 68800); f) Exclude object code 8100 from Contingency Reserve (Activity 69800); and, g) Exclude the following function-object combinations: - Function 67200 - Objection Code 9400 - Function 67200 - Objection Code 9800 - Function 67300 - Objection Code 9600 - Function 67300 - Objection Codes 9700, 9710, 9720, 9730, 9740 | AA67: 69 | AB67: Page | AC67: 17675786.87 | AD67: 5133 | AE67: 2839678.56 | AF67: 825 | AG67: 10528264.63 | AH67: 3057 | AI67: 34798101.92 | AJ67: 10105 | AK67: =VLOOKUP(AA67,'FY 2024 TABLE 15'!$A$11:$M$146,6,FALSE)-AC67 -> 6637125.81 | AL67: =VLOOKUP(AA67,'FY 2024 TABLE 15'!$A$11:$M$146,7,FALSE)-AD67 -> 3010 | AM67: =VLOOKUP(AA67,'FY 2024 TABLE 15'!$A$11:$M$146,10,FALSE)-AE67 -> 2028152.32 | AN67: =VLOOKUP(AA67,'FY 2024 TABLE 15'!$A$11:$M$146,11,FALSE)-AF67 -> 805 | AO67: =VLOOKUP(AA67,'FY 2024 TABLE 15'!$A$11:$M$146,4,FALSE)-AG67 -> 4021921.96 | AP67: =VLOOKUP(AA67,'FY 2024 TABLE 15'!$A$11:$M$146,5,FALSE)-AH67 -> 1816 | AQ67: =VLOOKUP(AA67,'FY 2024 TABLE 15'!$A$11:$M$146,12,FALSE)-AI67 -> 13244769.69 | AR67: =VLOOKUP(AA67,'FY 2024 TABLE 15'!$A$11:$M$146,13,FALSE)-AJ67 -> 5986
A68: Item 2a: Excludes the following revenue source codes: Special Education Hospitals, Clinics and Detention Homes (240220) State Sales Tax (240308 and 240312, which are included below) Special Education in Jails (240295) Career/Technical Ed Adult - Regional Centers (240262) Career/Technical Ed equip - Regional Centers (240270) Career/Technical Ed Occupational Prep - Regional Centers (240282) Also excludes expenditures reported as Inter-Agency Fund Transfer - Transfer to Regional Program (Function 67300 - Objects 9700, 9710, 9720, 9730, 9740). This exclusion is based on these state funds being "passed-through" the fiscal agent's budget to a regional program. This amount is also deducted from "Total Expenditures for Operations." State revenues for Alternative Education and Academic Year Governor's Schools should be included in inter agency transfers to the regional program for fiscal agents and revenues should be added back to associated divisions according to their respective participation. This ensures that the state revenue for these programs coincides with the ADM for purposes of calculating Per Pupil Amounts in Table 15. | AA68: 70 | AB68: Patrick | AC68: 15960186.23 | AD68: 5838 | AE68: 2615304.76 | AF68: 957 | AG68: 6814090.26 | AH68: 2493 | AI68: 28094476.11 | AJ68: 10277 | AK68: =VLOOKUP(AA68,'FY 2024 TABLE 15'!$A$11:$M$146,6,FALSE)-AC68 -> 4991275.08 | AL68: =VLOOKUP(AA68,'FY 2024 TABLE 15'!$A$11:$M$146,7,FALSE)-AD68 -> 3061 | AM68: =VLOOKUP(AA68,'FY 2024 TABLE 15'!$A$11:$M$146,10,FALSE)-AE68 -> 1959135.84 | AN68: =VLOOKUP(AA68,'FY 2024 TABLE 15'!$A$11:$M$146,11,FALSE)-AF68 -> 986 | AO68: =VLOOKUP(AA68,'FY 2024 TABLE 15'!$A$11:$M$146,4,FALSE)-AG68 -> 785553.35 | AP68: =VLOOKUP(AA68,'FY 2024 TABLE 15'!$A$11:$M$146,5,FALSE)-AH68 -> 735 | AQ68: =VLOOKUP(AA68,'FY 2024 TABLE 15'!$A$11:$M$146,12,FALSE)-AI68 -> 8025295.25 | AR68: =VLOOKUP(AA68,'FY 2024 TABLE 15'!$A$11:$M$146,13,FALSE)-AJ68 -> 5064
A69: Item 4a: As of FY 2012, includes all federal revenues, including those for Pre-kindergarten: Head Start (93600) Even Start (84213) Title I (84010, 84013, 84357 and 84389) expenditures for Pre-K programs | AA69: 71 | AB69: Pittsylvania | AC69: 49816502.06 | AD69: 5489 | AE69: 8085887.31 | AF69: 891 | AG69: 20614634.05 | AH69: 2271 | AI69: 88410529.82 | AJ69: 9742 | AK69: =VLOOKUP(AA69,'FY 2024 TABLE 15'!$A$11:$M$146,6,FALSE)-AC69 -> 14896169.15 | AL69: =VLOOKUP(AA69,'FY 2024 TABLE 15'!$A$11:$M$146,7,FALSE)-AD69 -> 2816 | AM69: =VLOOKUP(AA69,'FY 2024 TABLE 15'!$A$11:$M$146,10,FALSE)-AE69 -> 13742563.08 | AN69: =VLOOKUP(AA69,'FY 2024 TABLE 15'!$A$11:$M$146,11,FALSE)-AF69 -> 1910 | AO69: =VLOOKUP(AA69,'FY 2024 TABLE 15'!$A$11:$M$146,4,FALSE)-AG69 -> 11010856.98 | AP69: =VLOOKUP(AA69,'FY 2024 TABLE 15'!$A$11:$M$146,5,FALSE)-AH69 -> 1788 | AQ69: =VLOOKUP(AA69,'FY 2024 TABLE 15'!$A$11:$M$146,12,FALSE)-AI69 -> 40803577.99 | AR69: =VLOOKUP(AA69,'FY 2024 TABLE 15'!$A$11:$M$146,13,FALSE)-AJ69 -> 6841
A70: End of Worksheet | AA70: 72 | AB70: Powhatan | AC70: 16902830.27 | AD70: 3976 | AE70: 1589346.71 | AF70: 374 | AG70: 22466197.99 | AH70: 5284 | AI70: 45489418.07 | AJ70: 10699 | AK70: =VLOOKUP(AA70,'FY 2024 TABLE 15'!$A$11:$M$146,6,FALSE)-AC70 -> 3647030.694 | AL70: =VLOOKUP(AA70,'FY 2024 TABLE 15'!$A$11:$M$146,7,FALSE)-AD70 -> 950 | AM70: =VLOOKUP(AA70,'FY 2024 TABLE 15'!$A$11:$M$146,10,FALSE)-AE70 -> 2127741.47 | AN70: =VLOOKUP(AA70,'FY 2024 TABLE 15'!$A$11:$M$146,11,FALSE)-AF70 -> 517 | AO70: =VLOOKUP(AA70,'FY 2024 TABLE 15'!$A$11:$M$146,4,FALSE)-AG70 -> 7900725.3 | AP70: =VLOOKUP(AA70,'FY 2024 TABLE 15'!$A$11:$M$146,5,FALSE)-AH70 -> 1995 | AQ70: =VLOOKUP(AA70,'FY 2024 TABLE 15'!$A$11:$M$146,12,FALSE)-AI70 -> 15231793.84 | AR70: =VLOOKUP(AA70,'FY 2024 TABLE 15'!$A$11:$M$146,13,FALSE)-AJ70 -> 3856
AA71: 73 | AB71: Prince Edward | AC71: 11355995.23 | AD71: 5396 | AE71: 2555857.93 | AF71: 1214 | AG71: 6911098.01 | AH71: 3284 | AI71: 23730187.39 | AJ71: 11275 | AK71: =VLOOKUP(AA71,'FY 2024 TABLE 15'!$A$11:$M$146,6,FALSE)-AC71 -> 3247317.437 | AL71: =VLOOKUP(AA71,'FY 2024 TABLE 15'!$A$11:$M$146,7,FALSE)-AD71 -> 2454 | AM71: =VLOOKUP(AA71,'FY 2024 TABLE 15'!$A$11:$M$146,10,FALSE)-AE71 -> 4654687.82 | AN71: =VLOOKUP(AA71,'FY 2024 TABLE 15'!$A$11:$M$146,11,FALSE)-AF71 -> 2662 | AO71: =VLOOKUP(AA71,'FY 2024 TABLE 15'!$A$11:$M$146,4,FALSE)-AG71 -> 1329514.23 | AP71: =VLOOKUP(AA71,'FY 2024 TABLE 15'!$A$11:$M$146,5,FALSE)-AH71 -> 1146 | AQ71: =VLOOKUP(AA71,'FY 2024 TABLE 15'!$A$11:$M$146,12,FALSE)-AI71 -> 9464803.287 | AR71: =VLOOKUP(AA71,'FY 2024 TABLE 15'!$A$11:$M$146,13,FALSE)-AJ71 -> 6569
AA72: 74 | AB72: Prince George | AC72: 33239642.1 | AD72: 5243 | AE72: 10242692.07 | AF72: 1616 | AG72: 17372526.59 | AH72: 2740 | AI72: 66635174.8 | AJ72: 10511 | AK72: =VLOOKUP(AA72,'FY 2024 TABLE 15'!$A$11:$M$146,6,FALSE)-AC72 -> 15344770.61 | AL72: =VLOOKUP(AA72,'FY 2024 TABLE 15'!$A$11:$M$146,7,FALSE)-AD72 -> 2689 | AM72: =VLOOKUP(AA72,'FY 2024 TABLE 15'!$A$11:$M$146,10,FALSE)-AE72 -> 1331644.48 | AN72: =VLOOKUP(AA72,'FY 2024 TABLE 15'!$A$11:$M$146,11,FALSE)-AF72 -> 274 | AO72: =VLOOKUP(AA72,'FY 2024 TABLE 15'!$A$11:$M$146,4,FALSE)-AG72 -> -69683.71 | AP72: =VLOOKUP(AA72,'FY 2024 TABLE 15'!$A$11:$M$146,5,FALSE)-AH72 -> 85 | AQ72: =VLOOKUP(AA72,'FY 2024 TABLE 15'!$A$11:$M$146,12,FALSE)-AI72 -> 18865592.1 | AR72: =VLOOKUP(AA72,'FY 2024 TABLE 15'!$A$11:$M$146,13,FALSE)-AJ72 -> 3448
AA73: 75 | AB73: Prince William | AC73: 405796245.1 | AD73: 4530 | AE73: 68001002.71 | AF73: 759 | AG73: 456123980.9 | AH73: 5092 | AI73: 1017251326 | AJ73: 11356 | AK73: =VLOOKUP(AA73,'FY 2024 TABLE 15'!$A$11:$M$146,6,FALSE)-AC73 -> 242199413.9 | AL73: =VLOOKUP(AA73,'FY 2024 TABLE 15'!$A$11:$M$146,7,FALSE)-AD73 -> 2615 | AM73: =VLOOKUP(AA73,'FY 2024 TABLE 15'!$A$11:$M$146,10,FALSE)-AE73 -> 27402301.04 | AN73: =VLOOKUP(AA73,'FY 2024 TABLE 15'!$A$11:$M$146,11,FALSE)-AF73 -> 293 | AO73: =VLOOKUP(AA73,'FY 2024 TABLE 15'!$A$11:$M$146,4,FALSE)-AG73 -> 221648918.6 | AP73: =VLOOKUP(AA73,'FY 2024 TABLE 15'!$A$11:$M$146,5,FALSE)-AH73 -> 2382 | AQ73: =VLOOKUP(AA73,'FY 2024 TABLE 15'!$A$11:$M$146,12,FALSE)-AI73 -> 522224973.5 | AR73: =VLOOKUP(AA73,'FY 2024 TABLE 15'!$A$11:$M$146,13,FALSE)-AJ73 -> 5619
AA74: 77 | AB74: Pulaski | AC74: 21876971.83 | AD74: 5163 | AE74: 4308438.18 | AF74: 1017 | AG74: 15777426.42 | AH74: 3724 | AI74: 46678471.21 | AJ74: 11017 | AK74: =VLOOKUP(AA74,'FY 2024 TABLE 15'!$A$11:$M$146,6,FALSE)-AC74 -> 12395871.91 | AL74: =VLOOKUP(AA74,'FY 2024 TABLE 15'!$A$11:$M$146,7,FALSE)-AD74 -> 2766 | AM74: =VLOOKUP(AA74,'FY 2024 TABLE 15'!$A$11:$M$146,10,FALSE)-AE74 -> 6614971.75 | AN74: =VLOOKUP(AA74,'FY 2024 TABLE 15'!$A$11:$M$146,11,FALSE)-AF74 -> 1510 | AO74: =VLOOKUP(AA74,'FY 2024 TABLE 15'!$A$11:$M$146,4,FALSE)-AG74 -> 1161583.01 | AP74: =VLOOKUP(AA74,'FY 2024 TABLE 15'!$A$11:$M$146,5,FALSE)-AH74 -> 195 | AQ74: =VLOOKUP(AA74,'FY 2024 TABLE 15'!$A$11:$M$146,12,FALSE)-AI74 -> 21048479.19 | AR74: =VLOOKUP(AA74,'FY 2024 TABLE 15'!$A$11:$M$146,13,FALSE)-AJ74 -> 4652
AA75: 78 | AB75: Rappahannock | AC75: 1952617.27 | AD75: 2257 | AE75: 675961.69 | AF75: 781 | AG75: 8913957.7 | AH75: 10302 | AI75: 12586479.88 | AJ75: 14547 | AK75: =VLOOKUP(AA75,'FY 2024 TABLE 15'!$A$11:$M$146,6,FALSE)-AC75 -> 62045.79978 | AL75: =VLOOKUP(AA75,'FY 2024 TABLE 15'!$A$11:$M$146,7,FALSE)-AD75 -> 353 | AM75: =VLOOKUP(AA75,'FY 2024 TABLE 15'!$A$11:$M$146,10,FALSE)-AE75 -> 20873.94 | AN75: =VLOOKUP(AA75,'FY 2024 TABLE 15'!$A$11:$M$146,11,FALSE)-AF75 -> 122 | AO75: =VLOOKUP(AA75,'FY 2024 TABLE 15'!$A$11:$M$146,4,FALSE)-AG75 -> 2678026.98 | AP75: =VLOOKUP(AA75,'FY 2024 TABLE 15'!$A$11:$M$146,5,FALSE)-AH75 -> 4716 | AQ75: =VLOOKUP(AA75,'FY 2024 TABLE 15'!$A$11:$M$146,12,FALSE)-AI75 -> 2887821.4 | AR75: =VLOOKUP(AA75,'FY 2024 TABLE 15'!$A$11:$M$146,13,FALSE)-AJ75 -> 5501
AA76: 79 | AB76: Richmond | AC76: 7190854.537 | AD76: 5525 | AE76: 1189116.43 | AF76: 914 | AG76: 5096987.01 | AH76: 3916 | AI76: 14662626.4 | AJ76: 11266 | AK76: =VLOOKUP(AA76,'FY 2024 TABLE 15'!$A$11:$M$146,6,FALSE)-AC76 -> 3276754.203 | AL76: =VLOOKUP(AA76,'FY 2024 TABLE 15'!$A$11:$M$146,7,FALSE)-AD76 -> 2128 | AM76: =VLOOKUP(AA76,'FY 2024 TABLE 15'!$A$11:$M$146,10,FALSE)-AE76 -> 1383645.14 | AN76: =VLOOKUP(AA76,'FY 2024 TABLE 15'!$A$11:$M$146,11,FALSE)-AF76 -> 967 | AO76: =VLOOKUP(AA76,'FY 2024 TABLE 15'!$A$11:$M$146,4,FALSE)-AG76 -> 771355.18 | AP76: =VLOOKUP(AA76,'FY 2024 TABLE 15'!$A$11:$M$146,5,FALSE)-AH76 -> 374 | AQ76: =VLOOKUP(AA76,'FY 2024 TABLE 15'!$A$11:$M$146,12,FALSE)-AI76 -> 5723921.503 | AR76: =VLOOKUP(AA76,'FY 2024 TABLE 15'!$A$11:$M$146,13,FALSE)-AJ76 -> 3639
AA77: 80 | AB77: Roanoke | AC77: 60280131.31 | AD77: 4271 | AE77: 7351684.16 | AF77: 521 | AG77: 63918184.82 | AH77: 4529 | AI77: 146702900.3 | AJ77: 10394 | AK77: =VLOOKUP(AA77,'FY 2024 TABLE 15'!$A$11:$M$146,6,FALSE)-AC77 -> 24502268.05 | AL77: =VLOOKUP(AA77,'FY 2024 TABLE 15'!$A$11:$M$146,7,FALSE)-AD77 -> 1910 | AM77: =VLOOKUP(AA77,'FY 2024 TABLE 15'!$A$11:$M$146,10,FALSE)-AE77 -> 7937011.16 | AN77: =VLOOKUP(AA77,'FY 2024 TABLE 15'!$A$11:$M$146,11,FALSE)-AF77 -> 594 | AO77: =VLOOKUP(AA77,'FY 2024 TABLE 15'!$A$11:$M$146,4,FALSE)-AG77 -> 35726247.49 | AP77: =VLOOKUP(AA77,'FY 2024 TABLE 15'!$A$11:$M$146,5,FALSE)-AH77 -> 2736 | AQ77: =VLOOKUP(AA77,'FY 2024 TABLE 15'!$A$11:$M$146,12,FALSE)-AI77 -> 71854234.4 | AR77: =VLOOKUP(AA77,'FY 2024 TABLE 15'!$A$11:$M$146,13,FALSE)-AJ77 -> 5541
AA78: 81 | AB78: Rockbridge | AC78: 11082858.02 | AD78: 4253 | AE78: 2007275.93 | AF78: 770 | AG78: 13943025.8 | AH78: 5351 | AI78: 30118850.71 | AJ78: 11559 | AK78: =VLOOKUP(AA78,'FY 2024 TABLE 15'!$A$11:$M$146,6,FALSE)-AC78 -> 1077191.43 | AL78: =VLOOKUP(AA78,'FY 2024 TABLE 15'!$A$11:$M$146,7,FALSE)-AD78 -> 1012 | AM78: =VLOOKUP(AA78,'FY 2024 TABLE 15'!$A$11:$M$146,10,FALSE)-AE78 -> 2494277.31 | AN78: =VLOOKUP(AA78,'FY 2024 TABLE 15'!$A$11:$M$146,11,FALSE)-AF78 -> 1179 | AO78: =VLOOKUP(AA78,'FY 2024 TABLE 15'!$A$11:$M$146,4,FALSE)-AG78 -> 6656844.86 | AP78: =VLOOKUP(AA78,'FY 2024 TABLE 15'!$A$11:$M$146,5,FALSE)-AH78 -> 3568 | AQ78: =VLOOKUP(AA78,'FY 2024 TABLE 15'!$A$11:$M$146,12,FALSE)-AI78 -> 11073255 | AR78: =VLOOKUP(AA78,'FY 2024 TABLE 15'!$A$11:$M$146,13,FALSE)-AJ78 -> 6276
AA79: 82 | AB79: Rockingham | AC79: 50814994.59 | AD79: 4314 | AE79: 7610641.1 | AF79: 646 | AG79: 62665060.28 | AH79: 5320 | AI79: 134552539.4 | AJ79: 11423 | AK79: =VLOOKUP(AA79,'FY 2024 TABLE 15'!$A$11:$M$146,6,FALSE)-AC79 -> 27117985.3 | AL79: =VLOOKUP(AA79,'FY 2024 TABLE 15'!$A$11:$M$146,7,FALSE)-AD79 -> 2431 | AM79: =VLOOKUP(AA79,'FY 2024 TABLE 15'!$A$11:$M$146,10,FALSE)-AE79 -> 6744515.69 | AN79: =VLOOKUP(AA79,'FY 2024 TABLE 15'!$A$11:$M$146,11,FALSE)-AF79 -> 596 | AO79: =VLOOKUP(AA79,'FY 2024 TABLE 15'!$A$11:$M$146,4,FALSE)-AG79 -> 6710069.62 | AP79: =VLOOKUP(AA79,'FY 2024 TABLE 15'!$A$11:$M$146,5,FALSE)-AH79 -> 684 | AQ79: =VLOOKUP(AA79,'FY 2024 TABLE 15'!$A$11:$M$146,12,FALSE)-AI79 -> 44375413.27 | AR79: =VLOOKUP(AA79,'FY 2024 TABLE 15'!$A$11:$M$146,13,FALSE)-AJ79 -> 4063
AA80: 83 | AB80: Russell | AC80: 22450674.71 | AD80: 5647 | AE80: 4734208.6 | AF80: 1191 | AG80: 8499307.19 | AH80: 2138 | AI80: 39820933.22 | AJ80: 10015 | AK80: =VLOOKUP(AA80,'FY 2024 TABLE 15'!$A$11:$M$146,6,FALSE)-AC80 -> 8717590.861 | AL80: =VLOOKUP(AA80,'FY 2024 TABLE 15'!$A$11:$M$146,7,FALSE)-AD80 -> 3479 | AM80: =VLOOKUP(AA80,'FY 2024 TABLE 15'!$A$11:$M$146,10,FALSE)-AE80 -> 3135512.74 | AN80: =VLOOKUP(AA80,'FY 2024 TABLE 15'!$A$11:$M$146,11,FALSE)-AF80 -> 1113 | AO80: =VLOOKUP(AA80,'FY 2024 TABLE 15'!$A$11:$M$146,4,FALSE)-AG80 -> -420072.66 | AP80: =VLOOKUP(AA80,'FY 2024 TABLE 15'!$A$11:$M$146,5,FALSE)-AH80 -> 228 | AQ80: =VLOOKUP(AA80,'FY 2024 TABLE 15'!$A$11:$M$146,12,FALSE)-AI80 -> 11890139.68 | AR80: =VLOOKUP(AA80,'FY 2024 TABLE 15'!$A$11:$M$146,13,FALSE)-AJ80 -> 5126
AA81: 84 | AB81: Scott | AC81: 23672024.46 | AD81: 6364 | AE81: 3318606.69 | AF81: 892 | AG81: 5949922.34 | AH81: 1600 | AI81: 36230608.09 | AJ81: 9740 | AK81: =VLOOKUP(AA81,'FY 2024 TABLE 15'!$A$11:$M$146,6,FALSE)-AC81 -> 22718498.04 | AL81: =VLOOKUP(AA81,'FY 2024 TABLE 15'!$A$11:$M$146,7,FALSE)-AD81 -> 4546 | AM81: =VLOOKUP(AA81,'FY 2024 TABLE 15'!$A$11:$M$146,10,FALSE)-AE81 -> 4684791.87 | AN81: =VLOOKUP(AA81,'FY 2024 TABLE 15'!$A$11:$M$146,11,FALSE)-AF81 -> 990 | AO81: =VLOOKUP(AA81,'FY 2024 TABLE 15'!$A$11:$M$146,4,FALSE)-AG81 -> 5847711.61 | AP81: =VLOOKUP(AA81,'FY 2024 TABLE 15'!$A$11:$M$146,5,FALSE)-AH81 -> 1175 | AQ81: =VLOOKUP(AA81,'FY 2024 TABLE 15'!$A$11:$M$146,12,FALSE)-AI81 -> 33846836.94 | AR81: =VLOOKUP(AA81,'FY 2024 TABLE 15'!$A$11:$M$146,13,FALSE)-AJ81 -> 6741
AA82: 85 | AB82: Shenandoah | AC82: 27132626.1 | AD82: 4529 | AE82: 4241235.19 | AF82: 708 | AG82: 26041404.4 | AH82: 4347 | AI82: 64318712.67 | AJ82: 10737 | AK82: =VLOOKUP(AA82,'FY 2024 TABLE 15'!$A$11:$M$146,6,FALSE)-AC82 -> 11082631.53 | AL82: =VLOOKUP(AA82,'FY 2024 TABLE 15'!$A$11:$M$146,7,FALSE)-AD82 -> 2229 | AM82: =VLOOKUP(AA82,'FY 2024 TABLE 15'!$A$11:$M$146,10,FALSE)-AE82 -> 6953318.83 | AN82: =VLOOKUP(AA82,'FY 2024 TABLE 15'!$A$11:$M$146,11,FALSE)-AF82 -> 1272 | AO82: =VLOOKUP(AA82,'FY 2024 TABLE 15'!$A$11:$M$146,4,FALSE)-AG82 -> 6771107.93 | AP82: =VLOOKUP(AA82,'FY 2024 TABLE 15'!$A$11:$M$146,5,FALSE)-AH82 -> 1455 | AQ82: =VLOOKUP(AA82,'FY 2024 TABLE 15'!$A$11:$M$146,12,FALSE)-AI82 -> 26617312.69 | AR82: =VLOOKUP(AA82,'FY 2024 TABLE 15'!$A$11:$M$146,13,FALSE)-AJ82 -> 5344
AA83: 86 | AB83: Smyth | AC83: 26383282.39 | AD83: 5884 | AE83: 5280519.12 | AF83: 1178 | AG83: 9572014.57 | AH83: 2135 | AI83: 46089852.74 | AJ83: 10279 | AK83: =VLOOKUP(AA83,'FY 2024 TABLE 15'!$A$11:$M$146,6,FALSE)-AC83 -> 9736636.294 | AL83: =VLOOKUP(AA83,'FY 2024 TABLE 15'!$A$11:$M$146,7,FALSE)-AD83 -> 3451 | AM83: =VLOOKUP(AA83,'FY 2024 TABLE 15'!$A$11:$M$146,10,FALSE)-AE83 -> 7249580.31 | AN83: =VLOOKUP(AA83,'FY 2024 TABLE 15'!$A$11:$M$146,11,FALSE)-AF83 -> 2060 | AO83: =VLOOKUP(AA83,'FY 2024 TABLE 15'!$A$11:$M$146,4,FALSE)-AG83 -> 3339406.07 | AP83: =VLOOKUP(AA83,'FY 2024 TABLE 15'!$A$11:$M$146,5,FALSE)-AH83 -> 1202 | AQ83: =VLOOKUP(AA83,'FY 2024 TABLE 15'!$A$11:$M$146,12,FALSE)-AI83 -> 20987697.07 | AR83: =VLOOKUP(AA83,'FY 2024 TABLE 15'!$A$11:$M$146,13,FALSE)-AJ83 -> 7056
AA84: 87 | AB84: Southampton | AC84: 15892147.17 | AD84: 5765 | AE84: 2481018.35 | AF84: 900 | AG84: 11772863.13 | AH84: 4271 | AI84: 32899778.71 | AJ84: 11935 | AK84: =VLOOKUP(AA84,'FY 2024 TABLE 15'!$A$11:$M$146,6,FALSE)-AC84 -> 4102699.096 | AL84: =VLOOKUP(AA84,'FY 2024 TABLE 15'!$A$11:$M$146,7,FALSE)-AD84 -> 2322 | AM84: =VLOOKUP(AA84,'FY 2024 TABLE 15'!$A$11:$M$146,10,FALSE)-AE84 -> 1232756.47 | AN84: =VLOOKUP(AA84,'FY 2024 TABLE 15'!$A$11:$M$146,11,FALSE)-AF84 -> 602 | AO84: =VLOOKUP(AA84,'FY 2024 TABLE 15'!$A$11:$M$146,4,FALSE)-AG84 -> 323603.42 | AP84: =VLOOKUP(AA84,'FY 2024 TABLE 15'!$A$11:$M$146,5,FALSE)-AH84 -> 621 | AQ84: =VLOOKUP(AA84,'FY 2024 TABLE 15'!$A$11:$M$146,12,FALSE)-AI84 -> 6169680.706 | AR84: =VLOOKUP(AA84,'FY 2024 TABLE 15'!$A$11:$M$146,13,FALSE)-AJ84 -> 3866
AA85: 88 | AB85: Spotsylvania | AC85: 101385004 | AD85: 4298 | AE85: 14930672.3 | AF85: 633 | AG85: 115316596.6 | AH85: 4888 | AI85: 256496857.2 | AJ85: 10873 | AK85: =VLOOKUP(AA85,'FY 2024 TABLE 15'!$A$11:$M$146,6,FALSE)-AC85 -> 51545848.51 | AL85: =VLOOKUP(AA85,'FY 2024 TABLE 15'!$A$11:$M$146,7,FALSE)-AD85 -> 2110 | AM85: =VLOOKUP(AA85,'FY 2024 TABLE 15'!$A$11:$M$146,10,FALSE)-AE85 -> 16537460.12 | AN85: =VLOOKUP(AA85,'FY 2024 TABLE 15'!$A$11:$M$146,11,FALSE)-AF85 -> 686 | AO85: =VLOOKUP(AA85,'FY 2024 TABLE 15'!$A$11:$M$146,4,FALSE)-AG85 -> 23948505.75 | AP85: =VLOOKUP(AA85,'FY 2024 TABLE 15'!$A$11:$M$146,5,FALSE)-AH85 -> 947 | AQ85: =VLOOKUP(AA85,'FY 2024 TABLE 15'!$A$11:$M$146,12,FALSE)-AI85 -> 100220160.4 | AR85: =VLOOKUP(AA85,'FY 2024 TABLE 15'!$A$11:$M$146,13,FALSE)-AJ85 -> 4074
AA86: 89 | AB86: Stafford | AC86: 120918633.8 | AD86: 4238 | AE86: 17306423.64 | AF86: 607 | AG86: 133615275.7 | AH86: 4683 | AI86: 300520815.6 | AJ86: 10533 | AK86: =VLOOKUP(AA86,'FY 2024 TABLE 15'!$A$11:$M$146,6,FALSE)-AC86 -> 85833119.82 | AL86: =VLOOKUP(AA86,'FY 2024 TABLE 15'!$A$11:$M$146,7,FALSE)-AD86 -> 2292 | AM86: =VLOOKUP(AA86,'FY 2024 TABLE 15'!$A$11:$M$146,10,FALSE)-AE86 -> 16083176.51 | AN86: =VLOOKUP(AA86,'FY 2024 TABLE 15'!$A$11:$M$146,11,FALSE)-AF86 -> 448 | AO86: =VLOOKUP(AA86,'FY 2024 TABLE 15'!$A$11:$M$146,4,FALSE)-AG86 -> 29797740.23 | AP86: =VLOOKUP(AA86,'FY 2024 TABLE 15'!$A$11:$M$146,5,FALSE)-AH86 -> 478 | AQ86: =VLOOKUP(AA86,'FY 2024 TABLE 15'!$A$11:$M$146,12,FALSE)-AI86 -> 144092414.5 | AR86: =VLOOKUP(AA86,'FY 2024 TABLE 15'!$A$11:$M$146,13,FALSE)-AJ86 -> 3509
AA87: 90 | AB87: Surry | AC87: 1607313.046 | AD87: 1975 | AE87: 1258741.76 | AF87: 1546 | AG87: 11643380.33 | AH87: 14304 | AI87: 15503103.08 | AJ87: 19045 | AK87: =VLOOKUP(AA87,'FY 2024 TABLE 15'!$A$11:$M$146,6,FALSE)-AC87 -> 931641.6642 | AL87: =VLOOKUP(AA87,'FY 2024 TABLE 15'!$A$11:$M$146,7,FALSE)-AD87 -> 1705 | AM87: =VLOOKUP(AA87,'FY 2024 TABLE 15'!$A$11:$M$146,10,FALSE)-AE87 -> 1601807.07 | AN87: =VLOOKUP(AA87,'FY 2024 TABLE 15'!$A$11:$M$146,11,FALSE)-AF87 -> 2600 | AO87: =VLOOKUP(AA87,'FY 2024 TABLE 15'!$A$11:$M$146,4,FALSE)-AG87 -> 969924.99 | AP87: =VLOOKUP(AA87,'FY 2024 TABLE 15'!$A$11:$M$146,5,FALSE)-AH87 -> 3979 | AQ87: =VLOOKUP(AA87,'FY 2024 TABLE 15'!$A$11:$M$146,12,FALSE)-AI87 -> 3432709.124 | AR87: =VLOOKUP(AA87,'FY 2024 TABLE 15'!$A$11:$M$146,13,FALSE)-AJ87 -> 8403
AA88: 91 | AB88: Sussex | AC88: 6897133.24 | AD88: 6280 | AE88: 1917095.57 | AF88: 1745 | AG88: 8084981.47 | AH88: 7361 | AI88: 18279322.42 | AJ88: 16643 | AK88: =VLOOKUP(AA88,'FY 2024 TABLE 15'!$A$11:$M$146,6,FALSE)-AC88 -> 2502264 | AL88: =VLOOKUP(AA88,'FY 2024 TABLE 15'!$A$11:$M$146,7,FALSE)-AD88 -> 3024 | AM88: =VLOOKUP(AA88,'FY 2024 TABLE 15'!$A$11:$M$146,10,FALSE)-AE88 -> 3119706.09 | AN88: =VLOOKUP(AA88,'FY 2024 TABLE 15'!$A$11:$M$146,11,FALSE)-AF88 -> 3241 | AO88: =VLOOKUP(AA88,'FY 2024 TABLE 15'!$A$11:$M$146,4,FALSE)-AG88 -> 1497648.46 | AP88: =VLOOKUP(AA88,'FY 2024 TABLE 15'!$A$11:$M$146,5,FALSE)-AH88 -> 2124 | AQ88: =VLOOKUP(AA88,'FY 2024 TABLE 15'!$A$11:$M$146,12,FALSE)-AI88 -> 7190639.73 | AR88: =VLOOKUP(AA88,'FY 2024 TABLE 15'!$A$11:$M$146,13,FALSE)-AJ88 -> 8568
AA89: 92 | AB89: Tazewell | AC89: 31867137.66 | AD89: 5421 | AE89: 6048714.54 | AF89: 1029 | AG89: 13921716.18 | AH89: 2368 | AI89: 58399903.3 | AJ89: 9934 | AK89: =VLOOKUP(AA89,'FY 2024 TABLE 15'!$A$11:$M$146,6,FALSE)-AC89 -> 11583506.32 | AL89: =VLOOKUP(AA89,'FY 2024 TABLE 15'!$A$11:$M$146,7,FALSE)-AD89 -> 2821 | AM89: =VLOOKUP(AA89,'FY 2024 TABLE 15'!$A$11:$M$146,10,FALSE)-AE89 -> 21801588.77 | AN89: =VLOOKUP(AA89,'FY 2024 TABLE 15'!$A$11:$M$146,11,FALSE)-AF89 -> 4254 | AO89: =VLOOKUP(AA89,'FY 2024 TABLE 15'!$A$11:$M$146,4,FALSE)-AG89 -> -1594114.52 | AP89: =VLOOKUP(AA89,'FY 2024 TABLE 15'!$A$11:$M$146,5,FALSE)-AH89 -> -29 | AQ89: =VLOOKUP(AA89,'FY 2024 TABLE 15'!$A$11:$M$146,12,FALSE)-AI89 -> 32289136.33 | AR89: =VLOOKUP(AA89,'FY 2024 TABLE 15'!$A$11:$M$146,13,FALSE)-AJ89 -> 7269
AA90: 93 | AB90: Warren | AC90: 21639990.33 | AD90: 4020 | AE90: 4025560.41 | AF90: 748 | AG90: 22626862.63 | AH90: 4203 | AI90: 54816358.61 | AJ90: 10182 | AK90: =VLOOKUP(AA90,'FY 2024 TABLE 15'!$A$11:$M$146,6,FALSE)-AC90 -> 7364680.919 | AL90: =VLOOKUP(AA90,'FY 2024 TABLE 15'!$A$11:$M$146,7,FALSE)-AD90 -> 1659 | AM90: =VLOOKUP(AA90,'FY 2024 TABLE 15'!$A$11:$M$146,10,FALSE)-AE90 -> 5613633.92 | AN90: =VLOOKUP(AA90,'FY 2024 TABLE 15'!$A$11:$M$146,11,FALSE)-AF90 -> 1139 | AO90: =VLOOKUP(AA90,'FY 2024 TABLE 15'!$A$11:$M$146,4,FALSE)-AG90 -> 7315812.11 | AP90: =VLOOKUP(AA90,'FY 2024 TABLE 15'!$A$11:$M$146,5,FALSE)-AH90 -> 1660 | AQ90: =VLOOKUP(AA90,'FY 2024 TABLE 15'!$A$11:$M$146,12,FALSE)-AI90 -> 22006953.87 | AR90: =VLOOKUP(AA90,'FY 2024 TABLE 15'!$A$11:$M$146,13,FALSE)-AJ90 -> 4860
AA91: 94 | AB91: Washington | AC91: 32510432.77 | AD91: 4497 | AE91: 6785928.03 | AF91: 939 | AG91: 28169123.21 | AH91: 3896 | AI91: 75296355.65 | AJ91: 10415 | AK91: =VLOOKUP(AA91,'FY 2024 TABLE 15'!$A$11:$M$146,6,FALSE)-AC91 -> 15989867.27 | AL91: =VLOOKUP(AA91,'FY 2024 TABLE 15'!$A$11:$M$146,7,FALSE)-AD91 -> 2690 | AM91: =VLOOKUP(AA91,'FY 2024 TABLE 15'!$A$11:$M$146,10,FALSE)-AE91 -> 5642327.86 | AN91: =VLOOKUP(AA91,'FY 2024 TABLE 15'!$A$11:$M$146,11,FALSE)-AF91 -> 903 | AO91: =VLOOKUP(AA91,'FY 2024 TABLE 15'!$A$11:$M$146,4,FALSE)-AG91 -> 2538684.24 | AP91: =VLOOKUP(AA91,'FY 2024 TABLE 15'!$A$11:$M$146,5,FALSE)-AH91 -> 654 | AQ91: =VLOOKUP(AA91,'FY 2024 TABLE 15'!$A$11:$M$146,12,FALSE)-AI91 -> 25775449.77 | AR91: =VLOOKUP(AA91,'FY 2024 TABLE 15'!$A$11:$M$146,13,FALSE)-AJ91 -> 4562
AA92: 95 | AB92: Westmoreland | AC92: 11169805.51 | AD92: 6698 | AE92: 2088922.7 | AF92: 1253 | AG92: 8437800.84 | AH92: 5059 | AI92: 23562521.88 | AJ92: 14128 | AK92: =VLOOKUP(AA92,'FY 2024 TABLE 15'!$A$11:$M$146,6,FALSE)-AC92 -> 2222576.14 | AL92: =VLOOKUP(AA92,'FY 2024 TABLE 15'!$A$11:$M$146,7,FALSE)-AD92 -> 1917 | AM92: =VLOOKUP(AA92,'FY 2024 TABLE 15'!$A$11:$M$146,10,FALSE)-AE92 -> 1578278.53 | AN92: =VLOOKUP(AA92,'FY 2024 TABLE 15'!$A$11:$M$146,11,FALSE)-AF92 -> 1106 | AO92: =VLOOKUP(AA92,'FY 2024 TABLE 15'!$A$11:$M$146,4,FALSE)-AG92 -> 3489627.97 | AP92: =VLOOKUP(AA92,'FY 2024 TABLE 15'!$A$11:$M$146,5,FALSE)-AH92 -> 2614 | AQ92: =VLOOKUP(AA92,'FY 2024 TABLE 15'!$A$11:$M$146,12,FALSE)-AI92 -> 7775064.44 | AR92: =VLOOKUP(AA92,'FY 2024 TABLE 15'!$A$11:$M$146,13,FALSE)-AJ92 -> 6031
AA93: 96 | AB93: Wise | AC93: 30917148.61 | AD93: 5322 | AE93: 5928527.01 | AF93: 1020 | AG93: 13073852.45 | AH93: 2250 | AI93: 55805136.85 | AJ93: 9606 | AK93: =VLOOKUP(AA93,'FY 2024 TABLE 15'!$A$11:$M$146,6,FALSE)-AC93 -> 9623378.811 | AL93: =VLOOKUP(AA93,'FY 2024 TABLE 15'!$A$11:$M$146,7,FALSE)-AD93 -> 1649 | AM93: =VLOOKUP(AA93,'FY 2024 TABLE 15'!$A$11:$M$146,10,FALSE)-AE93 -> 7129940.98 | AN93: =VLOOKUP(AA93,'FY 2024 TABLE 15'!$A$11:$M$146,11,FALSE)-AF93 -> 1225 | AO93: =VLOOKUP(AA93,'FY 2024 TABLE 15'!$A$11:$M$146,4,FALSE)-AG93 -> 9530937.75 | AP93: =VLOOKUP(AA93,'FY 2024 TABLE 15'!$A$11:$M$146,5,FALSE)-AH93 -> 1637 | AQ93: =VLOOKUP(AA93,'FY 2024 TABLE 15'!$A$11:$M$146,12,FALSE)-AI93 -> 27040230.9 | AR93: =VLOOKUP(AA93,'FY 2024 TABLE 15'!$A$11:$M$146,13,FALSE)-AJ93 -> 4640
AA94: 97 | AB94: Wythe | AC94: 20674449.93 | AD94: 4932 | AE94: 3392661.9 | AF94: 809 | AG94: 14508250.83 | AH94: 3461 | AI94: 43006238.16 | AJ94: 10259 | AK94: =VLOOKUP(AA94,'FY 2024 TABLE 15'!$A$11:$M$146,6,FALSE)-AC94 -> 3185162.745 | AL94: =VLOOKUP(AA94,'FY 2024 TABLE 15'!$A$11:$M$146,7,FALSE)-AD94 -> 1403 | AM94: =VLOOKUP(AA94,'FY 2024 TABLE 15'!$A$11:$M$146,10,FALSE)-AE94 -> 4167262.88 | AN94: =VLOOKUP(AA94,'FY 2024 TABLE 15'!$A$11:$M$146,11,FALSE)-AF94 -> 1198 | AO94: =VLOOKUP(AA94,'FY 2024 TABLE 15'!$A$11:$M$146,4,FALSE)-AG94 -> 4943113.03 | AP94: =VLOOKUP(AA94,'FY 2024 TABLE 15'!$A$11:$M$146,5,FALSE)-AH94 -> 1703 | AQ94: =VLOOKUP(AA94,'FY 2024 TABLE 15'!$A$11:$M$146,12,FALSE)-AI94 -> 13044351.37 | AR94: =VLOOKUP(AA94,'FY 2024 TABLE 15'!$A$11:$M$146,13,FALSE)-AJ94 -> 4623
AA95: 98 | AB95: York | AC95: 49621162.16 | AD95: 3896 | AE95: 15764430.85 | AF95: 1238 | AG95: 53535348.29 | AH95: 4203 | AI95: 131784825 | AJ95: 10346 | AK95: =VLOOKUP(AA95,'FY 2024 TABLE 15'!$A$11:$M$146,6,FALSE)-AC95 -> 32070450.54 | AL95: =VLOOKUP(AA95,'FY 2024 TABLE 15'!$A$11:$M$146,7,FALSE)-AD95 -> 2377 | AM95: =VLOOKUP(AA95,'FY 2024 TABLE 15'!$A$11:$M$146,10,FALSE)-AE95 -> 8406246.4 | AN95: =VLOOKUP(AA95,'FY 2024 TABLE 15'!$A$11:$M$146,11,FALSE)-AF95 -> 618 | AO95: =VLOOKUP(AA95,'FY 2024 TABLE 15'!$A$11:$M$146,4,FALSE)-AG95 -> 17324615.58 | AP95: =VLOOKUP(AA95,'FY 2024 TABLE 15'!$A$11:$M$146,5,FALSE)-AH95 -> 1239 | AQ95: =VLOOKUP(AA95,'FY 2024 TABLE 15'!$A$11:$M$146,12,FALSE)-AI95 -> 61278255.33 | AR95: =VLOOKUP(AA95,'FY 2024 TABLE 15'!$A$11:$M$146,13,FALSE)-AJ95 -> 4480
AA96: 101 | AB96: Alexandria | AC96: 26184557.95 | AD96: 1698 | AE96: 15797546.35 | AF96: 1024 | AG96: 212366810.3 | AH96: 13772 | AI96: 270366505 | AJ96: 17533 | AK96: =VLOOKUP(AA96,'FY 2024 TABLE 15'!$A$11:$M$146,6,FALSE)-AC96 -> 17425707.28 | AL96: =VLOOKUP(AA96,'FY 2024 TABLE 15'!$A$11:$M$146,7,FALSE)-AD96 -> 933 | AM96: =VLOOKUP(AA96,'FY 2024 TABLE 15'!$A$11:$M$146,10,FALSE)-AE96 -> 20205276.9 | AN96: =VLOOKUP(AA96,'FY 2024 TABLE 15'!$A$11:$M$146,11,FALSE)-AF96 -> 1148 | AO96: =VLOOKUP(AA96,'FY 2024 TABLE 15'!$A$11:$M$146,4,FALSE)-AG96 -> 54174876.46 | AP96: =VLOOKUP(AA96,'FY 2024 TABLE 15'!$A$11:$M$146,5,FALSE)-AH96 -> 2311 | AQ96: =VLOOKUP(AA96,'FY 2024 TABLE 15'!$A$11:$M$146,12,FALSE)-AI96 -> 98884326.36 | AR96: =VLOOKUP(AA96,'FY 2024 TABLE 15'!$A$11:$M$146,13,FALSE)-AJ96 -> 4747
AA97: 102 | AB97: Bristol | AC97: 12418211.04 | AD97: 5479 | AE97: 3404674.17 | AF97: 1502 | AG97: 6176759.49 | AH97: 2725 | AI97: 24707362.36 | AJ97: 10901 | AK97: =VLOOKUP(AA97,'FY 2024 TABLE 15'!$A$11:$M$146,6,FALSE)-AC97 -> 4328091.957 | AL97: =VLOOKUP(AA97,'FY 2024 TABLE 15'!$A$11:$M$146,7,FALSE)-AD97 -> 2305 | AM97: =VLOOKUP(AA97,'FY 2024 TABLE 15'!$A$11:$M$146,10,FALSE)-AE97 -> 6048104.29 | AN97: =VLOOKUP(AA97,'FY 2024 TABLE 15'!$A$11:$M$146,11,FALSE)-AF97 -> 2892 | AO97: =VLOOKUP(AA97,'FY 2024 TABLE 15'!$A$11:$M$146,4,FALSE)-AG97 -> 5067972.86 | AP97: =VLOOKUP(AA97,'FY 2024 TABLE 15'!$A$11:$M$146,5,FALSE)-AH97 -> 2502 | AQ97: =VLOOKUP(AA97,'FY 2024 TABLE 15'!$A$11:$M$146,12,FALSE)-AI97 -> 16004604.99 | AR97: =VLOOKUP(AA97,'FY 2024 TABLE 15'!$A$11:$M$146,13,FALSE)-AJ97 -> 8022
AA98: 103 | AB98: Buena Vista | AC98: 6000063.997 | AD98: 6387 | AE98: 936943.69 | AF98: 997 | AG98: 1560946.82 | AH98: 1662 | AI98: 9556337.627 | AJ98: 10173 | AK98: =VLOOKUP(AA98,'FY 2024 TABLE 15'!$A$11:$M$146,6,FALSE)-AC98 -> 2749300.923 | AL98: =VLOOKUP(AA98,'FY 2024 TABLE 15'!$A$11:$M$146,7,FALSE)-AD98 -> 4133 | AM98: =VLOOKUP(AA98,'FY 2024 TABLE 15'!$A$11:$M$146,10,FALSE)-AE98 -> 1349575.05 | AN98: =VLOOKUP(AA98,'FY 2024 TABLE 15'!$A$11:$M$146,11,FALSE)-AF98 -> 1752 | AO98: =VLOOKUP(AA98,'FY 2024 TABLE 15'!$A$11:$M$146,4,FALSE)-AG98 -> 624063.03 | AP98: =VLOOKUP(AA98,'FY 2024 TABLE 15'!$A$11:$M$146,5,FALSE)-AH98 -> 965 | AQ98: =VLOOKUP(AA98,'FY 2024 TABLE 15'!$A$11:$M$146,12,FALSE)-AI98 -> 4859428.763 | AR98: =VLOOKUP(AA98,'FY 2024 TABLE 15'!$A$11:$M$146,13,FALSE)-AJ98 -> 7159
AA99: 104 | AB99: Charlottesville | AC99: 12262890.52 | AD99: 2772 | AE99: 4952980.15 | AF99: 1119 | AG99: 50792682.8 | AH99: 11480 | AI99: 72754650.07 | AJ99: 16444 | AK99: =VLOOKUP(AA99,'FY 2024 TABLE 15'!$A$11:$M$146,6,FALSE)-AC99 -> 5155764.15 | AL99: =VLOOKUP(AA99,'FY 2024 TABLE 15'!$A$11:$M$146,7,FALSE)-AD99 -> 1240 | AM99: =VLOOKUP(AA99,'FY 2024 TABLE 15'!$A$11:$M$146,10,FALSE)-AE99 -> 11694179.35 | AN99: =VLOOKUP(AA99,'FY 2024 TABLE 15'!$A$11:$M$146,11,FALSE)-AF99 -> 2715 | AO99: =VLOOKUP(AA99,'FY 2024 TABLE 15'!$A$11:$M$146,4,FALSE)-AG99 -> 3463616.73 | AP99: =VLOOKUP(AA99,'FY 2024 TABLE 15'!$A$11:$M$146,5,FALSE)-AH99 -> 1017 | AQ99: =VLOOKUP(AA99,'FY 2024 TABLE 15'!$A$11:$M$146,12,FALSE)-AI99 -> 22481957.59 | AR99: =VLOOKUP(AA99,'FY 2024 TABLE 15'!$A$11:$M$146,13,FALSE)-AJ99 -> 5492
AA100: 106 | AB100: Colonial Heights | AC100: 11861314.09 | AD100: 4211 | AE100: 2214880.43 | AF100: 786 | AG100: 18711799.58 | AH100: 6643 | AI100: 35598485.02 | AJ100: 12637 | AK100: =VLOOKUP(AA100,'FY 2024 TABLE 15'!$A$11:$M$146,6,FALSE)-AC100 -> 7343776.176 | AL100: =VLOOKUP(AA100,'FY 2024 TABLE 15'!$A$11:$M$146,7,FALSE)-AD100 -> 2402 | AM100: =VLOOKUP(AA100,'FY 2024 TABLE 15'!$A$11:$M$146,10,FALSE)-AE100 -> 1722409.77 | AN100: =VLOOKUP(AA100,'FY 2024 TABLE 15'!$A$11:$M$146,11,FALSE)-AF100 -> 570 | AO100: =VLOOKUP(AA100,'FY 2024 TABLE 15'!$A$11:$M$146,4,FALSE)-AG100 -> 5280276.91 | AP100: =VLOOKUP(AA100,'FY 2024 TABLE 15'!$A$11:$M$146,5,FALSE)-AH100 -> 1619 | AQ100: =VLOOKUP(AA100,'FY 2024 TABLE 15'!$A$11:$M$146,12,FALSE)-AI100 -> 15247579.54 | AR100: =VLOOKUP(AA100,'FY 2024 TABLE 15'!$A$11:$M$146,13,FALSE)-AJ100 -> 4872
AA101: 107 | AB101: Covington | AC101: 5587159.209 | AD101: 5402 | AE101: 979055.03 | AF101: 947 | AG101: 4289280.41 | AH101: 4147 | AI101: 11838299.11 | AJ101: 11446 | AK101: =VLOOKUP(AA101,'FY 2024 TABLE 15'!$A$11:$M$146,6,FALSE)-AC101 -> -5587159.209 | AL101: =VLOOKUP(AA101,'FY 2024 TABLE 15'!$A$11:$M$146,7,FALSE)-AD101 -> -5402 | AM101: =VLOOKUP(AA101,'FY 2024 TABLE 15'!$A$11:$M$146,10,FALSE)-AE101 -> -979055.03 | AN101: =VLOOKUP(AA101,'FY 2024 TABLE 15'!$A$11:$M$146,11,FALSE)-AF101 -> -947 | AO101: =VLOOKUP(AA101,'FY 2024 TABLE 15'!$A$11:$M$146,4,FALSE)-AG101 -> -4289280.41 | AP101: =VLOOKUP(AA101,'FY 2024 TABLE 15'!$A$11:$M$146,5,FALSE)-AH101 -> -4147 | AQ101: =VLOOKUP(AA101,'FY 2024 TABLE 15'!$A$11:$M$146,12,FALSE)-AI101 -> -11838299.11 | AR101: =VLOOKUP(AA101,'FY 2024 TABLE 15'!$A$11:$M$146,13,FALSE)-AJ101 -> -11446
AA102: 108 | AB102: Danville | AC102: 33897343.57 | AD102: 5795 | AE102: 9850415.67 | AF102: 1684 | AG102: 17558530.38 | AH102: 3002 | AI102: 67880494.58 | AJ102: 11605 | AK102: =VLOOKUP(AA102,'FY 2024 TABLE 15'!$A$11:$M$146,6,FALSE)-AC102 -> 17338402.93 | AL102: =VLOOKUP(AA102,'FY 2024 TABLE 15'!$A$11:$M$146,7,FALSE)-AD102 -> 3473 | AM102: =VLOOKUP(AA102,'FY 2024 TABLE 15'!$A$11:$M$146,10,FALSE)-AE102 -> 16213267.63 | AN102: =VLOOKUP(AA102,'FY 2024 TABLE 15'!$A$11:$M$146,11,FALSE)-AF102 -> 3030 | AO102: =VLOOKUP(AA102,'FY 2024 TABLE 15'!$A$11:$M$146,4,FALSE)-AG102 -> 15330427.84 | AP102: =VLOOKUP(AA102,'FY 2024 TABLE 15'!$A$11:$M$146,5,FALSE)-AH102 -> 2947 | AQ102: =VLOOKUP(AA102,'FY 2024 TABLE 15'!$A$11:$M$146,12,FALSE)-AI102 -> 50615978.07 | AR102: =VLOOKUP(AA102,'FY 2024 TABLE 15'!$A$11:$M$146,13,FALSE)-AJ102 -> 9829
AA103: 109 | AB103: Falls Church | AC103: 3757676.183 | AD103: 1402 | AE103: 605577.79 | AF103: 226 | AG103: 42387799.11 | AH103: 15820 | AI103: 49414258.96 | AJ103: 18442 | AK103: =VLOOKUP(AA103,'FY 2024 TABLE 15'!$A$11:$M$146,6,FALSE)-AC103 -> 5500780.047 | AL103: =VLOOKUP(AA103,'FY 2024 TABLE 15'!$A$11:$M$146,7,FALSE)-AD103 -> 2117 | AM103: =VLOOKUP(AA103,'FY 2024 TABLE 15'!$A$11:$M$146,10,FALSE)-AE103 -> 1127011.05 | AN103: =VLOOKUP(AA103,'FY 2024 TABLE 15'!$A$11:$M$146,11,FALSE)-AF103 -> 432 | AO103: =VLOOKUP(AA103,'FY 2024 TABLE 15'!$A$11:$M$146,4,FALSE)-AG103 -> 10953677.23 | AP103: =VLOOKUP(AA103,'FY 2024 TABLE 15'!$A$11:$M$146,5,FALSE)-AH103 -> 4453 | AQ103: =VLOOKUP(AA103,'FY 2024 TABLE 15'!$A$11:$M$146,12,FALSE)-AI103 -> 18375732.07 | AR103: =VLOOKUP(AA103,'FY 2024 TABLE 15'!$A$11:$M$146,13,FALSE)-AJ103 -> 7323
AA104: 110 | AB104: Fredericksburg | AC104: 10693499.95 | AD104: 3016 | AE104: 4809138.89 | AF104: 1356 | AG104: 28778891.18 | AH104: 8116 | AI104: 47862313.94 | AJ104: 13498 | AK104: =VLOOKUP(AA104,'FY 2024 TABLE 15'!$A$11:$M$146,6,FALSE)-AC104 -> 7340444.92 | AL104: =VLOOKUP(AA104,'FY 2024 TABLE 15'!$A$11:$M$146,7,FALSE)-AD104 -> 2152 | AM104: =VLOOKUP(AA104,'FY 2024 TABLE 15'!$A$11:$M$146,10,FALSE)-AE104 -> 7172034.3 | AN104: =VLOOKUP(AA104,'FY 2024 TABLE 15'!$A$11:$M$146,11,FALSE)-AF104 -> 2077 | AO104: =VLOOKUP(AA104,'FY 2024 TABLE 15'!$A$11:$M$146,4,FALSE)-AG104 -> 4251984.74 | AP104: =VLOOKUP(AA104,'FY 2024 TABLE 15'!$A$11:$M$146,5,FALSE)-AH104 -> 1349 | AQ104: =VLOOKUP(AA104,'FY 2024 TABLE 15'!$A$11:$M$146,12,FALSE)-AI104 -> 20025505.3 | AR104: =VLOOKUP(AA104,'FY 2024 TABLE 15'!$A$11:$M$146,13,FALSE)-AJ104 -> 5956
AA105: 111 | AB105: Galax | AC105: 7746070.745 | AD105: 5879 | AE105: 1680489.5 | AF105: 1276 | AG105: 3379271.22 | AH105: 2565 | AI105: 13979085.67 | AJ105: 10610 | AK105: =VLOOKUP(AA105,'FY 2024 TABLE 15'!$A$11:$M$146,6,FALSE)-AC105 -> 4197330.125 | AL105: =VLOOKUP(AA105,'FY 2024 TABLE 15'!$A$11:$M$146,7,FALSE)-AD105 -> 2549 | AM105: =VLOOKUP(AA105,'FY 2024 TABLE 15'!$A$11:$M$146,10,FALSE)-AE105 -> 2148896.04 | AN105: =VLOOKUP(AA105,'FY 2024 TABLE 15'!$A$11:$M$146,11,FALSE)-AF105 -> 1426 | AO105: =VLOOKUP(AA105,'FY 2024 TABLE 15'!$A$11:$M$146,4,FALSE)-AG105 -> 2167877.45 | AP105: =VLOOKUP(AA105,'FY 2024 TABLE 15'!$A$11:$M$146,5,FALSE)-AH105 -> 1350 | AQ105: =VLOOKUP(AA105,'FY 2024 TABLE 15'!$A$11:$M$146,12,FALSE)-AI105 -> 8803008.055 | AR105: =VLOOKUP(AA105,'FY 2024 TABLE 15'!$A$11:$M$146,13,FALSE)-AJ105 -> 5467
AA106: 112 | AB106: Hampton | AC106: 102664550.2 | AD106: 5086 | AE106: 22271849.18 | AF106: 1103 | AG106: 77412219.24 | AH106: 3835 | AI106: 223988031.7 | AJ106: 11097 | AK106: =VLOOKUP(AA106,'FY 2024 TABLE 15'!$A$11:$M$146,6,FALSE)-AC106 -> 42069483.55 | AL106: =VLOOKUP(AA106,'FY 2024 TABLE 15'!$A$11:$M$146,7,FALSE)-AD106 -> 2294 | AM106: =VLOOKUP(AA106,'FY 2024 TABLE 15'!$A$11:$M$146,10,FALSE)-AE106 -> 31443918.39 | AN106: =VLOOKUP(AA106,'FY 2024 TABLE 15'!$A$11:$M$146,11,FALSE)-AF106 -> 1636 | AO106: =VLOOKUP(AA106,'FY 2024 TABLE 15'!$A$11:$M$146,4,FALSE)-AG106 -> 19928308.1 | AP106: =VLOOKUP(AA106,'FY 2024 TABLE 15'!$A$11:$M$146,5,FALSE)-AH106 -> 1128 | AQ106: =VLOOKUP(AA106,'FY 2024 TABLE 15'!$A$11:$M$146,12,FALSE)-AI106 -> 96759361.88 | AR106: =VLOOKUP(AA106,'FY 2024 TABLE 15'!$A$11:$M$146,13,FALSE)-AJ106 -> 5258
AA107: 113 | AB107: Harrisonburg | AC107: 30996313.1 | AD107: 5016 | AE107: 6507760.9 | AF107: 1053 | AG107: 30493719.67 | AH107: 4935 | AI107: 73646642.77 | AJ107: 11918 | AK107: =VLOOKUP(AA107,'FY 2024 TABLE 15'!$A$11:$M$146,6,FALSE)-AC107 -> 23695580.13 | AL107: =VLOOKUP(AA107,'FY 2024 TABLE 15'!$A$11:$M$146,7,FALSE)-AD107 -> 3025 | AM107: =VLOOKUP(AA107,'FY 2024 TABLE 15'!$A$11:$M$146,10,FALSE)-AE107 -> 8453644.45 | AN107: =VLOOKUP(AA107,'FY 2024 TABLE 15'!$A$11:$M$146,11,FALSE)-AF107 -> 1147 | AO107: =VLOOKUP(AA107,'FY 2024 TABLE 15'!$A$11:$M$146,4,FALSE)-AG107 -> 6190022.92 | AP107: =VLOOKUP(AA107,'FY 2024 TABLE 15'!$A$11:$M$146,5,FALSE)-AH107 -> 458 | AQ107: =VLOOKUP(AA107,'FY 2024 TABLE 15'!$A$11:$M$146,12,FALSE)-AI107 -> 41145782.86 | AR107: =VLOOKUP(AA107,'FY 2024 TABLE 15'!$A$11:$M$146,13,FALSE)-AJ107 -> 4959
AA108: 114 | AB108: Hopewell | AC108: 24611556.18 | AD108: 5777 | AE108: 7664022.38 | AF108: 1799 | AG108: 11980160.55 | AH108: 2812 | AI108: 48283505.89 | AJ108: 11333 | AK108: =VLOOKUP(AA108,'FY 2024 TABLE 15'!$A$11:$M$146,6,FALSE)-AC108 -> 12400307.51 | AL108: =VLOOKUP(AA108,'FY 2024 TABLE 15'!$A$11:$M$146,7,FALSE)-AD108 -> 3723 | AM108: =VLOOKUP(AA108,'FY 2024 TABLE 15'!$A$11:$M$146,10,FALSE)-AE108 -> 5844778.31 | AN108: =VLOOKUP(AA108,'FY 2024 TABLE 15'!$A$11:$M$146,11,FALSE)-AF108 -> 1668 | AO108: =VLOOKUP(AA108,'FY 2024 TABLE 15'!$A$11:$M$146,4,FALSE)-AG108 -> 1525091.28 | AP108: =VLOOKUP(AA108,'FY 2024 TABLE 15'!$A$11:$M$146,5,FALSE)-AH108 -> 654 | AQ108: =VLOOKUP(AA108,'FY 2024 TABLE 15'!$A$11:$M$146,12,FALSE)-AI108 -> 20765892.7 | AR108: =VLOOKUP(AA108,'FY 2024 TABLE 15'!$A$11:$M$146,13,FALSE)-AJ108 -> 6390
AA109: 115 | AB109: Lynchburg | AC109: 41175063.95 | AD109: 4903 | AE109: 14045328.33 | AF109: 1673 | AG109: 42355946.34 | AH109: 5044 | AI109: 108166982.9 | AJ109: 12881 | AK109: =VLOOKUP(AA109,'FY 2024 TABLE 15'!$A$11:$M$146,6,FALSE)-AC109 -> 15109123.58 | AL109: =VLOOKUP(AA109,'FY 2024 TABLE 15'!$A$11:$M$146,7,FALSE)-AD109 -> 2438 | AM109: =VLOOKUP(AA109,'FY 2024 TABLE 15'!$A$11:$M$146,10,FALSE)-AE109 -> 18130169.66 | AN109: =VLOOKUP(AA109,'FY 2024 TABLE 15'!$A$11:$M$146,11,FALSE)-AF109 -> 2523 | AO109: =VLOOKUP(AA109,'FY 2024 TABLE 15'!$A$11:$M$146,4,FALSE)-AG109 -> -5570759.89 | AP109: =VLOOKUP(AA109,'FY 2024 TABLE 15'!$A$11:$M$146,5,FALSE)-AH109 -> -246 | AQ109: =VLOOKUP(AA109,'FY 2024 TABLE 15'!$A$11:$M$146,12,FALSE)-AI109 -> 30029785.79 | AR109: =VLOOKUP(AA109,'FY 2024 TABLE 15'!$A$11:$M$146,13,FALSE)-AJ109 -> 5143
AA110: 116 | AB110: Martinsville | AC110: 12651333.76 | AD110: 6236 | AE110: 2911063.54 | AF110: 1435 | AG110: 7456677.45 | AH110: 3676 | AI110: 25195087.33 | AJ110: 12419 | AK110: =VLOOKUP(AA110,'FY 2024 TABLE 15'!$A$11:$M$146,6,FALSE)-AC110 -> 5940232.74 | AL110: =VLOOKUP(AA110,'FY 2024 TABLE 15'!$A$11:$M$146,7,FALSE)-AD110 -> 4016 | AM110: =VLOOKUP(AA110,'FY 2024 TABLE 15'!$A$11:$M$146,10,FALSE)-AE110 -> 5377722.45 | AN110: =VLOOKUP(AA110,'FY 2024 TABLE 15'!$A$11:$M$146,11,FALSE)-AF110 -> 3136 | AO110: =VLOOKUP(AA110,'FY 2024 TABLE 15'!$A$11:$M$146,4,FALSE)-AG110 -> -970583.16 | AP110: =VLOOKUP(AA110,'FY 2024 TABLE 15'!$A$11:$M$146,5,FALSE)-AH110 -> -99 | AQ110: =VLOOKUP(AA110,'FY 2024 TABLE 15'!$A$11:$M$146,12,FALSE)-AI110 -> 10829933.51 | AR110: =VLOOKUP(AA110,'FY 2024 TABLE 15'!$A$11:$M$146,13,FALSE)-AJ110 -> 7447
AA111: 117 | AB111: Newport News | AC111: 152974056 | AD111: 5333 | AE111: 40643471 | AF111: 1417 | AG111: 109643046.1 | AH111: 3823 | AI111: 332724129.8 | AJ111: 11600 | AK111: =VLOOKUP(AA111,'FY 2024 TABLE 15'!$A$11:$M$146,6,FALSE)-AC111 -> 72071328.73 | AL111: =VLOOKUP(AA111,'FY 2024 TABLE 15'!$A$11:$M$146,7,FALSE)-AD111 -> 3311 | AM111: =VLOOKUP(AA111,'FY 2024 TABLE 15'!$A$11:$M$146,10,FALSE)-AE111 -> 66714331.83 | AN111: =VLOOKUP(AA111,'FY 2024 TABLE 15'!$A$11:$M$146,11,FALSE)-AF111 -> 2706 | AO111: =VLOOKUP(AA111,'FY 2024 TABLE 15'!$A$11:$M$146,4,FALSE)-AG111 -> 22514714.09 | AP111: =VLOOKUP(AA111,'FY 2024 TABLE 15'!$A$11:$M$146,5,FALSE)-AH111 -> 1253 | AQ111: =VLOOKUP(AA111,'FY 2024 TABLE 15'!$A$11:$M$146,12,FALSE)-AI111 -> 167479288.7 | AR111: =VLOOKUP(AA111,'FY 2024 TABLE 15'!$A$11:$M$146,13,FALSE)-AJ111 -> 7612
AA112: 118 | AB112: Norfolk | AC112: 156384851.3 | AD112: 5039 | AE112: 54637415.39 | AF112: 1761 | AG112: 119161995.5 | AH112: 3840 | AI112: 362654116.8 | AJ112: 11686 | AK112: =VLOOKUP(AA112,'FY 2024 TABLE 15'!$A$11:$M$146,6,FALSE)-AC112 -> 53848048.89 | AL112: =VLOOKUP(AA112,'FY 2024 TABLE 15'!$A$11:$M$146,7,FALSE)-AD112 -> 2792 | AM112: =VLOOKUP(AA112,'FY 2024 TABLE 15'!$A$11:$M$146,10,FALSE)-AE112 -> 36747970.09 | AN112: =VLOOKUP(AA112,'FY 2024 TABLE 15'!$A$11:$M$146,11,FALSE)-AF112 -> 1643 | AO112: =VLOOKUP(AA112,'FY 2024 TABLE 15'!$A$11:$M$146,4,FALSE)-AG112 -> 6948610.18 | AP112: =VLOOKUP(AA112,'FY 2024 TABLE 15'!$A$11:$M$146,5,FALSE)-AH112 -> 858 | AQ112: =VLOOKUP(AA112,'FY 2024 TABLE 15'!$A$11:$M$146,12,FALSE)-AI112 -> 102446407.2 | AR112: =VLOOKUP(AA112,'FY 2024 TABLE 15'!$A$11:$M$146,13,FALSE)-AJ112 -> 5639
AA113: 119 | AB113: Norton | AC113: 4324492.546 | AD113: 5442 | AE113: 730954.98 | AF113: 920 | AG113: 1776995.62 | AH113: 2236 | AI113: 7549429.486 | AJ113: 9500 | AK113: =VLOOKUP(AA113,'FY 2024 TABLE 15'!$A$11:$M$146,6,FALSE)-AC113 -> 2717508.754 | AL113: =VLOOKUP(AA113,'FY 2024 TABLE 15'!$A$11:$M$146,7,FALSE)-AD113 -> 3185 | AM113: =VLOOKUP(AA113,'FY 2024 TABLE 15'!$A$11:$M$146,10,FALSE)-AE113 -> 1608808.97 | AN113: =VLOOKUP(AA113,'FY 2024 TABLE 15'!$A$11:$M$146,11,FALSE)-AF113 -> 1946 | AO113: =VLOOKUP(AA113,'FY 2024 TABLE 15'!$A$11:$M$146,4,FALSE)-AG113 -> 1239097.71 | AP113: =VLOOKUP(AA113,'FY 2024 TABLE 15'!$A$11:$M$146,5,FALSE)-AH113 -> 1459 | AQ113: =VLOOKUP(AA113,'FY 2024 TABLE 15'!$A$11:$M$146,12,FALSE)-AI113 -> 5737940.594 | AR113: =VLOOKUP(AA113,'FY 2024 TABLE 15'!$A$11:$M$146,13,FALSE)-AJ113 -> 6778
AA114: 120 | AB114: Petersburg | AC114: 27229219.79 | AD114: 6449 | AE114: 11305330.1 | AF114: 2678 | AG114: 9090747.69 | AH114: 2153 | AI114: 52058299.84 | AJ114: 12329 | AK114: =VLOOKUP(AA114,'FY 2024 TABLE 15'!$A$11:$M$146,6,FALSE)-AC114 -> 13616982.47 | AL114: =VLOOKUP(AA114,'FY 2024 TABLE 15'!$A$11:$M$146,7,FALSE)-AD114 -> 2627 | AM114: =VLOOKUP(AA114,'FY 2024 TABLE 15'!$A$11:$M$146,10,FALSE)-AE114 -> 5020694.08 | AN114: =VLOOKUP(AA114,'FY 2024 TABLE 15'!$A$11:$M$146,11,FALSE)-AF114 -> 950 | AO114: =VLOOKUP(AA114,'FY 2024 TABLE 15'!$A$11:$M$146,4,FALSE)-AG114 -> 8394852.2 | AP114: =VLOOKUP(AA114,'FY 2024 TABLE 15'!$A$11:$M$146,5,FALSE)-AH114 -> 1732 | AQ114: =VLOOKUP(AA114,'FY 2024 TABLE 15'!$A$11:$M$146,12,FALSE)-AI114 -> 27697232.21 | AR114: =VLOOKUP(AA114,'FY 2024 TABLE 15'!$A$11:$M$146,13,FALSE)-AJ114 -> 5392
AA115: 121 | AB115: Portsmouth | AC115: 76470001.39 | AD115: 5319 | AE115: 21067966.26 | AF115: 1465 | AG115: 48759549.36 | AH115: 3391 | AI115: 161458948.4 | AJ115: 11230 | AK115: =VLOOKUP(AA115,'FY 2024 TABLE 15'!$A$11:$M$146,6,FALSE)-AC115 -> 36986823.83 | AL115: =VLOOKUP(AA115,'FY 2024 TABLE 15'!$A$11:$M$146,7,FALSE)-AD115 -> 3510 | AM115: =VLOOKUP(AA115,'FY 2024 TABLE 15'!$A$11:$M$146,10,FALSE)-AE115 -> 32421495.58 | AN115: =VLOOKUP(AA115,'FY 2024 TABLE 15'!$A$11:$M$146,11,FALSE)-AF115 -> 2698 | AO115: =VLOOKUP(AA115,'FY 2024 TABLE 15'!$A$11:$M$146,4,FALSE)-AG115 -> -8365564.73 | AP115: =VLOOKUP(AA115,'FY 2024 TABLE 15'!$A$11:$M$146,5,FALSE)-AH115 -> -247 | AQ115: =VLOOKUP(AA115,'FY 2024 TABLE 15'!$A$11:$M$146,12,FALSE)-AI115 -> 64483152 | AR115: =VLOOKUP(AA115,'FY 2024 TABLE 15'!$A$11:$M$146,13,FALSE)-AJ115 -> 6353
AA116: 122 | AB116: Radford | AC116: 8495083.173 | AD116: 5159 | AE116: 1572187.35 | AF116: 955 | AG116: 5217525.74 | AH116: 3169 | AI116: 16922073.64 | AJ116: 10277 | AK116: =VLOOKUP(AA116,'FY 2024 TABLE 15'!$A$11:$M$146,6,FALSE)-AC116 -> 13775969.84 | AL116: =VLOOKUP(AA116,'FY 2024 TABLE 15'!$A$11:$M$146,7,FALSE)-AD116 -> 1830 | AM116: =VLOOKUP(AA116,'FY 2024 TABLE 15'!$A$11:$M$146,10,FALSE)-AE116 -> 1396308.41 | AN116: =VLOOKUP(AA116,'FY 2024 TABLE 15'!$A$11:$M$146,11,FALSE)-AF116 -> -23 | AO116: =VLOOKUP(AA116,'FY 2024 TABLE 15'!$A$11:$M$146,4,FALSE)-AG116 -> 4035375.75 | AP116: =VLOOKUP(AA116,'FY 2024 TABLE 15'!$A$11:$M$146,5,FALSE)-AH116 -> -265 | AQ116: =VLOOKUP(AA116,'FY 2024 TABLE 15'!$A$11:$M$146,12,FALSE)-AI116 -> 19703393.7 | AR116: =VLOOKUP(AA116,'FY 2024 TABLE 15'!$A$11:$M$146,13,FALSE)-AJ116 -> 1217
AA117: 123 | AB117: Richmond | AC117: 111187575.4 | AD117: 4499 | AE117: 59261944.93 | AF117: 2398 | AG117: 139252046.8 | AH117: 5635 | AI117: 335290809.5 | AJ117: 13567 | AK117: =VLOOKUP(AA117,'FY 2024 TABLE 15'!$A$11:$M$146,6,FALSE)-AC117 -> 22438581.78 | AL117: =VLOOKUP(AA117,'FY 2024 TABLE 15'!$A$11:$M$146,7,FALSE)-AD117 -> 1810 | AM117: =VLOOKUP(AA117,'FY 2024 TABLE 15'!$A$11:$M$146,10,FALSE)-AE117 -> 43110966.66 | AN117: =VLOOKUP(AA117,'FY 2024 TABLE 15'!$A$11:$M$146,11,FALSE)-AF117 -> 2435 | AO117: =VLOOKUP(AA117,'FY 2024 TABLE 15'!$A$11:$M$146,4,FALSE)-AG117 -> 82342389.89 | AP117: =VLOOKUP(AA117,'FY 2024 TABLE 15'!$A$11:$M$146,5,FALSE)-AH117 -> 4827 | AQ117: =VLOOKUP(AA117,'FY 2024 TABLE 15'!$A$11:$M$146,12,FALSE)-AI117 -> 153585094.6 | AR117: =VLOOKUP(AA117,'FY 2024 TABLE 15'!$A$11:$M$146,13,FALSE)-AJ117 -> 9514
AA118: 124 | AB118: Roanoke | AC118: 73884232.42 | AD118: 5437 | AE118: 23474746.59 | AF118: 1727 | AG118: 65481876.41 | AH118: 4818 | AI118: 177534644.1 | AJ118: 13064 | AK118: =VLOOKUP(AA118,'FY 2024 TABLE 15'!$A$11:$M$146,6,FALSE)-AC118 -> 41910736.76 | AL118: =VLOOKUP(AA118,'FY 2024 TABLE 15'!$A$11:$M$146,7,FALSE)-AD118 -> 3071 | AM118: =VLOOKUP(AA118,'FY 2024 TABLE 15'!$A$11:$M$146,10,FALSE)-AE118 -> 17979886.01 | AN118: =VLOOKUP(AA118,'FY 2024 TABLE 15'!$A$11:$M$146,11,FALSE)-AF118 -> 1319 | AO118: =VLOOKUP(AA118,'FY 2024 TABLE 15'!$A$11:$M$146,4,FALSE)-AG118 -> 24833602.72 | AP118: =VLOOKUP(AA118,'FY 2024 TABLE 15'!$A$11:$M$146,5,FALSE)-AH118 -> 1818 | AQ118: =VLOOKUP(AA118,'FY 2024 TABLE 15'!$A$11:$M$146,12,FALSE)-AI118 -> 88724212.97 | AR118: =VLOOKUP(AA118,'FY 2024 TABLE 15'!$A$11:$M$146,13,FALSE)-AJ118 -> 6500
AA119: 126 | AB119: Staunton | AC119: 11826593.49 | AD119: 4487 | AE119: 2623986.87 | AF119: 996 | AG119: 11928747.62 | AH119: 4526 | AI119: 29735759.14 | AJ119: 11282 | AK119: =VLOOKUP(AA119,'FY 2024 TABLE 15'!$A$11:$M$146,6,FALSE)-AC119 -> 5586324.538 | AL119: =VLOOKUP(AA119,'FY 2024 TABLE 15'!$A$11:$M$146,7,FALSE)-AD119 -> 2067 | AM119: =VLOOKUP(AA119,'FY 2024 TABLE 15'!$A$11:$M$146,10,FALSE)-AE119 -> 2622899.72 | AN119: =VLOOKUP(AA119,'FY 2024 TABLE 15'!$A$11:$M$146,11,FALSE)-AF119 -> 979 | AO119: =VLOOKUP(AA119,'FY 2024 TABLE 15'!$A$11:$M$146,4,FALSE)-AG119 -> 6199038.33 | AP119: =VLOOKUP(AA119,'FY 2024 TABLE 15'!$A$11:$M$146,5,FALSE)-AH119 -> 2297 | AQ119: =VLOOKUP(AA119,'FY 2024 TABLE 15'!$A$11:$M$146,12,FALSE)-AI119 -> 15316797.31 | AR119: =VLOOKUP(AA119,'FY 2024 TABLE 15'!$A$11:$M$146,13,FALSE)-AJ119 -> 5674
AA120: 127 | AB120: Suffolk | AC120: 63911547.2 | AD120: 4483 | AE120: 13019745 | AF120: 913 | AG120: 56434452.59 | AH120: 3958 | AI120: 149802421.6 | AJ120: 10507 | AK120: =VLOOKUP(AA120,'FY 2024 TABLE 15'!$A$11:$M$146,6,FALSE)-AC120 -> 34130721.45 | AL120: =VLOOKUP(AA120,'FY 2024 TABLE 15'!$A$11:$M$146,7,FALSE)-AD120 -> 2310 | AM120: =VLOOKUP(AA120,'FY 2024 TABLE 15'!$A$11:$M$146,10,FALSE)-AE120 -> 20522393.28 | AN120: =VLOOKUP(AA120,'FY 2024 TABLE 15'!$A$11:$M$146,11,FALSE)-AF120 -> 1411 | AO120: =VLOOKUP(AA120,'FY 2024 TABLE 15'!$A$11:$M$146,4,FALSE)-AG120 -> 20296091.08 | AP120: =VLOOKUP(AA120,'FY 2024 TABLE 15'!$A$11:$M$146,5,FALSE)-AH120 -> 1359 | AQ120: =VLOOKUP(AA120,'FY 2024 TABLE 15'!$A$11:$M$146,12,FALSE)-AI120 -> 78949172.18 | AR120: =VLOOKUP(AA120,'FY 2024 TABLE 15'!$A$11:$M$146,13,FALSE)-AJ120 -> 5343
AA121: 128 | AB121: Virginia Beach | AC121: 273961598.8 | AD121: 3986 | AE121: 61505842.95 | AF121: 895 | AG121: 382406115.9 | AH121: 5563 | AI121: 790958120.3 | AJ121: 11507 | AK121: =VLOOKUP(AA121,'FY 2024 TABLE 15'!$A$11:$M$146,6,FALSE)-AC121 -> 96585983.54 | AL121: =VLOOKUP(AA121,'FY 2024 TABLE 15'!$A$11:$M$146,7,FALSE)-AD121 -> 1736 | AM121: =VLOOKUP(AA121,'FY 2024 TABLE 15'!$A$11:$M$146,10,FALSE)-AE121 -> 51885445.34 | AN121: =VLOOKUP(AA121,'FY 2024 TABLE 15'!$A$11:$M$146,11,FALSE)-AF121 -> 856 | AO121: =VLOOKUP(AA121,'FY 2024 TABLE 15'!$A$11:$M$146,4,FALSE)-AG121 -> 99511744.84 | AP121: =VLOOKUP(AA121,'FY 2024 TABLE 15'!$A$11:$M$146,5,FALSE)-AH121 -> 1879 | AQ121: =VLOOKUP(AA121,'FY 2024 TABLE 15'!$A$11:$M$146,12,FALSE)-AI121 -> 265576713.7 | AR121: =VLOOKUP(AA121,'FY 2024 TABLE 15'!$A$11:$M$146,13,FALSE)-AJ121 -> 4809
AA122: 130 | AB122: Waynesboro | AC122: 14121166.94 | AD122: 4493 | AE122: 3520100.03 | AF122: 1120 | AG122: 15689983.04 | AH122: 4992 | AI122: 36795251.57 | AJ122: 11706 | AK122: =VLOOKUP(AA122,'FY 2024 TABLE 15'!$A$11:$M$146,6,FALSE)-AC122 -> 4986716.895 | AL122: =VLOOKUP(AA122,'FY 2024 TABLE 15'!$A$11:$M$146,7,FALSE)-AD122 -> 1880 | AM122: =VLOOKUP(AA122,'FY 2024 TABLE 15'!$A$11:$M$146,10,FALSE)-AE122 -> 2958031.08 | AN122: =VLOOKUP(AA122,'FY 2024 TABLE 15'!$A$11:$M$146,11,FALSE)-AF122 -> 1041 | AO122: =VLOOKUP(AA122,'FY 2024 TABLE 15'!$A$11:$M$146,4,FALSE)-AG122 -> 9073779.85 | AP122: =VLOOKUP(AA122,'FY 2024 TABLE 15'!$A$11:$M$146,5,FALSE)-AH122 -> 3268 | AQ122: =VLOOKUP(AA122,'FY 2024 TABLE 15'!$A$11:$M$146,12,FALSE)-AI122 -> 17823121.53 | AR122: =VLOOKUP(AA122,'FY 2024 TABLE 15'!$A$11:$M$146,13,FALSE)-AJ122 -> 6512
AA123: 131 | AB123: Williamsburg 6 | AC123: 32786894.76 | AD123: 2722 | AE123: 6232042.13 | AF123: 517 | AG123: 84955022.88 | AH123: 7052 | AI123: 136623929.1 | AJ123: 11341 | AK123: =VLOOKUP(AA123,'FY 2024 TABLE 15'!$A$11:$M$146,6,FALSE)-AC123 -> 22586265.01 | AL123: =VLOOKUP(AA123,'FY 2024 TABLE 15'!$A$11:$M$146,7,FALSE)-AD123 -> 2063 | AM123: =VLOOKUP(AA123,'FY 2024 TABLE 15'!$A$11:$M$146,10,FALSE)-AE123 -> 7651512.28 | AN123: =VLOOKUP(AA123,'FY 2024 TABLE 15'!$A$11:$M$146,11,FALSE)-AF123 -> 683 | AO123: =VLOOKUP(AA123,'FY 2024 TABLE 15'!$A$11:$M$146,4,FALSE)-AG123 -> 12545742.01 | AP123: =VLOOKUP(AA123,'FY 2024 TABLE 15'!$A$11:$M$146,5,FALSE)-AH123 -> 1373 | AQ123: =VLOOKUP(AA123,'FY 2024 TABLE 15'!$A$11:$M$146,12,FALSE)-AI123 -> 46500429.09 | AR123: =VLOOKUP(AA123,'FY 2024 TABLE 15'!$A$11:$M$146,13,FALSE)-AJ123 -> 4483
AA124: 132 | AB124: Winchester | AC124: 19742874.75 | AD124: 4447 | AE124: 4681155.7 | AF124: 1054 | AG124: 29280490.5 | AH124: 6595 | AI124: 57969815.16 | AJ124: 13057 | AK124: =VLOOKUP(AA124,'FY 2024 TABLE 15'!$A$11:$M$146,6,FALSE)-AC124 -> 10464074.62 | AL124: =VLOOKUP(AA124,'FY 2024 TABLE 15'!$A$11:$M$146,7,FALSE)-AD124 -> 2734 | AM124: =VLOOKUP(AA124,'FY 2024 TABLE 15'!$A$11:$M$146,10,FALSE)-AE124 -> 8699745.54 | AN124: =VLOOKUP(AA124,'FY 2024 TABLE 15'!$A$11:$M$146,11,FALSE)-AF124 -> 2127 | AO124: =VLOOKUP(AA124,'FY 2024 TABLE 15'!$A$11:$M$146,4,FALSE)-AG124 -> 6372184.96 | AP124: =VLOOKUP(AA124,'FY 2024 TABLE 15'!$A$11:$M$146,5,FALSE)-AH124 -> 1880 | AQ124: =VLOOKUP(AA124,'FY 2024 TABLE 15'!$A$11:$M$146,12,FALSE)-AI124 -> 26587503.57 | AR124: =VLOOKUP(AA124,'FY 2024 TABLE 15'!$A$11:$M$146,13,FALSE)-AJ124 -> 7044
AA125: 135 | AB125: Franklin | AC125: 7171398.411 | AD125: 6323 | AE125: 2494113.62 | AF125: 2199 | AG125: 4244238.71 | AH125: 3742 | AI125: 15348311.98 | AJ125: 13533 | AK125: =VLOOKUP(AA125,'FY 2024 TABLE 15'!$A$11:$M$146,6,FALSE)-AC125 -> 5084516.799 | AL125: =VLOOKUP(AA125,'FY 2024 TABLE 15'!$A$11:$M$146,7,FALSE)-AD125 -> 5475 | AM125: =VLOOKUP(AA125,'FY 2024 TABLE 15'!$A$11:$M$146,10,FALSE)-AE125 -> 589834.9 | AN125: =VLOOKUP(AA125,'FY 2024 TABLE 15'!$A$11:$M$146,11,FALSE)-AF125 -> 770 | AO125: =VLOOKUP(AA125,'FY 2024 TABLE 15'!$A$11:$M$146,4,FALSE)-AG125 -> 289952.68 | AP125: =VLOOKUP(AA125,'FY 2024 TABLE 15'!$A$11:$M$146,5,FALSE)-AH125 -> 623 | AQ125: =VLOOKUP(AA125,'FY 2024 TABLE 15'!$A$11:$M$146,12,FALSE)-AI125 -> 6193420.839 | AR125: =VLOOKUP(AA125,'FY 2024 TABLE 15'!$A$11:$M$146,13,FALSE)-AJ125 -> 7203
AA126: 136 | AB126: Chesapeake | AC126: 183536696.8 | AD126: 4553 | AE126: 29727966.73 | AF126: 738 | AG126: 197636878.8 | AH126: 4903 | AI126: 454065932.3 | AJ126: 11265 | AK126: =VLOOKUP(AA126,'FY 2024 TABLE 15'!$A$11:$M$146,6,FALSE)-AC126 -> 84717566.29 | AL126: =VLOOKUP(AA126,'FY 2024 TABLE 15'!$A$11:$M$146,7,FALSE)-AD126 -> 2047 | AM126: =VLOOKUP(AA126,'FY 2024 TABLE 15'!$A$11:$M$146,10,FALSE)-AE126 -> 39236970.19 | AN126: =VLOOKUP(AA126,'FY 2024 TABLE 15'!$A$11:$M$146,11,FALSE)-AF126 -> 959 | AO126: =VLOOKUP(AA126,'FY 2024 TABLE 15'!$A$11:$M$146,4,FALSE)-AG126 -> 73477352.27 | AP126: =VLOOKUP(AA126,'FY 2024 TABLE 15'!$A$11:$M$146,5,FALSE)-AH126 -> 1768 | AQ126: =VLOOKUP(AA126,'FY 2024 TABLE 15'!$A$11:$M$146,12,FALSE)-AI126 -> 210444592.2 | AR126: =VLOOKUP(AA126,'FY 2024 TABLE 15'!$A$11:$M$146,13,FALSE)-AJ126 -> 5085
AA127: 137 | AB127: Lexington | AC127: 2621527.35 | AD127: 3892 | AE127: 310471.86 | AF127: 461 | AG127: 3146867.3 | AH127: 4672 | AI127: 6713352.35 | AJ127: 9968 | AK127: =VLOOKUP(AA127,'FY 2024 TABLE 15'!$A$11:$M$146,6,FALSE)-AC127 -> 1275335.78 | AL127: =VLOOKUP(AA127,'FY 2024 TABLE 15'!$A$11:$M$146,7,FALSE)-AD127 -> 2105 | AM127: =VLOOKUP(AA127,'FY 2024 TABLE 15'!$A$11:$M$146,10,FALSE)-AE127 -> 183376.57 | AN127: =VLOOKUP(AA127,'FY 2024 TABLE 15'!$A$11:$M$146,11,FALSE)-AF127 -> 299 | AO127: =VLOOKUP(AA127,'FY 2024 TABLE 15'!$A$11:$M$146,4,FALSE)-AG127 -> 870947.54 | AP127: =VLOOKUP(AA127,'FY 2024 TABLE 15'!$A$11:$M$146,5,FALSE)-AH127 -> 1511 | AQ127: =VLOOKUP(AA127,'FY 2024 TABLE 15'!$A$11:$M$146,12,FALSE)-AI127 -> 2503470.71 | AR127: =VLOOKUP(AA127,'FY 2024 TABLE 15'!$A$11:$M$146,13,FALSE)-AJ127 -> 4216
AA128: 139 | AB128: Salem | AC128: 16228670.58 | AD128: 4213 | AE128: 2463264.55 | AF128: 640 | AG128: 19989910.25 | AH128: 5190 | AI128: 42434859.64 | AJ128: 11017 | AK128: =VLOOKUP(AA128,'FY 2024 TABLE 15'!$A$11:$M$146,6,FALSE)-AC128 -> 10783821.28 | AL128: =VLOOKUP(AA128,'FY 2024 TABLE 15'!$A$11:$M$146,7,FALSE)-AD128 -> 2110 | AM128: =VLOOKUP(AA128,'FY 2024 TABLE 15'!$A$11:$M$146,10,FALSE)-AE128 -> 2617495.36 | AN128: =VLOOKUP(AA128,'FY 2024 TABLE 15'!$A$11:$M$146,11,FALSE)-AF128 -> 549 | AO128: =VLOOKUP(AA128,'FY 2024 TABLE 15'!$A$11:$M$146,4,FALSE)-AG128 -> 4777582.15 | AP128: =VLOOKUP(AA128,'FY 2024 TABLE 15'!$A$11:$M$146,5,FALSE)-AH128 -> 608 | AQ128: =VLOOKUP(AA128,'FY 2024 TABLE 15'!$A$11:$M$146,12,FALSE)-AI128 -> 19026821.53 | AR128: =VLOOKUP(AA128,'FY 2024 TABLE 15'!$A$11:$M$146,13,FALSE)-AJ128 -> 3370
AA129: 142 | AB129: Poquoson | AC129: 8561782.861 | AD129: 4141 | AE129: 1087959.63 | AF129: 526 | AG129: 10582539.15 | AH129: 5118 | AI129: 22517125.78 | AJ129: 10890 | AK129: =VLOOKUP(AA129,'FY 2024 TABLE 15'!$A$11:$M$146,6,FALSE)-AC129 -> 2956429.849 | AL129: =VLOOKUP(AA129,'FY 2024 TABLE 15'!$A$11:$M$146,7,FALSE)-AD129 -> 1557 | AM129: =VLOOKUP(AA129,'FY 2024 TABLE 15'!$A$11:$M$146,10,FALSE)-AE129 -> 437780.05 | AN129: =VLOOKUP(AA129,'FY 2024 TABLE 15'!$A$11:$M$146,11,FALSE)-AF129 -> 229 | AO129: =VLOOKUP(AA129,'FY 2024 TABLE 15'!$A$11:$M$146,4,FALSE)-AG129 -> 1988923.79 | AP129: =VLOOKUP(AA129,'FY 2024 TABLE 15'!$A$11:$M$146,5,FALSE)-AH129 -> 1101 | AQ129: =VLOOKUP(AA129,'FY 2024 TABLE 15'!$A$11:$M$146,12,FALSE)-AI129 -> 5950027.649 | AR129: =VLOOKUP(AA129,'FY 2024 TABLE 15'!$A$11:$M$146,13,FALSE)-AJ129 -> 3192
AA130: 143 | AB130: Manassas | AC130: 41128334.02 | AD130: 5316 | AE130: 6221540.41 | AF130: 804 | AG130: 46794723.23 | AH130: 6048 | AI130: 101769179.2 | AJ130: 13154 | AK130: =VLOOKUP(AA130,'FY 2024 TABLE 15'!$A$11:$M$146,6,FALSE)-AC130 -> 22085855.54 | AL130: =VLOOKUP(AA130,'FY 2024 TABLE 15'!$A$11:$M$146,7,FALSE)-AD130 -> 3090 | AM130: =VLOOKUP(AA130,'FY 2024 TABLE 15'!$A$11:$M$146,10,FALSE)-AE130 -> 3990534.12 | AN130: =VLOOKUP(AA130,'FY 2024 TABLE 15'!$A$11:$M$146,11,FALSE)-AF130 -> 554 | AO130: =VLOOKUP(AA130,'FY 2024 TABLE 15'!$A$11:$M$146,4,FALSE)-AG130 -> 9939010.75 | AP130: =VLOOKUP(AA130,'FY 2024 TABLE 15'!$A$11:$M$146,5,FALSE)-AH130 -> 1497 | AQ130: =VLOOKUP(AA130,'FY 2024 TABLE 15'!$A$11:$M$146,12,FALSE)-AI130 -> 37961871.25 | AR130: =VLOOKUP(AA130,'FY 2024 TABLE 15'!$A$11:$M$146,13,FALSE)-AJ130 -> 5428
AA131: 144 | AB131: Manassas Park | AC131: 22353730.76 | AD131: 6167 | AE131: 2804297.26 | AF131: 774 | AG131: 11635150.62 | AH131: 3210 | AI131: 39767725.12 | AJ131: 10971 | AK131: =VLOOKUP(AA131,'FY 2024 TABLE 15'!$A$11:$M$146,6,FALSE)-AC131 -> 8675042.612 | AL131: =VLOOKUP(AA131,'FY 2024 TABLE 15'!$A$11:$M$146,7,FALSE)-AD131 -> 2894 | AM131: =VLOOKUP(AA131,'FY 2024 TABLE 15'!$A$11:$M$146,10,FALSE)-AE131 -> 2217407.98 | AN131: =VLOOKUP(AA131,'FY 2024 TABLE 15'!$A$11:$M$146,11,FALSE)-AF131 -> 692 | AO131: =VLOOKUP(AA131,'FY 2024 TABLE 15'!$A$11:$M$146,4,FALSE)-AG131 -> 3590651.01 | AP131: =VLOOKUP(AA131,'FY 2024 TABLE 15'!$A$11:$M$146,5,FALSE)-AH131 -> 1236 | AQ131: =VLOOKUP(AA131,'FY 2024 TABLE 15'!$A$11:$M$146,12,FALSE)-AI131 -> 15590719.56 | AR131: =VLOOKUP(AA131,'FY 2024 TABLE 15'!$A$11:$M$146,13,FALSE)-AJ131 -> 5194
AA132: 202 | AB132: Colonial Beach | AC132: 3311957.389 | AD132: 5585 | AE132: 767442.96 | AF132: 1294 | AG132: 3680650.98 | AH132: 6207 | AI132: 8267126.739 | AJ132: 13941 | AK132: =VLOOKUP(AA132,'FY 2024 TABLE 15'!$A$11:$M$146,6,FALSE)-AC132 -> 2489429.861 | AL132: =VLOOKUP(AA132,'FY 2024 TABLE 15'!$A$11:$M$146,7,FALSE)-AD132 -> 4116 | AM132: =VLOOKUP(AA132,'FY 2024 TABLE 15'!$A$11:$M$146,10,FALSE)-AE132 -> 819178.2 | AN132: =VLOOKUP(AA132,'FY 2024 TABLE 15'!$A$11:$M$146,11,FALSE)-AF132 -> 1359 | AO132: =VLOOKUP(AA132,'FY 2024 TABLE 15'!$A$11:$M$146,4,FALSE)-AG132 -> -895275.22 | AP132: =VLOOKUP(AA132,'FY 2024 TABLE 15'!$A$11:$M$146,5,FALSE)-AH132 -> -1549 | AQ132: =VLOOKUP(AA132,'FY 2024 TABLE 15'!$A$11:$M$146,12,FALSE)-AI132 -> 2606003.161 | AR132: =VLOOKUP(AA132,'FY 2024 TABLE 15'!$A$11:$M$146,13,FALSE)-AJ132 -> 4240
AA133: 207 | AB133: West Point | AC133: 4471600.56 | AD133: 5648 | AE133: 389565.38 | AF133: 492 | AG133: 4347146.22 | AH133: 5491 | AI133: 9883379.48 | AJ133: 12484 | AK133: =VLOOKUP(AA133,'FY 2024 TABLE 15'!$A$11:$M$146,6,FALSE)-AC133 -> 2539969.64 | AL133: =VLOOKUP(AA133,'FY 2024 TABLE 15'!$A$11:$M$146,7,FALSE)-AD133 -> 2674 | AM133: =VLOOKUP(AA133,'FY 2024 TABLE 15'!$A$11:$M$146,10,FALSE)-AE133 -> 213137.86 | AN133: =VLOOKUP(AA133,'FY 2024 TABLE 15'!$A$11:$M$146,11,FALSE)-AF133 -> 223 | AO133: =VLOOKUP(AA133,'FY 2024 TABLE 15'!$A$11:$M$146,4,FALSE)-AG133 -> 749843.34 | AP133: =VLOOKUP(AA133,'FY 2024 TABLE 15'!$A$11:$M$146,5,FALSE)-AH133 -> 559 | AQ133: =VLOOKUP(AA133,'FY 2024 TABLE 15'!$A$11:$M$146,12,FALSE)-AI133 -> 3711228.48 | AR133: =VLOOKUP(AA133,'FY 2024 TABLE 15'!$A$11:$M$146,13,FALSE)-AJ133 -> 3652
AC136: =SUM(AC2:AC133) -> 5132518582 | AD136: =AC136/'Source Data'!$Q$138 -> 4080.033441 | AE136: =SUM(AE2:AE133) -> 1118654107 | AF136: =AE136/'Source Data'!$Q$138 -> 889.2605246 | AG136: =SUM(AG2:AG133) -> 8024690150 | AH136: =AG136/'Source Data'!$Q$138 -> 6379.130177 | AI136: =SUM(AI2:AI133) -> 1.563042891e+10 | AJ136: =AI136/'Source Data'!$Q$138 -> 12425.22002
AC137: =AC136-'FY 2024 TABLE 15'!F146 -> -2531994804 | AD137: =AD136-'FY 2024 TABLE 15'!G146 -> -2012.966559 | AE137: =AE136-'FY 2024 TABLE 15'!J146 -> -1094558451 | AF137: =AF136-'FY 2024 TABLE 15'!K146 -> -869.7394754 | AG137: =AG136-'FY 2024 TABLE 15'!D146 -> -2545550093 | AH137: =AH136-'FY 2024 TABLE 15'!E146 -> -2023.869823 | AI137: =AI136-'FY 2024 TABLE 15'!L146 -> -6554587144 | AJ137: =AJ136-'FY 2024 TABLE 15'!M146 -> -5210.77998 | AK137: =SUM(AK2:AK133) -> 2531994804 | AL137: =SUM(AL2:AL133) -> 297365 | AM137: 1094558451 | AN137: 161293 | AO137: 2545550093 | AP137: 212173 | AQ137: 6554587144 | AR137: 709414

Sheet Fiscal Year 2025 Worksheet
A1: SUPERINTENDENT'S ANNUAL REPORT FOR VIRGINIA
A2: TABLE 15 METHODOLOGY - FISCAL YEAR 2025 Estimate Note: As of FY 2012, Table 15 contains Pre-kindergarten (Program 8) expenditures and average daily membership (ADM).
A4: Div Num | B4: Division
A5: ='Fiscal Year 2024 Worksheet'!A5 -> 0 | B5: ='Fiscal Year 2024 Worksheet'!B5 -> <SELECT DIVISION>
A8: 1a. Expenditures for operations: (see cell comment)
A9: Click here for Chart of Accounts
A10: 1b. Less tuition from another county or city (revenue 1901010 and 1901020):
A12: 1c. Plus state revenues to divisions participating in regional programs:
B14: Alternative Education
B16: Academic Year Governor's Schools
A18: 1d. Total expenditures for operations: | H18: =SUM(F8-F10)+F14+F16 -> 0
A20: 2a. Less State Revenues: (see cell comment)
A22: 2b. Plus the sum of all Beginning-Year Balances from State funds:
A24: 2c. Plus state revenues to divisions participating in regional programs:
B26: Alternative Education
B28: Academic Year Governor's Schools
A30: 2d. Less the sum of all End-Of-Year Balances from State funds:
A32: 2e. Less total State funds used for capital expenditures and
A33: Debt Service (Schedule G of ASRFIN):
A35: 2f. Total State Expenditures for Operations: | F35: =F20+F22+F26+F28-F30-F33 -> 0
A37: 2g. State Per Pupil Amount: | H37: =IF(ISNUMBER(F63),(ROUND(F35/$F$63,0)),"Enter ADM in Cell F63") -> Enter ADM in Cell F63
A39: 3a. Less State Sales Tax Revenues (revenues 240308 and 240312): | F39: =VLOOKUP($A$5,'Source Data'!A2:T137,19,FALSE) -> 
A41: 3b. State Sales Tax Per Pupil Amount | H41: =IF(ISNUMBER(F63),(ROUND(F39/$F$63,0)),"Enter ADM in Cell F63") -> Enter ADM in Cell F63
A43: 4a. Less Federal Revenues: (see cell comment)
A45: 4b. Plus the sum of all Beginning-Year Balances from Federal funds:
A47: 4c. Less the sum of all End-Of-Year Balances from Federal funds:
A49: 4d. Less total Federal funds used for capital expenditures (Schedule G of ASRFIN):
A51: 4e. Total Federal Expenditures for Operations: | F51: =F43+F45-F47-F49 -> 0
A53: 4f. Federal Per Pupil Amount: | H53: =IF(ISNUMBER(F63),(ROUND(F51/$F$63,0)),"Enter ADM in Cell F63") -> Enter ADM in Cell F63
A55: 5a. Total Local Expenditures for Operations | F55: =H18-F35-F39-F51 -> 
A57: 5b. Local Per Pupil Amount: | H57: =IF(ISNUMBER(F63),(ROUND(F55/$F$63,0)), "Enter ADM in Cell F63") -> Enter ADM in Cell F63
A59: 6a. Total Expenditures for Operations: | F59: =H18 -> 0
A61: 6b. Total Per Pupil Amount: | H61: =IF(ISNUMBER(F63),(ROUND(F59/$F$63,0)),"Enter ADM in Cell F63") -> Enter ADM in Cell F63
A63: 7. End-Of-Year Average Daily Membership (includes Pre-K):
A66: Cell Comment Detail:
A67: Item 1a: TOTAL EXPENDITURES FOR OPERATIONS DEFINED AS: a) From the Annual School Report Financial Section (ASRFIN) the sum of all expenditures in ASRFIN functions between 61100 and 69950; excluding functions 67100, 68900, and 69900; b) ASRFIN Programs 1 through 8, 11 only (exclude programs 9 and 10); c) Exclude object code 8200, 8210, and 8220 from all functions; d) Exclude object code 8100 from the Facilities function only (functions 66100 through 66600); e) Exclude object codes 8110 and 8120 from Technology (Activity 68800); f) Exclude object code 8100 from Contingency Reserve (Activity 69800); and, g) Exclude the following function-object combinations: - Function 67200 - Objection Code 9400 - Function 67200 - Objection Code 9800 - Function 67300 - Objection Code 9600 - Function 67300 - Objection Codes 9700, 9710, 9720, 9730, 9740
A68: Item 2a: Excludes the following revenue source codes: Special Education Hospitals, Clinics and Detention Homes (240220) State Sales Tax (240308 and 240312, which are included below) Special Education in Jails (240295) Career/Technical Ed Adult - Regional Centers (240262) Career/Technical Ed equip - Regional Centers (240270) Career/Technical Ed Occupational Prep - Regional Centers (240282) Also excludes expenditures reported as Inter-Agency Fund Transfer - Transfer to Regional Program (Function 67300 - Objects 9700, 9710, 9720, 9730, 9740). This exclusion is based on these state funds being "passed-through" the fiscal agent's budget to a regional program. This amount is also deducted from "Total Expenditures for Operations." State revenues for Alternative Education and Academic Year Governor's Schools should be included in inter agency transfers to the regional program for fiscal agents and revenues should be added back to associated divisions according to their respective participation. This ensures that the state revenue for these programs coincides with the ADM for purposes of calculating Per Pupil Amounts in Table 15.
A69: Item 4a: As of FY 2012, includes all federal revenues, including those for Pre-kindergarten: Head Start (93600) Even Start (84213) Title I (84010, 84013, 84357 and 84389) expenditures for Pre-K programs
A70: End of Worksheet

Sheet Fiscal Year 2026 Worksheet
A1: SUPERINTENDENT'S ANNUAL REPORT FOR VIRGINIA
A2: TABLE 15 METHODOLOGY - FISCAL YEAR 2026 Estimate Note: As of FY 2012, Table 15 contains Pre-kindergarten (Program 8) expenditures and average daily membership (ADM).
A4: Div Num | B4: Division
A5: ='Fiscal Year 2024 Worksheet'!A5 -> 0 | B5: ='Fiscal Year 2024 Worksheet'!B5 -> <SELECT DIVISION>
A8: 1a. Expenditures for operations: (see cell comment)
A9: Click here for Chart of Accounts
A10: 1b. Less tuition from another county or city (revenue 1901010 and 1901020):
A12: 1c. Plus state revenues to divisions participating in regional programs:
B14: Alternative Education
B16: Academic Year Governor's Schools
A18: 1d. Total expenditures for operations: | H18: =SUM(F8-F10)+F14+F16 -> 0
A20: 2a. Less State Revenues: (see cell comment)
A22: 2b. Plus the sum of all Beginning-Year Balances from State funds:
A24: 2c. Plus state revenues to divisions participating in regional programs:
B26: Alternative Education
B28: Academic Year Governor's Schools
A30: 2d. Less the sum of all End-Of-Year Balances from State funds:
A32: 2e. Less total State funds used for capital expenditures and
A33: Debt Service (Schedule G of ASRFIN):
A35: 2f. Total State Expenditures for Operations: | F35: =F20+F22+F28+F26-F30-F33 -> 0
A37: 2g. State Per Pupil Amount: | H37: =IF(ISNUMBER(F63),ROUND(F35/$F$63,0),"Enter ADM in Cell F63") -> Enter ADM in Cell F63
A39: 3a. Less State Sales Tax Revenues (revenues 240308 and 240312): | F39: =VLOOKUP($A$5,'Source Data'!A2:T137,20,FALSE) -> 
A41: 3b. State Sales Tax Per Pupil Amount | H41: =IF(ISNUMBER(F63),(ROUND(F39/$F$63,0)),"Enter ADM in Cell F63") -> Enter ADM in Cell F63
A43: 4a. Less Federal Revenues: (see cell comment)
A45: 4b. Plus the sum of all Beginning-Year Balances from Federal funds:
A47: 4c. Less the sum of all End-Of-Year Balances from Federal funds:
A49: 4d. Less total Federal funds used for capital expenditures (Schedule G of ASRFIN):
A51: 4e. Total Federal Expenditures for Operations: | F51: =F43+F45-F47-F49 -> 0
A53: 4f. Federal Per Pupil Amount: | H53: =IF(ISNUMBER(F63),(ROUND(F51/$F$63,0)),"Enter ADM in Cell F63") -> Enter ADM in Cell F63
A55: 5a. Total Local Expenditures for Operations | F55: =H18-F35-F39-F51 -> 
A57: 5b. Local Per Pupil Amount: | H57: =IF(ISNUMBER(F63),(ROUND(F55/$F$63,0)), "Enter ADM in Cell F63") -> Enter ADM in Cell F63
A59: 6a. Total Expenditures for Operations: | F59: =H18 -> 0
A61: 6b. Total Per Pupil Amount: | H61: =IF(ISNUMBER(F63),(ROUND(F59/$F$63,0)),"Enter ADM in Cell F63") -> Enter ADM in Cell F63
A63: 7. End-Of-Year Average Daily Membership (includes Pre-K):
A66: Cell Comment Detail:
A67: Item 1a: TOTAL EXPENDITURES FOR OPERATIONS DEFINED AS: a) From the Annual School Report Financial Section (ASRFIN) the sum of all expenditures in ASRFIN functions between 61100 and 69950; excluding functions 67100, 68900, and 69900; b) ASRFIN Programs 1 through 8, 11 only (exclude programs 9 and 10); c) Exclude object code 8200, 8210, and 8220 from all functions; d) Exclude object code 8100 from the Facilities function only (functions 66100 through 66600); e) Exclude object codes 8110 and 8120 from Technology (Activity 68800); f) Exclude object code 8100 from Contingency Reserve (Activity 69800); and, g) Exclude the following function-object combinations: - Function 67200 - Objection Code 9400 - Function 67200 - Objection Code 9800 - Function 67300 - Objection Code 9600 - Function 67300 - Objection Codes 9700, 9710, 9720, 9730, 9740
A68: Item 2a: Excludes the following revenue source codes: Special Education Hospitals, Clinics and Detention Homes (240220) State Sales Tax (240308 and 240312, which are included below) Special Education in Jails (240295) Career/Technical Ed Adult - Regional Centers (240262) Career/Technical Ed equip - Regional Centers (240270) Career/Technical Ed Occupational Prep - Regional Centers (240282) Also excludes expenditures reported as Inter-Agency Fund Transfer - Transfer to Regional Program (Function 67300 - Objects 9700, 9710, 9720, 9730, 9740). This exclusion is based on these state funds being "passed-through" the fiscal agent's budget to a regional program. This amount is also deducted from "Total Expenditures for Operations." State revenues for Alternative Education and Academic Year Governor's Schools should be included in inter agency transfers to the regional program for fiscal agents and revenues should be added back to associated divisions according to their respective participation. This ensures that the state revenue for these programs coincides with the ADM for purposes of calculating Per Pupil Amounts in Table 15.
A69: Item 4a: As of FY 2012, includes all federal revenues, including those for Pre-kindergarten: Head Start (93600) Even Start (84213) Title I (84010, 84013, 84357 and 84389) expenditures for Pre-K programs
A70: End of Worksheet

Sheet Division Source (hidden)
A1: 000 - <SELECT DIVISION> | C1: <SELECT DIVISION>
A2: 001 - ACCOMACK | B2: 1 | C2: ACCOMACK
A3: 002 - ALBEMARLE | B3: 2 | C3: ALBEMARLE
A4: 003 - ALLEGHANY HIGHLANDS | B4: 3 | C4: ALLEGHANY HIGHLANDS
A5: 004 - AMELIA | B5: 4 | C5: AMELIA
A6: 005 - AMHERST | B6: 5 | C6: AMHERST
A7: 006 - APPOMATTOX | B7: 6 | C7: APPOMATTOX
A8: 007 - ARLINGTON | B8: 7 | C8: ARLINGTON
A9: 008 - AUGUSTA | B9: 8 | C9: AUGUSTA
A10: 009 - BATH | B10: 9 | C10: BATH
A11: 010 - BEDFORD | B11: 10 | C11: BEDFORD
A12: 011 - BLAND | B12: 11 | C12: BLAND
A13: 012 - BOTETOURT | B13: 12 | C13: BOTETOURT
A14: 013 - BRUNSWICK | B14: 13 | C14: BRUNSWICK
A15: 014 - BUCHANAN | B15: 14 | C15: BUCHANAN
A16: 015 - BUCKINGHAM | B16: 15 | C16: BUCKINGHAM
A17: 016 - CAMPBELL | B17: 16 | C17: CAMPBELL
A18: 017 - CAROLINE | B18: 17 | C18: CAROLINE
A19: 018 - CARROLL | B19: 18 | C19: CARROLL
A20: 019 - CHARLES CITY COUNTY | B20: 19 | C20: CHARLES CITY COUNTY
A21: 020 - CHARLOTTE | B21: 20 | C21: CHARLOTTE
A22: 021 - CHESTERFIELD | B22: 21 | C22: CHESTERFIELD
A23: 022 - CLARKE | B23: 22 | C23: CLARKE
A24: 023 - CRAIG | B24: 23 | C24: CRAIG
A25: 024 - CULPEPER | B25: 24 | C25: CULPEPER
A26: 025 - CUMBERLAND | B26: 25 | C26: CUMBERLAND
A27: 026 - DICKENSON | B27: 26 | C27: DICKENSON
A28: 027 - DINWIDDIE | B28: 27 | C28: DINWIDDIE
A29: 028 - ESSEX | B29: 28 | C29: ESSEX
A30: 029 - FAIRFAX | B30: 29 | C30: FAIRFAX
A31: 030 - FAUQUIER | B31: 30 | C31: FAUQUIER
A32: 031 - FLOYD | B32: 31 | C32: FLOYD
A33: 032 - FLUVANNA | B33: 32 | C33: FLUVANNA
A34: 033 - FRANKLIN | B34: 33 | C34: FRANKLIN
A35: 034 - FREDERICK | B35: 34 | C35: FREDERICK
A36: 035 - GILES | B36: 35 | C36: GILES
A37: 036 - GLOUCESTER | B37: 36 | C37: GLOUCESTER
A38: 037 - GOOCHLAND | B38: 37 | C38: GOOCHLAND
A39: 038 - GRAYSON | B39: 38 | C39: GRAYSON
A40: 039 - GREENE | B40: 39 | C40: GREENE
A41: 040 - GREENSVILLE | B41: 40 | C41: GREENSVILLE
A42: 041 - HALIFAX | B42: 41 | C42: HALIFAX
A43: 042 - HANOVER | B43: 42 | C43: HANOVER
A44: 043 - HENRICO | B44: 43 | C44: HENRICO
A45: 044 - HENRY | B45: 44 | C45: HENRY
A46: 045 - HIGHLAND | B46: 45 | C46: HIGHLAND
A47: 046 - ISLE OF WIGHT | B47: 46 | C47: ISLE OF WIGHT
A48: 048 - KING GEORGE | B48: 48 | C48: KING GEORGE
A49: 049 - KING AND QUEEN | B49: 49 | C49: KING AND QUEEN
A50: 050 - KING WILLIAM | B50: 50 | C50: KING WILLIAM
A51: 051 - LANCASTER | B51: 51 | C51: LANCASTER
A52: 052 - LEE | B52: 52 | C52: LEE
A53: 053 - LOUDOUN | B53: 53 | C53: LOUDOUN
A54: 054 - LOUISA | B54: 54 | C54: LOUISA
A55: 055 - LUNENBURG | B55: 55 | C55: LUNENBURG
A56: 056 - MADISON | B56: 56 | C56: MADISON
A57: 057 - MATHEWS | B57: 57 | C57: MATHEWS
A58: 058 - MECKLENBURG | B58: 58 | C58: MECKLENBURG
A59: 059 - MIDDLESEX | B59: 59 | C59: MIDDLESEX
A60: 060 - MONTGOMERY | B60: 60 | C60: MONTGOMERY
A61: 062 - NELSON | B61: 62 | C61: NELSON
A62: 063 - NEW KENT | B62: 63 | C62: NEW KENT
A63: 065 - NORTHAMPTON | B63: 65 | C63: NORTHAMPTON
A64: 066 - NORTHUMBERLAND | B64: 66 | C64: NORTHUMBERLAND
A65: 067 - NOTTOWAY | B65: 67 | C65: NOTTOWAY
A66: 068 - ORANGE | B66: 68 | C66: ORANGE
A67: 069 - PAGE | B67: 69 | C67: PAGE
A68: 070 - PATRICK | B68: 70 | C68: PATRICK
A69: 071 - PITTSYLVANIA | B69: 71 | C69: PITTSYLVANIA
A70: 072 - POWHATAN | B70: 72 | C70: POWHATAN
A71: 073 - PRINCE EDWARD | B71: 73 | C71: PRINCE EDWARD
A72: 074 - PRINCE GEORGE | B72: 74 | C72: PRINCE GEORGE
A73: 075 - PRINCE WILLIAM | B73: 75 | C73: PRINCE WILLIAM
A74: 077 - PULASKI | B74: 77 | C74: PULASKI
A75: 078 - RAPPAHANNOCK | B75: 78 | C75: RAPPAHANNOCK
A76: 079 - RICHMOND | B76: 79 | C76: RICHMOND
A77: 080 - ROANOKE | B77: 80 | C77: ROANOKE
A78: 081 - ROCKBRIDGE | B78: 81 | C78: ROCKBRIDGE
A79: 082 - ROCKINGHAM | B79: 82 | C79: ROCKINGHAM
A80: 083 - RUSSELL | B80: 83 | C80: RUSSELL
A81: 084 - SCOTT | B81: 84 | C81: SCOTT
A82: 085 - SHENANDOAH | B82: 85 | C82: SHENANDOAH
A83: 086 - SMYTH | B83: 86 | C83: SMYTH
A84: 087 - SOUTHAMPTON | B84: 87 | C84: SOUTHAMPTON
A85: 088 - SPOTSYLVANIA | B85: 88 | C85: SPOTSYLVANIA
A86: 089 - STAFFORD | B86: 89 | C86: STAFFORD
A87: 090 - SURRY | B87: 90 | C87: SURRY
A88: 091 - SUSSEX | B88: 91 | C88: SUSSEX
A89: 092 - TAZEWELL | B89: 92 | C89: TAZEWELL
A90: 093 - WARREN | B90: 93 | C90: WARREN
A91: 094 - WASHINGTON | B91: 94 | C91: WASHINGTON
A92: 095 - WESTMORELAND | B92: 95 | C92: WESTMORELAND
A93: 096 - WISE | B93: 96 | C93: WISE
A94: 097 - WYTHE | B94: 97 | C94: WYTHE
A95: 098 - YORK | B95: 98 | C95: YORK
A96: 101 - ALEXANDRIA CITY | B96: 101 | C96: ALEXANDRIA CITY
A97: 102 - BRISTOL CITY | B97: 102 | C97: BRISTOL CITY
A98: 103 - BUENA VISTA CITY | B98: 103 | C98: BUENA VISTA CITY
A99: 104 - CHARLOTTESVILLE CITY | B99: 104 | C99: CHARLOTTESVILLE CITY
A100: 106 - COLONIAL HEIGHTS CITY | B100: 106 | C100: COLONIAL HEIGHTS CITY
A101: 108 - DANVILLE CITY | B101: 108 | C101: DANVILLE CITY
A102: 109 - FALLS CHURCH CITY | B102: 109 | C102: FALLS CHURCH CITY
A103: 110 - FREDERICKSBURG CITY | B103: 110 | C103: FREDERICKSBURG CITY
A104: 111 - GALAX CITY | B104: 111 | C104: GALAX CITY
A105: 112 - HAMPTON CITY | B105: 112 | C105: HAMPTON CITY
A106: 113 - HARRISONBURG CITY | B106: 113 | C106: HARRISONBURG CITY
A107: 114 - HOPEWELL CITY | B107: 114 | C107: HOPEWELL CITY
A108: 115 - LYNCHBURG CITY | B108: 115 | C108: LYNCHBURG CITY
A109: 116 - MARTINSVILLE CITY | B109: 116 | C109: MARTINSVILLE CITY
A110: 117 - NEWPORT NEWS CITY | B110: 117 | C110: NEWPORT NEWS CITY
A111: 118 - NORFOLK CITY | B111: 118 | C111: NORFOLK CITY
A112: 119 - NORTON CITY | B112: 119 | C112: NORTON CITY
A113: 120 - PETERSBURG CITY | B113: 120 | C113: PETERSBURG CITY
A114: 121 - PORTSMOUTH CITY | B114: 121 | C114: PORTSMOUTH CITY
A115: 122 - RADFORD CITY | B115: 122 | C115: RADFORD CITY
A116: 123 - RICHMOND CITY | B116: 123 | C116: RICHMOND CITY
A117: 124 - ROANOKE CITY | B117: 124 | C117: ROANOKE CITY
A118: 126 - STAUNTON CITY | B118: 126 | C118: STAUNTON CITY
A119: 127 - SUFFOLK CITY | B119: 127 | C119: SUFFOLK CITY
A120: 128 - VIRGINIA BEACH CITY | B120: 128 | C120: VIRGINIA BEACH CITY
A121: 130 - WAYNESBORO CITY | B121: 130 | C121: WAYNESBORO CITY
A122: 131 - WILLIAMSBURG CITY | B122: 131 | C122: WILLIAMSBURG CITY
A123: 132 - WINCHESTER CITY | B123: 132 | C123: WINCHESTER CITY
A124: 135 - FRANKLIN CITY | B124: 135 | C124: FRANKLIN CITY
A125: 136 - CHESAPEAKE CITY | B125: 136 | C125: CHESAPEAKE CITY
A126: 137 - LEXINGTON CITY | B126: 137 | C126: LEXINGTON CITY
A127: 139 - SALEM CITY | B127: 139 | C127: SALEM CITY
A128: 142 - POQUOSON CITY | B128: 142 | C128: POQUOSON CITY
A129: 143 - MANASSAS CITY | B129: 143 | C129: MANASSAS CITY
A130: 144 - MANASSAS PARK CITY | B130: 144 | C130: MANASSAS PARK CITY
A131: 202 - COLONIAL BEACH | B131: 202 | C131: COLONIAL BEACH
A132: 207 - WEST POINT | B132: 207 | C132: WEST POINT

Sheet Source Data (hidden)
A1: Div | B1: State Rev | C1: S - BOY | D1: S - EOY | E1: S - Capital | F1: Exp Deduct | G1: Total State | H1: Sales Tax | I1: Federal | J1: F - BOY | K1: F - EOY | L1: F - Capital | M1: Total Federal | N1: Local | O1: Local Tuition Deduct | P1: Expenditures | Q1: BOD EOY ADM WITH PRE-K | S1: Sales Tax FY 2024 | T1: Sales Tax FY 2025 | U1: UPDATED-Projections based on GA Conference Caboose Budget - HB30 & Big Bill Budget | Z1: DABS Sales Tax fy 2025 | AD1: DABS Sales Tax fy 2026 | AI1: DABS Alt Ed and Govs School | AJ1: Data from 2023-2024Table 15 source file with queries for Alt Ed & Govs School
A2: 1 | B2: 42481409.73 | C2: 2183938 | D2: 4518044.38 | E2: 477545.55 | F2: 0 | G2: =SUM(B2+C2-D2-E2-F2) -> 39669757.8 | H2: 6009078.6 | I2: 12952597.01 | J2: 1630441.26 | K2: 1322851.07 | L2: 269574.89 | M2: =SUM(I2+J2-K2-L2) -> 12990612.31 | N2: =SUM(P2-(G2+H2+M2)) -> 19078078.31 | O2: 0 | P2: 77747527.02 | Q2: =VLOOKUP($A2,'FY 2024 TABLE 15'!$A$11:$C$144,3,FALSE) -> 4757.35 | S2: =VLOOKUP(A2,$Z$3:$AB$138,3,FALSE) -> 6113863.131 | T2: =VLOOKUP($A2,$AD$3:$AF$138,3,FALSE) -> 6462046.141 | Z2: NUM | AA2: DIVISION | AB2: SALES TAX | AD2: NUM | AE2: DIVISION | AF2: SALES TAX | AI2: NUM | AJ2: DIVISION | AK2: ALT ED AMT | AL2: GOVS SCHOOL
A3: 2 | B3: 56752909.06 | C3: 0 | D3: 0 | E3: 0 | F3: 0 | G3: 56752909.06 | H3: 21141568.36 | I3: 14249044.15 | J3: 358488.07 | K3: 298147.95 | L3: 0 | M3: =SUM(I3+J3-K3-L3) -> 14309384.27 | N3: 203640980.6 | O3: 0 | P3: 295844842.3 | Q3: =VLOOKUP($A3,'FY 2024 TABLE 15'!$A$11:$C$144,3,FALSE) -> 13840.91 | S3: =VLOOKUP(A3,$Z$3:$AB$138,3,FALSE) -> 21562131.38 | T3: 21728058.06 | Z3: 1 | AA3: ACCOMACK | AB3: 6113863.131 | AD3: 1 | AE3: ACCOMACK | AF3: 6462046.141 | AI3: 1 | AJ3: ACCOMACK | AK3: 68145 | AL3: 0
A4: 3 | B4: 26326523.69 | C4: 0 | D4: 0 | E4: 0 | F4: 0 | G4: =SUM(B4+C4-D4-E4-F4) -> 26326523.69 | H4: 3778505 | I4: 5829712.57 | J4: 0 | K4: 0 | L4: 275141.14 | M4: 5554571.43 | N4: 11666762.34 | O4: 0 | P4: 47326362.46 | Q4: =VLOOKUP($A4,'FY 2024 TABLE 15'!$A$11:$C$144,3,FALSE) -> 2793.89 | S4: 3755505.012 | T4: 4020779.098 | Z4: 2 | AA4: ALBEMARLE | AB4: 21562131.38 | AD4: 2 | AE4: ALBEMARLE | AF4: 21728058.06 | AI4: 2 | AJ4: ALBEMARLE | AK4: 0 | AL4: 0
A5: 4 | B5: 12712538.6 | C5: 450753 | D5: 534210.7 | E5: 5883 | F5: 0 | G5: 12623197.9 | H5: 2487402.84 | I5: 3657993.97 | J5: 0 | K5: 0 | L5: 885218.71 | M5: 2772775.26 | N5: 6470975.83 | O5: 0 | P5: 24354351.83 | Q5: =VLOOKUP($A5,'FY 2024 TABLE 15'!$A$11:$C$144,3,FALSE) -> 1585.71 | S5: 2440163.331 | T5: 2588613.75 | Z5: 3 | AA5: ALLEGHANY | AB5: 3755505.012 | AD5: 3 | AE5: ALLEGHANY | AF5: 4020779.098 | AI5: 3 | AJ5: ALLEGHANY | AK5: 24931 | AL5: 31932
A6: 5 | B6: 34479196.54 | C6: 0 | D6: 0 | E6: 0 | F6: 0 | G6: 34479196.54 | H6: 5881097.42 | I6: 11452092.23 | J6: 0 | K6: 0 | L6: 4592077.19 | M6: 6860015.04 | N6: 15410127.45 | O6: 43935 | P6: 62630436.45 | Q6: =VLOOKUP($A6,'FY 2024 TABLE 15'!$A$11:$C$144,3,FALSE) -> 3923.25 | S6: 5775878.444 | T6: 5961960.345 | Z6: 4 | AA6: AMELIA | AB6: 2440163.331 | AD6: 4 | AE6: AMELIA | AF6: 2588613.75 | AI6: 4 | AJ6: AMELIA | AK6: 65615 | AL6: 98093
A7: 6 | B7: 20339242.74 | C7: 0 | D7: 0 | E7: 3183015.8 | F7: 0 | G7: 17156226.94 | H7: 3207177.76 | I7: 4032353.34 | J7: 0 | K7: 0 | L7: 554500 | M7: 3477853.34 | N7: 8404386.51 | O7: 28779.67 | P7: 32245644.55 | Q7: =VLOOKUP($A7,'FY 2024 TABLE 15'!$A$11:$C$144,3,FALSE) -> 2344.19 | S7: 3320645.733 | T7: 3455950.052 | Z7: 5 | AA7: AMHERST | AB7: 5775878.444 | AD7: 5 | AE7: AMHERST | AF7: 5961960.345 | AI7: 5 | AJ7: AMHERST | AK7: 51576 | AL7: 48102
A8: 7 | B8: 71667801.13 | C8: 0 | D8: 0 | E8: 0 | F8: 0 | G8: 71667801.13 | H8: 36550281.63 | I8: 28520489.11 | J8: 0 | K8: 0 | L8: 4321580.3 | M8: 24198908.81 | N8: 598006075.4 | O8: 176457.6 | P8: 730423067 | Q8: =VLOOKUP($A8,'FY 2024 TABLE 15'!$A$11:$C$144,3,FALSE) -> 27856.74 | S8: 38312824.7 | T8: 41119777.8 | Z8: 6 | AA8: APPOMATTOX | AB8: 3320645.733 | AD8: 6 | AE8: APPOMATTOX | AF8: 3455950.052 | AI8: 6 | AJ8: APPOMATTOX | AK8: 33765 | AL8: 32474
A9: 8 | B9: 71500683.91 | C9: 0 | D9: 0 | E9: 0 | F9: 839123 | G9: 70661560.91 | H9: 14586709.92 | I9: 15792415.31 | J9: 0 | K9: 0 | L9: 2075688 | M9: 13716727.31 | N9: 48318332.65 | O9: 1024298.2 | P9: 147283330.8 | Q9: =VLOOKUP($A9,'FY 2024 TABLE 15'!$A$11:$C$144,3,FALSE) -> 10048.8 | S9: 14499973.63 | T9: 14539324.75 | Z9: 7 | AA9: ARLINGTON | AB9: 38312824.7 | AD9: 7 | AE9: ARLINGTON | AF9: 41119777.8 | AI9: 7 | AJ9: ARLINGTON | AK9: 0 | AL9: 130968
A10: 9 | B10: 1898367.78 | C10: 0 | D10: 0 | E10: 0 | F10: 0 | G10: 1898367.78 | H10: 652151.7 | I10: 1090342.12 | J10: 0 | K10: 0 | L10: 0 | M10: 1090342.12 | N10: 8805602.55 | O10: 0 | P10: 12446464.15 | Q10: =VLOOKUP($A10,'FY 2024 TABLE 15'!$A$11:$C$144,3,FALSE) -> 508.72 | S10: 642601.4594 | T10: 674222.8138 | Z10: 8 | AA10: AUGUSTA | AB10: 14499973.63 | AD10: 8 | AE10: AUGUSTA | AF10: 14539324.75 | AI10: 8 | AJ10: AUGUSTA | AK10: 174224 | AL10: 529658
A11: 10 | B11: 64774391.96 | C11: 0 | D11: 0 | E11: 0 | F11: 0 | G11: 64774391.96 | H11: 15345149.24 | I11: 11596243.28 | J11: 0 | K11: 0 | L11: 1086273.08 | M11: =SUM(I11+J11-K11-L11) -> 10509970.2 | N11: 34994058.56 | O11: 108322.49 | P11: 125623570 | Q11: =VLOOKUP($A11,'FY 2024 TABLE 15'!$A$11:$C$144,3,FALSE) -> 8964.5 | S11: =VLOOKUP(A11,$Z$3:$AB$138,3,FALSE)+VLOOKUP(140,$Z$3:$AB$138,3,FALSE) -> 15053235.19 | T11: =VLOOKUP($A11,$AD$3:$AF$138,3,FALSE)+VLOOKUP(140,$AD$3:$AF$138,3,FALSE) -> 15951397.37 | Z11: 9 | AA11: BATH | AB11: 642601.4594 | AD11: 9 | AE11: BATH | AF11: 674222.8138 | AI11: 9 | AJ11: BATH | AK11: 5022 | AL11: 1384
A12: 11 | B12: 6781106.9 | C12: 2948522.56 | D12: 3084358.7 | E12: 0 | F12: 0 | G12: 6645270.76 | H12: 868154.64 | I12: 1021955.42 | J12: 0 | K12: 0 | L12: 0 | M12: 1021955.42 | N12: 3634920.25 | O12: 101704 | P12: 12170301.07 | Q12: =VLOOKUP($A12,'FY 2024 TABLE 15'!$A$11:$C$144,3,FALSE) -> 800.66 | S12: =VLOOKUP(A12,$Z$3:$AB$138,3,FALSE) -> 894475.3983 | T12: =VLOOKUP($A12,$AD$3:$AF$138,3,FALSE) -> 914219.3452 | Z12: 10 | AA12: BEDFORD | AB12: 15053235.19 | AD12: 10 | AE12: BEDFORD | AF12: 15951397.37 | AI12: 10 | AJ12: BEDFORD | AK12: 80544 | AL12: 209089
A13: 12 | B13: 28116738.71 | C13: 0 | D13: 0 | E13: 0 | F13: 0 | G13: 28116738.71 | H13: 6518035.08 | I13: 5944641.24 | J13: 0 | K13: 0 | L13: 30697.72 | M13: 5913943.52 | N13: 30352447.73 | O13: 0 | P13: 70901165.04 | Q13: =VLOOKUP($A13,'FY 2024 TABLE 15'!$A$11:$C$144,3,FALSE) -> 4444.62 | S13: =VLOOKUP(A13,$Z$3:$AB$138,3,FALSE) -> 6413097.982 | T13: 6387256.524 | Z13: 11 | AA13: BLAND | AB13: 894475.3983 | AD13: 11 | AE13: BLAND | AF13: 914219.3452 | AI13: 11 | AJ13: BLAND | AK13: 29290 | AL13: 14920
A14: 13 | B14: 12961800.01 | C14: 0 | D14: 0 | E14: 190549.77 | F14: 471884 | G14: 12299366.24 | H14: 2328492.42 | I14: 7444326.42 | J14: 0 | K14: 0 | L14: 2249086.42 | M14: 5195240 | N14: 8260086.98 | O14: 0 | P14: 28083185.64 | Q14: =VLOOKUP($A14,'FY 2024 TABLE 15'!$A$11:$C$144,3,FALSE) -> 1375.73 | S14: 2310997.208 | T14: 2317361.857 | Z14: 12 | AA14: BOTETOURT | AB14: 6413097.982 | AD14: 12 | AE14: BOTETOURT | AF14: 6387256.524 | AI14: 12 | AJ14: BOTETOURT | AK14: 22716 | AL14: 57238
A15: 14 | B15: 25876305.27 | C15: 467982.41 | D15: 490332.26 | E15: 4864009.51 | F15: 0 | G15: 20989945.91 | H15: 3324974.62 | I15: 8685503.07 | J15: 0 | K15: 0 | L15: 277029 | M15: 8408474.07 | N15: 9984061.27 | O15: 0 | P15: 42707455.87 | Q15: =VLOOKUP($A15,'FY 2024 TABLE 15'!$A$11:$C$144,3,FALSE) -> 2358.23 | S15: 3290506.971 | T15: 3253906.461 | Z15: 13 | AA15: BRUNSWICK | AB15: 2310997.208 | AD15: 13 | AE15: BRUNSWICK | AF15: 2317361.857 | AI15: 13 | AJ15: BRUNSWICK | AK15: 90728 | AL15: 45899
A16: 15 | B16: 17131155.04 | C16: 0 | D16: 0 | E16: 111594.11 | F16: 0 | G16: 17019560.93 | H16: 2933466.32 | I16: 5375964.84 | J16: 0 | K16: 0 | L16: 50976.99 | M16: 5324987.85 | N16: 8259255.75 | O16: 0 | P16: 33537270.85 | Q16: =VLOOKUP($A16,'FY 2024 TABLE 15'!$A$11:$C$144,3,FALSE) -> 1917.97 | S16: 2912696.062 | T16: 2890004.743 | Z16: 14 | AA16: BUCHANAN | AB16: 3290506.971 | AD16: 14 | AE16: BUCHANAN | AF16: 3253906.461 | AI16: 14 | AJ16: BUCHANAN | AK16: 26170 | AL16: 86575
A17: 16 | B17: 65341767.49 | C17: 0 | D17: 0 | E17: 4726373.67 | F17: 0 | G17: 60615393.82 | H17: 10686108.94 | I17: 12163717.16 | J17: 0 | K17: 0 | L17: 595321 | M17: 11568396.16 | N17: 26386991.55 | O17: 32990.23 | P17: 109256890.5 | Q17: =VLOOKUP($A17,'FY 2024 TABLE 15'!$A$11:$C$144,3,FALSE) -> 7829.17 | S17: 10725093.7 | T17: 10813239.07 | Z17: 15 | AA17: BUCKINGHAM | AB17: 2912696.062 | AD17: 15 | AE17: BUCKINGHAM | AF17: 2890004.743 | AI17: 15 | AJ17: BUCKINGHAM | AK17: 67617 | AL17: 69817
A18: 17 | B18: 32842068.18 | C18: 2069628.14 | D18: 1900224.48 | E18: 1530897.5 | F18: 0 | G18: 31480574.34 | H18: 6552062.7 | I18: 11903687.35 | J18: 0 | K18: 0 | L18: 3082029.97 | M18: 8821657.38 | N18: 16759204.7 | O18: 0 | P18: 63613499.12 | Q18: =VLOOKUP($A18,'FY 2024 TABLE 15'!$A$11:$C$144,3,FALSE) -> 4532.9 | S18: 6708027.295 | T18: 7313754.762 | Z18: 16 | AA18: CAMPBELL | AB18: 10725093.7 | AD18: 16 | AE18: CAMPBELL | AF18: 10813239.07 | AI18: 16 | AJ18: CAMPBELL | AK18: 0 | AL18: 114416
A19: 18 | B19: 33205921.74 | C19: 0 | D19: 0 | E19: 2634504.64 | F19: 257958.71 | G19: 30313458.39 | H19: 5016922.1 | I19: 12862275.55 | J19: 7908079.4 | K19: 0 | L19: 4860110.23 | M19: 15910244.72 | N19: 12270954.12 | O19: 0 | P19: 63511579.33 | Q19: =VLOOKUP($A19,'FY 2024 TABLE 15'!$A$11:$C$144,3,FALSE) -> 3428.88 | S19: 4966437.41 | T19: 5013136.849 | Z19: 17 | AA19: CAROLINE | AB19: 6708027.295 | AD19: 17 | AE19: CAROLINE | AF19: 7313754.762 | AI19: 17 | AJ19: CAROLINE | AK19: 55134 | AL19: 121528
A20: 19 | B20: 3462132.56 | C20: 0 | D20: 0 | E20: 0 | F20: 0 | G20: 3462132.56 | H20: 925859.82 | I20: 1976276.76 | J20: 3197.59 | K20: 3197.59 | L20: 0 | M20: 1976276.76 | N20: 7031532.83 | O20: 0 | P20: 13395801.97 | Q20: =VLOOKUP($A20,'FY 2024 TABLE 15'!$A$11:$C$144,3,FALSE) -> 526.05 | S20: 899857.3201 | T20: 926498.2375 | Z20: 18 | AA20: CARROLL | AB20: 4966437.41 | AD20: 18 | AE20: CARROLL | AF20: 5013136.849 | AI20: 18 | AJ20: CARROLL | AK20: 178760 | AL20: 27374
A21: 20 | B21: 16366955.5 | C21: 0 | D21: 0 | E21: 0 | F21: 7500 | G21: 16359455.5 | H21: 2229052.6 | I21: 4867174.18 | J21: 0 | K21: 0 | L21: 6874.73 | M21: 4860299.45 | N21: 4945060.1 | O21: 7500 | P21: 28393867.65 | Q21: =VLOOKUP($A21,'FY 2024 TABLE 15'!$A$11:$C$144,3,FALSE) -> 1688.09 | S21: 2228115.613 | T21: 2416709.258 | Z21: 19 | AA21: CHARLES CITY | AB21: 899857.3201 | AD21: 19 | AE21: CHARLES CITY | AF21: 926498.2375 | AI21: 19 | AJ21: CHARLES CITY | AK21: 13720 | AL21: 25830
A22: 21 | B22: 434561773.3 | C22: 0 | D22: 0 | E22: 13330496.76 | F22: 1668578 | G22: 419562698.5 | H22: 83195164.98 | I22: 84041389.36 | J22: 0 | K22: 0 | L22: 1802235.49 | M22: 82239153.87 | N22: 339047232.1 | O22: 0 | P22: 924044249.5 | Q22: =VLOOKUP($A22,'FY 2024 TABLE 15'!$A$11:$C$144,3,FALSE) -> 63681.57 | S22: 87057966.56 | T22: 89959630.07 | Z22: 20 | AA22: CHARLOTTE | AB22: 2228115.613 | AD22: 20 | AE22: CHARLOTTE | AF22: 2416709.258 | AI22: 20 | AJ22: CHARLOTTE | AK22: 76527 | AL22: 85901
A23: 22 | B23: 9006635.77 | C23: 0 | D23: 0 | E23: 510848 | F23: 0 | G23: 8495787.77 | H23: 2907973.28 | I23: 1772231.68 | J23: 718936.29 | K23: 527489.54 | L23: 8360 | M23: 1955318.43 | N23: 15771971.72 | O23: 0 | P23: 29131051.2 | Q23: =VLOOKUP($A23,'FY 2024 TABLE 15'!$A$11:$C$144,3,FALSE) -> 1920.96 | S23: 2905161.372 | T23: 3048514.08 | Z23: 21 | AA23: CHESTERFIELD | AB23: 87057966.56 | AD23: 21 | AE23: CHESTERFIELD | AF23: 89959630.07 | AI23: 21 | AJ23: CHESTERFIELD | AK23: 0 | AL23: 1589747
A24: 23 | B24: 4774582.56 | C24: 0 | D24: 0 | E24: 671686.23 | F24: 0 | G24: 4102896.33 | H24: 873787.22 | I24: 1542656.83 | J24: 0 | K24: 0 | L24: 613069.11 | M24: 929587.72 | N24: 2492838.12 | O24: 0 | P24: 8399109.39 | Q24: =VLOOKUP($A24,'FY 2024 TABLE 15'!$A$11:$C$144,3,FALSE) -> 468.23 | S24: 856801.9459 | T24: 853941.1466 | Z24: 22 | AA24: CLARKE | AB24: 2905161.372 | AD24: 22 | AE24: CLARKE | AF24: 3048514.08 | AI24: 22 | AJ24: CLARKE | AK24: 16648 | AL24: 17242
A25: 24 | B25: 59404524.95 | C25: 0 | D25: 3005438.42 | E25: 2685360.43 | F25: 0 | G25: 53713726.1 | H25: 12031532.22 | I25: 9975229.75 | J25: 0 | K25: 0 | L25: 0 | M25: 9975229.75 | N25: 38994490.36 | O25: 19795.16 | P25: 114714978.4 | Q25: =VLOOKUP($A25,'FY 2024 TABLE 15'!$A$11:$C$144,3,FALSE) -> 8361.54 | S25: 12298767.63 | T25: 13328179.46 | Z25: 23 | AA25: CRAIG | AB25: 856801.9459 | AD25: 23 | AE25: CRAIG | AF25: 853941.1466 | AI25: 23 | AJ25: CRAIG | AK25: 22388 | AL25: 9186
A26: 25 | B26: 14103614.56 | C26: 0 | D26: 0 | E26: 1377629.19 | F26: 735473 | G26: 11990512.37 | H26: 1789701.3 | I26: 3869783.37 | J26: 0 | K26: 0 | L26: 0 | M26: 3869783.37 | N26: 5310854.27 | O26: 128273 | P26: 22960851.31 | Q26: =VLOOKUP($A26,'FY 2024 TABLE 15'!$A$11:$C$144,3,FALSE) -> 1239.91 | S26: 1861068.548 | T26: 1890949.415 | Z26: 24 | AA26: CULPEPER | AB26: 12298767.63 | AD26: 24 | AE26: CULPEPER | AF26: 13328179.46 | AI26: 24 | AJ26: CULPEPER | AK26: 25318 | AL26: 136665
A27: 26 | B27: 20741660.92 | C27: 0 | D27: 0 | E27: 68555.3 | F27: 0 | G27: 20673105.62 | H27: 2577190.82 | I27: 7680692.24 | J27: 0 | K27: 0 | L27: 1489103.24 | M27: 6191589 | N27: 1473475.78 | O27: 203133.58 | P27: 30915361.22 | Q27: =VLOOKUP($A27,'FY 2024 TABLE 15'!$A$11:$C$144,3,FALSE) -> 1861.65 | S27: 2601620.984 | T27: 2635496.794 | Z27: 25 | AA27: CUMBERLAND | AB27: 1861068.548 | AD27: 25 | AE27: CUMBERLAND | AF27: 1890949.415 | AI27: 25 | AJ27: CUMBERLAND | AK27: 66220 | AL27: 52020
A28: 27 | B28: 37592075.39 | C28: 125000 | D28: 1470682.11 | E28: 248402.5 | F28: 130647.66 | G28: 35867343.12 | H28: 5595646.28 | I28: 9806064.15 | J28: 117356.29 | K28: 0 | L28: 0 | M28: 9923420.44 | N28: 17318758.64 | O28: 0 | P28: 68705168.48 | Q28: =VLOOKUP($A28,'FY 2024 TABLE 15'!$A$11:$C$144,3,FALSE) -> 4230.79 | S28: 5689767.696 | T28: 5702987.344 | Z28: 26 | AA28: DICKENSON | AB28: 2601620.984 | AD28: 26 | AE28: DICKENSON | AF28: 2635496.794 | AI28: 26 | AJ28: DICKENSON | AK28: 71220 | AL28: 39953
A29: 28 | B29: 8741774.24 | C29: 0 | D29: 0 | E29: 0 | F29: 0 | G29: 8741774.24 | H29: 1828561.22 | I29: 3194552.77 | J29: 563121.02 | K29: 569162.31 | L29: 17878.52 | M29: 3170632.96 | N29: 7270445.49 | O29: 15543.61 | P29: 21011413.91 | Q29: =VLOOKUP($A29,'FY 2024 TABLE 15'!$A$11:$C$144,3,FALSE) -> 1125.35 | S29: 1795409.103 | T29: 1790485.751 | Z29: 27 | AA29: DINWIDDIE | AB29: 5689767.696 | AD29: 27 | AE29: DINWIDDIE | AF29: 5702987.344 | AI29: 27 | AJ29: DINWIDDIE | AK29: 13078 | AL29: 88277
A30: 29 | B30: 764000752.4 | C30: 0 | D30: 0 | E30: 0 | F30: 6423205.52 | G30: =SUM(B30+C30-D30-E30-F30) -> 757577546.9 | H30: 248417057.2 | I30: 236789272.4 | J30: 0 | K30: 0 | L30: 1179581.93 | M30: =SUM(I30+J30-K30-L30) -> 235609690.5 | N30: =SUM(P30-(G30+H30+M30)) -> 2491748050 | O30: 60627298.71 | P30: 3733352345 | Q30: =VLOOKUP($A30,'FY 2024 TABLE 15'!$A$11:$C$144,3,FALSE) -> 180750.19 | S30: =VLOOKUP(A30,$Z$3:$AB$138,3,FALSE)+VLOOKUP(134,$Z$2:$AB$147,3,FALSE) -> 252265742.8 | T30: =VLOOKUP($A30,$AD$3:$AF$138,3,FALSE)+VLOOKUP(134,$AD$3:$AF$138,3,FALSE) -> 257985108.6 | Z30: 28 | AA30: ESSEX | AB30: 1795409.103 | AD30: 28 | AE30: ESSEX | AF30: 1790485.751 | AI30: 28 | AJ30: ESSEX | AK30: 56640 | AL30: 55266
A31: 30 | B31: 51932134.81 | C31: 0 | D31: 0 | E31: 0 | F31: 0 | G31: =SUM(B31+C31-D31-E31-F31) -> 51932134.81 | H31: 16230711.24 | I31: 12249292.79 | J31: 0 | K31: 0 | L31: 387875 | M31: =SUM(I31+J31-K31-L31) -> 11861417.79 | N31: =SUM(P31-(G31+H31+M31)) -> 96656626.28 | O31: 0 | P31: 176680890.1 | Q31: =VLOOKUP($A31,'FY 2024 TABLE 15'!$A$11:$C$144,3,FALSE) -> 10805.28 | S31: =VLOOKUP(A31,$Z$3:$AB$138,3,FALSE) -> 16227570.52 | T31: =VLOOKUP($A31,$AD$3:$AF$138,3,FALSE) -> 17037521.2 | Z31: 29 | AA31: FAIRFAX | AB31: 248019406.5 | AD31: 29 | AE31: FAIRFAX | AF31: 253340338.5 | AI31: 29 | AJ31: FAIRFAX | AK31: 144882 | AL31: 2804463 | AM31: includes Fairfax City
A32: 31 | B32: 13126017.78 | C32: 0 | D32: 0 | E32: 0 | F32: 0 | G32: 13126017.78 | H32: 2801469.86 | I32: 3042277.04 | J32: 0 | K32: 0 | L32: 0 | M32: 3042277.04 | N32: 6939942.45 | O32: 1791.03 | P32: 25909707.13 | Q32: =VLOOKUP($A32,'FY 2024 TABLE 15'!$A$11:$C$144,3,FALSE) -> 1704.86 | S32: =VLOOKUP(A32,$Z$3:$AB$138,3,FALSE) -> 2745856.487 | T32: 2843121.7 | Z32: 30 | AA32: FAUQUIER | AB32: 16227570.52 | AD32: 30 | AE32: FAUQUIER | AF32: 17037521.2 | AI32: 30 | AJ32: FAUQUIER | AK32: 196607 | AL32: 151694
A33: 32 | B33: 23659532.55 | C33: 0 | D33: 0 | E33: 180000 | F33: 0 | G33: 23479532.55 | H33: 5074679.12 | I33: 4421645.11 | J33: 0 | K33: 0 | L33: 0 | M33: 4421645.11 | N33: 20241142.11 | O33: 89250 | P33: 53216998.89 | Q33: =VLOOKUP($A33,'FY 2024 TABLE 15'!$A$11:$C$144,3,FALSE) -> 3349.09 | S33: 5075152.23 | T33: 5393782.51 | Z33: 31 | AA33: FLOYD | AB33: 2745856.487 | AD33: 31 | AE33: FLOYD | AF33: 2843121.7 | AI33: 31 | AJ33: FLOYD | AK33: 24061 | AL33: 66579
A34: 33 | B34: 43935017.29 | C34: 0 | D34: 0 | E34: 0 | F34: 0 | G34: 43935017.29 | H34: 9613771.5 | I34: 20475943.31 | J34: 0 | K34: 0 | L34: 5425448.37 | M34: 15050494.94 | N34: 35230636.98 | O34: 0 | P34: 103829920.7 | Q34: =VLOOKUP($A34,'FY 2024 TABLE 15'!$A$11:$C$144,3,FALSE) -> 6087.13 | S34: 9493710.003 | T34: 9845439.102 | Z34: 32 | AA34: FLUVANNA | AB34: 5075152.23 | AD34: 32 | AE34: FLUVANNA | AF34: 5393782.51 | AI34: 32 | AJ34: FLUVANNA | AK34: 22920 | AL34: 262431
A35: 34 | B35: 91916153.01 | C35: 719187.78 | D35: 3732931.31 | E35: 369330.72 | F35: 0 | G35: 88533078.76 | H35: 20245760.72 | I35: 17323765.33 | J35: 0 | K35: 0 | L35: 3630730.47 | M35: 13693034.86 | N35: 102046347.5 | O35: 0 | P35: 224518221.8 | Q35: =VLOOKUP($A35,'FY 2024 TABLE 15'!$A$11:$C$144,3,FALSE) -> 14269.21 | S35: 20300608.92 | T35: 21385365.34 | Z35: 33 | AA35: FRANKLIN | AB35: 9493710.003 | AD35: 33 | AE35: FRANKLIN | AF35: 9845439.102 | AI35: 33 | AJ35: FRANKLIN | AK35: 23084 | AL35: 52049
A36: 35 | B36: 31316254.25 | C36: 0 | D36: 0 | E36: 1697578.08 | F36: 0 | G36: 29618676.17 | H36: 3150443 | I36: 4640715.95 | J36: 892469 | K36: 1155706 | L36: 11698.88 | M36: 4365780.07 | N36: 8292972.72 | O36: 0 | P36: 45427871.96 | Q36: =VLOOKUP($A36,'FY 2024 TABLE 15'!$A$11:$C$144,3,FALSE) -> 3550.48 | S36: 3109674.399 | T36: 3261720.301 | Z36: 34 | AA36: FREDERICK | AB36: 20300608.92 | AD36: 34 | AE36: FREDERICK | AF36: 21385365.34 | AI36: 34 | AJ36: FREDERICK | AK36: 0 | AL36: 195938
A37: 36 | B37: 32472889.3 | C37: 0 | D37: 0 | E37: 0 | F37: 0 | G37: 32472889.3 | H37: 7295826.62 | I37: 8344592.78 | J37: 0 | K37: 0 | L37: 1390144.67 | M37: 6954448.11 | N37: 34671936.06 | O37: 13163.8 | P37: 81395100.09 | Q37: =VLOOKUP($A37,'FY 2024 TABLE 15'!$A$11:$C$144,3,FALSE) -> 4938.68 | S37: 7393684.129 | T37: 7744632.255 | Z37: 35 | AA37: GILES | AB37: 3109674.399 | AD37: 35 | AE37: GILES | AF37: 3261720.301 | AI37: 35 | AJ37: GILES | AK37: 26836 | AL37: 62350
A38: 37 | B38: 6541853.1 | C38: 77446.76 | D38: 213039.71 | E38: 51528.3 | F38: 0 | G38: 6354731.85 | H38: 4183402.76 | I38: 3607478.05 | J38: 0 | K38: 0 | L38: 1098641.68 | M38: 2508836.37 | N38: 28631919.64 | O38: 116193.56 | P38: 41678890.62 | Q38: =VLOOKUP($A38,'FY 2024 TABLE 15'!$A$11:$C$144,3,FALSE) -> 2583.23 | S38: 4266787.58 | T38: 4399192.234 | Z38: 36 | AA38: GLOUCESTER | AB38: 7393684.129 | AD38: 36 | AE38: GLOUCESTER | AF38: 7744632.255 | AI38: 36 | AJ38: GLOUCESTER | AK38: 134619 | AL38: 62531
A39: 38 | B39: 14272637.88 | C39: 484136.9 | D39: 865644.08 | E39: 931722.07 | F39: 0 | G39: 12959408.63 | H39: 2324689.62 | I39: 4908858.13 | J39: 31592.32 | K39: 56421.51 | L39: 292973.14 | M39: 4591055.8 | N39: 7140728.15 | O39: 79223.41 | P39: 27015882.2 | Q39: =VLOOKUP($A39,'FY 2024 TABLE 15'!$A$11:$C$144,3,FALSE) -> 1566.98 | S39: 2333601.28 | T39: 2526103.026 | Z39: 37 | AA39: GOOCHLAND | AB39: 4266787.58 | AD39: 37 | AE39: GOOCHLAND | AF39: 4399192.234 | AI39: 37 | AJ39: GOOCHLAND | AK39: 21307 | AL39: 112090
A40: 39 | B40: 21037255.79 | C40: 0 | D40: 0 | E40: 180000 | F40: 0 | G40: 20857255.79 | H40: 4473284.56 | I40: 6091880.09 | J40: 0 | K40: 0 | L40: 1096846.41 | M40: 4995033.68 | N40: 12643710.15 | O40: 0 | P40: 42969284.18 | Q40: =VLOOKUP($A40,'FY 2024 TABLE 15'!$A$11:$C$144,3,FALSE) -> 2833.09 | S40: 4441161.845 | T40: 4765326.477 | Z40: 38 | AA40: GRAYSON | AB40: 2333601.28 | AD40: 38 | AE40: GRAYSON | AF40: 2526103.026 | AI40: 38 | AJ40: GRAYSON | AK40: 23076 | AL40: 0
A41: 40 | B41: 16884782.28 | C41: 0 | D41: 0 | E41: 0 | F41: 0 | G41: 16884782.28 | H41: 2764437.61 | I41: 9557166.23 | J41: 0 | K41: 0 | L41: 188815.65 | M41: 9368350.58 | N41: 10985368.95 | O41: 13649858.28 | P41: 40002939.42 | Q41: =VLOOKUP($A41,'FY 2024 TABLE 15'!$A$11:$C$144,3,FALSE) -> 2037.12 | S41: =VLOOKUP(A41,$Z$3:$AB$138,3,FALSE)+VLOOKUP(138,$Z$2:$AB$138,3,FALSE) -> 2830890.851 | T41: =VLOOKUP($A41,$AD$3:$AF$138,3,FALSE)+VLOOKUP(138,$AD$3:$AF$138,3,FALSE) -> 3065258.024 | Z41: 39 | AA41: GREENE | AB41: 4441161.845 | AD41: 39 | AE41: GREENE | AF41: 4765326.477 | AI41: 39 | AJ41: GREENE | AK41: 24619 | AL41: 137065
A42: 41 | B42: 43189712.86 | C42: 0 | D42: 0 | E42: 127412 | F42: 0 | G42: 43062300.86 | H42: 6288195.26 | I42: 13760439.37 | J42: 93880 | K42: 1166297 | L42: 63064.77 | M42: 12624957.6 | N42: 14906612.5 | O42: 2600 | P42: 76882066.22 | Q42: =VLOOKUP($A42,'FY 2024 TABLE 15'!$A$11:$C$144,3,FALSE) -> 4537.15 | S42: =VLOOKUP(A42,$Z$3:$AB$138,3,FALSE) -> 6320528.927 | T42: =VLOOKUP($A42,$AD$3:$AF$138,3,FALSE) -> 6648462.051 | Z42: 40 | AA42: GREENSVILLE | AB42: 1561833.698 | AD42: 40 | AE42: GREENSVILLE | AF42: 1685557.035 | AI42: 40 | AJ42: GREENSVILLE | AK42: 129168 | AL42: 61576 | AM42: includes Emporia
A43: 42 | B43: 94529363.86 | C43: 0 | D43: 0 | E43: 1341770.18 | F43: 0 | G43: 93187593.68 | H43: 21739951.54 | I43: 12688589.48 | J43: 0 | K43: 0 | L43: 235289.98 | M43: 12453299.5 | N43: 119236084 | O43: 482964 | P43: 246616928.8 | Q43: =VLOOKUP($A43,'FY 2024 TABLE 15'!$A$11:$C$144,3,FALSE) -> 16794.66 | S43: =VLOOKUP(A43,$Z$3:$AB$138,3,FALSE) -> 23635247.65 | T43: 24450623.37 | Z43: 41 | AA43: HALIFAX | AB43: 6320528.927 | AD43: 41 | AE43: HALIFAX | AF43: 6648462.051 | AI43: 41 | AJ43: HALIFAX | AK43: 25264 | AL43: 0
A44: 43 | B44: 315341519.1 | C44: 0 | D44: 0 | E44: 48428191.53 | F44: 0 | G44: =SUM(B44+C44-D44-E44-F44) -> 266913327.6 | H44: 79059028.7 | I44: 78769029.6 | J44: 0 | K44: 0 | L44: 1460303.25 | M44: 77308726.35 | N44: 330999061.3 | O44: 0 | P44: 754280143.9 | Q44: =VLOOKUP($A44,'FY 2024 TABLE 15'!$A$11:$C$144,3,FALSE) -> 50421.86 | S44: 69473075.37 | T44: 71247714.46 | Z44: 42 | AA44: HANOVER | AB44: 23635247.65 | AD44: 42 | AE44: HANOVER | AF44: 24450623.37 | AI44: 42 | AJ44: HANOVER | AK44: 41040 | AL44: 189215
A45: 44 | B45: 69412930.17 | C45: 0 | D45: 0 | E45: 2913756.82 | F45: 2051869.27 | G45: 64447304.08 | H45: 9269739.18 | I45: 21898677.61 | J45: 0 | K45: 0 | L45: 6032215.69 | M45: 15866461.92 | N45: 15247145.03 | O45: 86223.08 | P45: 104830650.2 | Q45: =VLOOKUP($A45,'FY 2024 TABLE 15'!$A$11:$C$144,3,FALSE) -> 6917.8 | S45: 9033017.5 | T45: 9526187.902 | Z45: 43 | AA45: HENRICO | AB45: 69473075.37 | AD45: 43 | AE45: HENRICO | AF45: 71247714.46 | AI45: 43 | AJ45: HENRICO | AK45: 90624 | AL45: 757624
A46: 45 | B46: 2265227.67 | C46: 0 | D46: 185350.52 | E46: 0 | F46: 0 | G46: 2079877.15 | H46: 289118.74 | I46: 885330.86 | J46: 0 | K46: 0 | L46: 456931.71 | M46: 428399.15 | N46: 2398142 | O46: 0 | P46: 5195537.04 | Q46: =VLOOKUP($A46,'FY 2024 TABLE 15'!$A$11:$C$144,3,FALSE) -> 212 | S46: 288471.0069 | T46: 304739.7817 | Z46: 44 | AA46: HENRY | AB46: 9033017.5 | AD46: 44 | AE46: HENRY | AF46: 9526187.902 | AI46: 44 | AJ46: HENRY | AK46: 104634 | AL46: 225476
A47: 46 | B47: 36902832.77 | C47: 0 | D47: 0 | E47: 3062 | F47: 0 | G47: 36899770.77 | H47: 8103957.66 | I47: 6914848.93 | J47: 0 | K47: 0 | L47: 693221.71 | M47: 6221627.22 | N47: 30708372.71 | O47: 0 | P47: 81933728.36 | Q47: =VLOOKUP($A47,'FY 2024 TABLE 15'!$A$11:$C$144,3,FALSE) -> 5573.26 | S47: 8383957.734 | T47: 8639875.131 | Z47: 45 | AA47: HIGHLAND | AB47: 288471.0069 | AD47: 45 | AE47: HIGHLAND | AF47: 304739.7817 | AI47: 45 | AJ47: HIGHLAND | AK47: 3560 | AL47: 7801
A48: 47 | B48: 0 | C48: 0 | D48: 0 | E48: 0 | F48: 0 | G48: 0 | I48: 0 | J48: 0 | K48: 0 | L48: 0 | M48: 0 | N48: 0 | O48: 0 | P48: 0 | S48: 0 | T48: 0 | Z48: 46 | AA48: ISLE OF WIGHT | AB48: 8383957.734 | AD48: 46 | AE48: ISLE OF WIGHT | AF48: 8639875.131 | AI48: 46 | AJ48: ISLE OF WIGHT | AK48: 17594 | AL48: 167262
A49: 48 | B49: 29553481.63 | C49: 0 | D49: 0 | E49: 1900710.22 | F49: 0 | G49: 27652771.41 | H49: 6434924.34 | I49: 5173417.02 | J49: 0 | K49: 0 | L49: 105600 | M49: 5067817.02 | N49: =SUM(P49-(G49+H49+M49)) -> 22971747.23 | O49: 55889.65 | P49: 62127260 | Q49: =VLOOKUP($A49,'FY 2024 TABLE 15'!$A$11:$C$144,3,FALSE) -> 4492.14 | S49: 6675735.764 | T49: =VLOOKUP($A49,$AD$3:$AF$138,3,FALSE) -> 6724367.931 | Z49: 47 | AA49: JAMES CITY | AB49: 14956360.6 | AD49: 47 | AE49: JAMES CITY | AF49: 15693540.63 | AI49: 47 | AJ49: JAMES CITY | AK49: 71792 | AL49: 0 | AM49: included in Williamsburg
A50: 49 | B50: 7393304.75 | C50: 0 | D50: 0 | E50: 220119.34 | F50: 0 | G50: 7173185.41 | H50: 1049422.12 | I50: 2078095.79 | J50: 0 | K50: 0 | L50: 139041 | M50: 1939054.79 | N50: 4773194.87 | O50: 0 | P50: 14934857.19 | Q50: =VLOOKUP($A50,'FY 2024 TABLE 15'!$A$11:$C$144,3,FALSE) -> 849.05 | S50: 1075307.97 | T50: 1079426.26 | Z50: 48 | AA50: KING GEORGE | AB50: 6675735.764 | AD50: 48 | AE50: KING GEORGE | AF50: 6724367.931 | AI50: 48 | AJ50: KING GEORGE | AK50: 17640 | AL50: 231465
A51: 50 | B51: 16206655.39 | C51: 0 | D51: 0 | E51: 1506595.18 | F51: 0 | G51: 14700060.21 | H51: 2931456.92 | I51: 3064685.81 | J51: 0 | K51: 0 | L51: 27556.24 | M51: 3037129.57 | N51: 10228733.06 | O51: 50 | P51: 30897379.76 | Q51: =VLOOKUP($A51,'FY 2024 TABLE 15'!$A$11:$C$144,3,FALSE) -> 2094.34 | S51: 2901932.219 | T51: 2981538.304 | Z51: 49 | AA51: KING QUEEN | AB51: 1075307.97 | AD51: 49 | AE51: KING QUEEN | AF51: 1079426.26 | AI51: 49 | AJ51: KING QUEEN | AK51: 56463 | AL51: 41679
A52: 51 | B52: 3330275.06 | C52: 0 | D52: 0 | E52: 618514.7 | F52: 0 | G52: 2711760.36 | H52: 1472485.46 | I52: 2224272.58 | J52: 0 | K52: 0 | L52: 15372.71 | M52: 2208899.87 | N52: 12601412.78 | O52: 0 | P52: 18994558.47 | Q52: =VLOOKUP($A52,'FY 2024 TABLE 15'!$A$11:$C$144,3,FALSE) -> 1016.73 | S52: 1480028.487 | T52: 1635325.202 | Z52: 50 | AA52: KING WILLIAM | AB52: 2901932.219 | AD52: 50 | AE52: KING WILLIAM | AF52: 2981538.304 | AI52: 50 | AJ52: KING WILLIAM | AK52: 150818 | AL52: 71997
A53: 52 | B53: 31688463.14 | C53: 0 | D53: 4090055.69 | E53: 804581.87 | F53: 0 | G53: 26793825.58 | H53: 4059931.04 | I53: 10275462.2 | J53: 0 | K53: 0 | L53: 86370.75 | M53: 10189091.45 | N53: 10234221.39 | O53: 0 | P53: 51277069.46 | Q53: =VLOOKUP($A53,'FY 2024 TABLE 15'!$A$11:$C$144,3,FALSE) -> 2982.65 | S53: 4037517.712 | T53: 4041988.094 | Z53: 51 | AA53: LANCASTER | AB53: 1480028.487 | AD53: 51 | AE53: LANCASTER | AF53: 1635325.202 | AI53: 51 | AJ53: LANCASTER | AK53: 5547 | AL53: 11532
A54: 53 | B54: 403306655.1 | C54: 0 | D54: 0 | E54: 0 | F54: 0 | G54: 403306655.1 | H54: 110131367.5 | I54: 53244045.5 | J54: 0 | K54: 0 | L54: 11547571.2 | M54: 41696474.3 | N54: 1191166312 | O54: 0 | P54: 1746300809 | Q54: =VLOOKUP($A54,'FY 2024 TABLE 15'!$A$11:$C$144,3,FALSE) -> 82439.13 | S54: 112267964.5 | T54: 113487104 | Z54: 52 | AA54: LEE | AB54: 4037517.712 | AD54: 52 | AE54: LEE | AF54: 4041988.094 | AI54: 52 | AJ54: LEE | AK54: 259135 | AL54: 2389
A55: 54 | B55: 28653654.18 | C55: 0 | D55: 0 | E55: 0 | F55: 0 | G55: 28653654.18 | H55: 7243604.88 | I55: 13398839.97 | J55: 0 | K55: 0 | L55: 293233.41 | M55: 13105606.56 | N55: 37262994.74 | O55: 315469.79 | P55: 86265860.36 | Q55: =VLOOKUP($A55,'FY 2024 TABLE 15'!$A$11:$C$144,3,FALSE) -> 5135.66 | S55: 7441045.04 | T55: 7668726.376 | Z55: 53 | AA55: LOUDOUN | AB55: 112267964.5 | AD55: 53 | AE55: LOUDOUN | AF55: 113487104 | AI55: 53 | AJ55: LOUDOUN | AK55: 0 | AL55: 1107487
A56: 55 | B56: 15280925.43 | C56: 0 | D56: 584630 | E56: 0 | F56: 0 | G56: 14696295.43 | H56: 2189889.52 | I56: 3962283.07 | J56: 219412.42 | K56: 412975.82 | L56: 0 | M56: 3768719.67 | N56: 6060554.06 | O56: 0 | P56: 26715458.68 | Q56: =VLOOKUP($A56,'FY 2024 TABLE 15'!$A$11:$C$144,3,FALSE) -> 1573.36 | S56: 2249643.3 | T56: 2363128.637 | Z56: 54 | AA56: LOUISA | AB56: 7441045.04 | AD56: 54 | AE56: LOUISA | AF56: 7668726.376 | AI56: 54 | AJ56: LOUISA | AK56: 105386 | AL56: 122909
A57: 56 | B57: 10116119.52 | C57: 105996.72 | D57: 105996.72 | E57: 0 | F57: 0 | G57: 10116119.52 | H57: 2732885.16 | I57: 2886185.99 | J57: 0 | K57: 0 | L57: 0 | M57: 2886185.99 | N57: 10059873.75 | O57: 0 | P57: 25795064.42 | Q57: =VLOOKUP($A57,'FY 2024 TABLE 15'!$A$11:$C$144,3,FALSE) -> 1668.53 | S57: 2711412.188 | T57: 2692426.203 | Z57: 55 | AA57: LUNENBURG | AB57: 2249643.3 | AD57: 55 | AE57: LUNENBURG | AF57: 2363128.637 | AI57: 55 | AJ57: LUNENBURG | AK57: 75922 | AL57: 89554
A58: 57 | B58: 4899986.35 | C58: 0 | D58: 0 | E58: 387075.1 | F58: 0 | G58: 4512911.25 | H58: 1282304.4 | I58: 1537370.65 | J58: 0 | K58: 0 | L58: 20 | M58: 1537350.65 | N58: 10169761.66 | O58: 0 | P58: 17502327.96 | Q58: =VLOOKUP($A58,'FY 2024 TABLE 15'!$A$11:$C$144,3,FALSE) -> 821.34 | S58: 1244300.313 | T58: 1303795.11 | Z58: 56 | AA58: MADISON | AB58: 2711412.188 | AD58: 56 | AE58: MADISON | AF58: 2692426.203 | AI58: 56 | AJ58: MADISON | AK58: 20620 | AL58: 100432
A59: 58 | B59: 28734796.24 | C59: 0 | D59: 0 | E59: 0 | F59: 0 | G59: 28734796.24 | H59: 5067331.46 | I59: 9349920.52 | J59: 0 | K59: 0 | L59: 341511.49 | M59: 9008409.03 | N59: 21397595.55 | O59: 0 | P59: 64208132.28 | Q59: =VLOOKUP($A59,'FY 2024 TABLE 15'!$A$11:$C$144,3,FALSE) -> 3865.22 | S59: 5111749.298 | T59: 5312295.316 | Z59: 57 | AA59: MATHEWS | AB59: 1244300.313 | AD59: 57 | AE59: MATHEWS | AF59: 1303795.11 | AI59: 57 | AJ59: MATHEWS | AK59: 44000 | AL59: 36705
A60: 59 | B60: 6289496.24 | C60: 0 | D60: 255903.76 | E60: 0 | F60: 652059 | G60: 5381533.48 | H60: 1464062.2 | I60: 2966219.76 | J60: 45498.47 | K60: 0 | L60: 426332.4 | M60: 2585385.83 | N60: 11880478.16 | O60: 652059 | P60: 21311459.67 | Q60: =VLOOKUP($A60,'FY 2024 TABLE 15'!$A$11:$C$144,3,FALSE) -> 1214.67 | S60: 1520931.092 | T60: 1684440.772 | Z60: 58 | AA60: MECKLENBURG | AB60: 5111749.298 | AD60: 58 | AE60: MECKLENBURG | AF60: 5312295.316 | AI60: 58 | AJ60: MECKLENBURG | AK60: 251988 | AL60: 147521
A61: 60 | B61: 59828519.54 | C61: 3155798 | D61: 3155798 | E61: 0 | F61: 0 | G61: 59828519.54 | H61: 15057624.22 | I61: 10840244.03 | J61: 83141.95 | K61: 83141.95 | L61: 0 | M61: 10840244.03 | N61: 58893291.1 | O61: 0 | P61: 144619678.9 | Q61: =VLOOKUP($A61,'FY 2024 TABLE 15'!$A$11:$C$144,3,FALSE) -> 9566.78 | S61: 14926221.84 | T61: 15373173.17 | Z61: 59 | AA61: MIDDLESEX | AB61: 1520931.092 | AD61: 59 | AE61: MIDDLESEX | AF61: 1684440.772 | AI61: 59 | AJ61: MIDDLESEX | AK61: 41628 | AL61: 25435
A62: 62 | B62: 8939754.57 | C62: 0 | D62: 0 | E62: 1369639.83 | F62: 0 | G62: 7570114.74 | H62: 2327424.06 | I62: 4701930.45 | J62: 0 | K62: 0 | L62: 29832 | M62: 4672098.45 | N62: 17532929.36 | O62: 5625 | P62: 32102566.61 | Q62: =VLOOKUP($A62,'FY 2024 TABLE 15'!$A$11:$C$144,3,FALSE) -> 1474.85 | S62: 2336830.433 | T62: 2462476.038 | Z62: 60 | AA62: MONTGOMERY | AB62: 14926221.84 | AD62: 60 | AE62: MONTGOMERY | AF62: 15373173.17 | AI62: 60 | AJ62: MONTGOMERY | AK62: 90576 | AL62: 53378
A63: 63 | B63: 20778914.2 | C63: 0 | D63: 0 | E63: 0 | F63: 0 | G63: 20778914.2 | H63: 4515712.7 | I63: 4388283.54 | J63: 0 | K63: 275625 | L63: 0 | M63: 4112658.54 | N63: 19834902.28 | O63: 0 | P63: 49242187.72 | Q63: =VLOOKUP($A63,'FY 2024 TABLE 15'!$A$11:$C$144,3,FALSE) -> 3541.44 | S63: 4630605.491 | T63: 4718443.434 | Z63: 62 | AA63: NELSON | AB63: 2336830.433 | AD63: 62 | AE63: NELSON | AF63: 2462476.038 | AI63: 62 | AJ63: NELSON | AK63: 30320 | AL63: 75396
A64: 65 | B64: 11678273.72 | C64: 249286.01 | D64: 976875.38 | E64: 1056351.65 | F64: 69623.06 | G64: 9824709.64 | H64: 2028798.94 | I64: 3762713.13 | J64: 456233 | K64: 0 | L64: 339215.62 | M64: 3879730.51 | N64: 9838175.95 | O64: 0 | P64: 25571415.04 | Q64: =VLOOKUP($A64,'FY 2024 TABLE 15'!$A$11:$C$144,3,FALSE) -> 1320.31 | S64: 2042977.504 | T64: 2222479.507 | Z64: 63 | AA64: NEW KENT | AB64: 4630605.491 | AD64: 63 | AE64: NEW KENT | AF64: 4718443.434 | AI64: 63 | AJ64: NEW KENT | AK64: 61523 | AL64: 87618
A65: 66 | B65: 5063133.3 | C65: 0 | D65: 0 | E65: 493299.48 | F65: 8173.37 | G65: 4561660.45 | H65: 1575274.2 | I65: 4698431.73 | J65: 0 | K65: 0 | L65: 476613.2 | M65: 4221818.53 | N65: 12841783.96 | O65: 387896.9 | P65: 23200537.14 | Q65: =VLOOKUP($A65,'FY 2024 TABLE 15'!$A$11:$C$144,3,FALSE) -> 1162.79 | S65: 1577979.463 | T65: 1575047.004 | Z65: 65 | AA65: NORTHAMPTON | AB65: 2042977.504 | AD65: 65 | AE65: NORTHAMPTON | AF65: 2222479.507 | AI65: 65 | AJ65: NORTHAMPTON | AK65: 49632 | AL65: 0
A66: 67 | B66: 17548023.37 | C66: 166920 | D66: 167388.11 | E66: 372442.3 | F66: 560134.52 | G66: =SUM(B66+C66-D66-E66-F66) -> 16614978.44 | H66: 2654424.66 | I66: 8543356.8 | J66: 0 | K66: 0 | L66: 0 | M66: 8543356.8 | N66: 6012054.1 | O66: 0 | P66: 33824814 | Q66: =VLOOKUP($A66,'FY 2024 TABLE 15'!$A$11:$C$144,3,FALSE) -> 1824.6 | S66: 2693113.654 | T66: 2907864.95 | Z66: 66 | AA66: NORTHUMBERLAND | AB66: 1577979.463 | AD66: 66 | AE66: NORTHUMBERLAND | AF66: 1575047.004 | AI66: 66 | AJ66: NORTHUMBERLAND | AK66: 32676 | AL66: 43662
A67: 68 | B67: 33824389.03 | C67: 0 | D67: 0 | E67: 0 | F67: 0 | G67: 33824389.03 | H67: 7088479.6 | I67: 10750800.53 | J67: 0 | K67: 1468691.68 | L67: 200908.47 | M67: =SUM(I67+J67-K67-L67) -> 9081200.38 | N67: 22319296.88 | O67: 49157.88 | P67: 72313365.89 | Q67: =VLOOKUP($A67,'FY 2024 TABLE 15'!$A$11:$C$144,3,FALSE) -> 5052.56 | S67: 7332330.22 | T67: 7707795.578 | Z67: 67 | AA67: NOTTOWAY | AB67: 2693113.654 | AD67: 67 | AE67: NOTTOWAY | AF67: 2907864.95 | AI67: 67 | AJ67: NOTTOWAY | AK67: 76307 | AL67: 55018
A68: 69 | B68: 25162733.34 | C68: 0 | D68: 0 | E68: 60179.66 | F68: 0 | G68: 25102553.68 | H68: 4311941.46 | I68: 5273575.49 | J68: 0 | K68: 0 | L68: 405744.61 | M68: 4867830.88 | N68: 13760545.59 | O68: 18134 | P68: 48042871.61 | Q68: =VLOOKUP($A68,'FY 2024 TABLE 15'!$A$11:$C$144,3,FALSE) -> 2985.71 | S68: 4362585.787 | T68: 4460586.695 | Z68: 68 | AA68: ORANGE | AB68: 7332330.22 | AD68: 68 | AE68: ORANGE | AF68: 7707795.578 | AI68: 68 | AJ68: ORANGE | AK68: 22428 | AL68: 252457
A69: 70 | B69: 22066189.82 | C69: 0 | D69: 0 | E69: 430406.51 | F69: 0 | G69: 21635783.31 | H69: 2994225.84 | I69: 4808133.6 | J69: 0 | K69: 0 | L69: 233693 | M69: 4574440.6 | N69: 6915321.61 | O69: 0 | P69: 36119771.36 | Q69: =VLOOKUP($A69,'FY 2024 TABLE 15'!$A$11:$C$144,3,FALSE) -> 2354.4 | S69: 2988042.967 | T69: 3039583.977 | Z69: 69 | AA69: PAGE | AB69: 4362585.787 | AD69: 69 | AE69: PAGE | AF69: 4460586.695 | AI69: 69 | AJ69: PAGE | AK69: 0 | AL69: 47306
A70: 71 | B70: 76523747.73 | C70: 6640699.47 | D70: 9884333.91 | E70: 1666812.08 | F70: 0 | G70: 71613301.21 | H70: 11047495.18 | I70: 23494950.69 | J70: 69317.62 | K70: 0 | L70: 1735817.92 | M70: 21828450.39 | N70: 24724861.03 | O70: 11450 | P70: 129214107.8 | Q70: =VLOOKUP($A70,'FY 2024 TABLE 15'!$A$11:$C$144,3,FALSE) -> 7792.09 | S70: 10923148.43 | T70: 10725054.3 | Z70: 70 | AA70: PATRICK | AB70: 2988042.967 | AD70: 70 | AE70: PATRICK | AF70: 3039583.977 | AI70: 70 | AJ70: PATRICK | AK70: 34725 | AL70: 0
A71: 72 | B71: 21806511.84 | C71: 0 | D71: 460890.88 | E71: 0 | F71: 0 | G71: 21345620.96 | H71: 6087339.48 | I71: 3717088.18 | J71: 0 | K71: 0 | L71: 0 | M71: 3717088.18 | N71: 29571163.29 | O71: 625 | P71: 60721211.91 | Q71: =VLOOKUP($A71,'FY 2024 TABLE 15'!$A$11:$C$144,3,FALSE) -> 4171.94 | S71: 6263480.557 | T71: 6153957.57 | Z71: 71 | AA71: PITTSYLVANIA | AB71: 10923148.43 | AD71: 71 | AE71: PITTSYLVANIA | AF71: 10725054.3 | AI71: 71 | AJ71: PITTSYLVANIA | AK71: 136666 | AL71: 215904
A72: 73 | B72: 15051434.67 | C72: 0 | D72: 0 | E72: 0 | F72: 0 | G72: 15051434.67 | H72: 3140520.02 | I72: 7210545.75 | J72: 0 | K72: 0 | L72: 0 | M72: 7210545.75 | N72: 7792490.24 | O72: 70681.07 | P72: 33194990.68 | Q72: =VLOOKUP($A72,'FY 2024 TABLE 15'!$A$11:$C$144,3,FALSE) -> 1860.26 | S72: 3160264.464 | T72: 3301905.767 | Z72: 72 | AA72: POWHATAN | AB72: 6263480.557 | AD72: 72 | AE72: POWHATAN | AF72: 6153957.57 | AI72: 72 | AJ72: POWHATAN | AK72: 106306 | AL72: 60453
A73: 74 | B73: 50412013.71 | C73: 0 | D73: 0 | E73: 0 | F73: 0 | G73: 50412013.71 | H73: 8039174.76 | I73: 13120962.1 | J73: 0 | K73: 0 | L73: 1546625.55 | M73: 11574336.55 | N73: 15475241.88 | O73: 0 | P73: 85500766.9 | Q73: =VLOOKUP($A73,'FY 2024 TABLE 15'!$A$11:$C$144,3,FALSE) -> 6125.02 | S73: 7910348.619 | T73: 8187788.641 | Z73: 73 | AA73: PRINCE EDWARD | AB73: 3160264.464 | AD73: 73 | AE73: PRINCE EDWARD | AF73: 3301905.767 | AI73: 73 | AJ73: PRINCE EDWARD | AK73: 64548 | AL73: 47643
A74: 75 | B74: 670996536 | C74: 0 | D74: 0 | E74: 10954 | F74: 592865.99 | G74: 670392716 | H74: 118304436.8 | I74: 107606752.1 | J74: 0 | K74: 0 | L74: 12203448.36 | M74: 95403303.75 | N74: 655375842.5 | O74: 444940.16 | P74: 1539476299 | Q74: =VLOOKUP($A74,'FY 2024 TABLE 15'!$A$11:$C$144,3,FALSE) -> 90689.17 | S74: 121852090.8 | T74: 125768228.8 | Z74: 74 | AA74: PRINCE GEORGE | AB74: 7910348.619 | AD74: 74 | AE74: PRINCE GEORGE | AF74: 8187788.641 | AI74: 74 | AJ74: PRINCE GEORGE | AK74: 14918 | AL74: 94603
A75: 77 | B75: 35392045.74 | C75: 0 | D75: 0 | E75: 0 | F75: 0 | G75: 35392045.74 | H75: 5591687.3 | I75: 10953247.01 | J75: 0 | K75: 0 | L75: 29837.08 | M75: 10923409.93 | N75: 15819807.43 | O75: 0 | P75: 67726950.4 | Q75: =VLOOKUP($A75,'FY 2024 TABLE 15'!$A$11:$C$144,3,FALSE) -> 4322.39 | S75: 5660705.318 | T75: 5765498.068 | Z75: 75 | AA75: PRINCE WILLIAM | AB75: 121852090.8 | AD75: 75 | AE75: PRINCE WILLIAM | AF75: 125768228.8 | AI75: 75 | AJ75: PRINCE WILLIAM | AK75: 383488 | AL75: 1243399
A76: 78 | B76: 2726842.25 | C76: 0 | D76: 0 | E76: 392044.47 | F76: 0 | G76: 2334797.78 | H76: 1170817.9 | I76: 696835.63 | J76: 0 | K76: 0 | L76: 0 | M76: 696835.63 | N76: 11271849.97 | O76: 0 | P76: 15474301.28 | Q76: =VLOOKUP($A76,'FY 2024 TABLE 15'!$A$11:$C$144,3,FALSE) -> 771.87 | S76: 1184022.79 | T76: 1217842.864 | Z76: 77 | AA76: PULASKI | AB76: 5660705.318 | AD76: 77 | AE76: PULASKI | AF76: 5765498.068 | AI76: 77 | AJ76: PULASKI | AK76: 294050 | AL76: 45901
A77: 79 | B77: 12521790.62 | C77: 0 | D77: 0 | E77: 1452576.88 | F77: 230205 | G77: 10839008.74 | H77: 1477835.4 | I77: 2820575.8 | J77: 0 | K77: 0 | L77: 247814.23 | M77: 2572761.57 | N77: 5496942.19 | O77: 0 | P77: 20386547.9 | Q77: =VLOOKUP($A77,'FY 2024 TABLE 15'!$A$11:$C$144,3,FALSE) -> 1367.8 | S77: 1544611.548 | T77: 1590674.685 | Z77: 78 | AA77: RAPPAHANNOCK | AB77: 1184022.79 | AD77: 78 | AE77: RAPPAHANNOCK | AF77: 1217842.864 | AI77: 78 | AJ77: RAPPAHANNOCK | AK77: 21324 | AL77: 6919
A78: 80 | B78: 92572042.22 | C78: 712481.73 | D78: 4243868.09 | E78: 822617.5 | F78: 0 | G78: 88218038.36 | H78: 18841607.68 | I78: 16863275.2 | J78: 0 | K78: 0 | L78: 1574579.88 | M78: 15288695.32 | N78: 96208793.31 | O78: 68500 | P78: 218557134.7 | Q78: =VLOOKUP($A78,'FY 2024 TABLE 15'!$A$11:$C$144,3,FALSE) -> 13715.82 | S78: 18786136.13 | T78: 19249954.34 | Z78: 79 | AA78: RICHMOND | AB78: 1544611.548 | AD78: 79 | AE78: RICHMOND | AF78: 1590674.685 | AI78: 79 | AJ78: RICHMOND | AK78: 79392 | AL78: 88161
A79: 81 | B79: 17469725.45 | C79: 0 | D79: 0 | E79: 2409570 | F79: 0 | G79: 15060155.45 | H79: 3930632.36 | I79: 4501553.24 | J79: 0 | K79: 0 | L79: 0 | M79: 4501553.24 | N79: 17699764.66 | O79: 1883862.67 | P79: 41192105.71 | Q79: =VLOOKUP($A79,'FY 2024 TABLE 15'!$A$11:$C$144,3,FALSE) -> 2309.58 | S79: 3933108.43 | T79: 3945989.481 | Z79: 80 | AA79: ROANOKE | AB79: 18786136.13 | AD79: 80 | AE79: ROANOKE | AF79: 19249954.34 | AI79: 80 | AJ79: ROANOKE | AK79: 68500 | AL79: 116559
A80: 82 | B80: 80858284.66 | C80: 0 | D80: 0 | E80: 92795.77 | F80: 0 | G80: 80765488.89 | H80: 17264686.12 | I80: 14761249.2 | J80: 0 | K80: 0 | L80: 406092.41 | M80: 14355156.79 | N80: 66542620.9 | O80: 370955.49 | P80: 178927952.7 | Q80: =VLOOKUP($A80,'FY 2024 TABLE 15'!$A$11:$C$144,3,FALSE) -> 11554.51 | S80: 17274892.5 | T80: 18381501.78 | Z80: 81 | AA80: ROCKBRIDGE | AB80: 3933108.43 | AD80: 81 | AE80: ROCKBRIDGE | AF80: 3945989.481 | AI80: 81 | AJ80: ROCKBRIDGE | AK80: 25520 | AL80: 0
A81: 83 | B81: 32551148.21 | C81: 0 | D81: 0 | E81: 406958.64 | F81: 0 | G81: 32144189.57 | H81: 4593851.46 | I81: 8253628.07 | J81: 0 | K81: 0 | L81: 383906.73 | M81: 7869721.34 | N81: 7103310.53 | O81: 0 | P81: 51711072.9 | Q81: =VLOOKUP($A81,'FY 2024 TABLE 15'!$A$11:$C$144,3,FALSE) -> 3415.33 | S81: 4626299.954 | T81: =VLOOKUP($A81,$AD$3:$AF$138,3,FALSE) -> 4651467.657 | Z81: 82 | AA81: ROCKINGHAM | AB81: 17274892.5 | AD81: 82 | AE81: ROCKINGHAM | AF81: 18381501.78 | AI81: 82 | AJ81: ROCKINGHAM | AK81: 0 | AL81: 112984
A82: 84 | B82: 47697384.5 | C82: 0 | D82: 0 | E82: 0 | F82: 0 | G82: 47697384.5 | H82: 3885890.02 | I82: 8003398.56 | J82: 0 | K82: 0 | L82: 0 | M82: 8003398.56 | N82: 10490771.95 | O82: 0 | P82: 70077445.03 | Q82: =VLOOKUP($A82,'FY 2024 TABLE 15'!$A$11:$C$144,3,FALSE) -> 4251.93 | S82: 3836233.838 | T82: 4023011.624 | Z82: 83 | AA82: RUSSELL | AB82: 4626299.954 | AD82: 83 | AE82: RUSSELL | AF82: 4651467.657 | AI82: 83 | AJ82: RUSSELL | AK82: 592434 | AL82: 260959
A83: 85 | B83: 40160085.39 | C83: 0 | D83: 0 | E83: 304534.76 | F83: 286627 | G83: 39568923.63 | H83: 8713701.38 | I83: 11382183.57 | J83: 0 | K83: 0 | L83: 187629.55 | M83: 11194554.02 | N83: 31458846.33 | O83: 0 | P83: 90936025.36 | Q83: =VLOOKUP($A83,'FY 2024 TABLE 15'!$A$11:$C$144,3,FALSE) -> 5655.02 | S83: 8756386.721 | T83: 9071868.887 | Z83: 84 | AA83: SCOTT | AB83: 3836233.838 | AD83: 84 | AE83: SCOTT | AF83: 4023011.624 | AI83: 84 | AJ83: SCOTT | AK83: 218492 | AL83: 156593
A84: 86 | B84: 37760540.65 | C84: 0 | D84: 0 | E84: 473677.97 | F84: 0 | G84: 37286862.68 | H84: 5516111.06 | I84: 12530099.43 | J84: 0 | K84: 0 | L84: 0 | M84: 12530099.43 | N84: 11744476.64 | O84: 0 | P84: 67077549.81 | Q84: =VLOOKUP($A84,'FY 2024 TABLE 15'!$A$11:$C$144,3,FALSE) -> 3869.45 | S84: 5373310.696 | T84: 5543361.744 | Z84: 85 | AA84: SHENANDOAH | AB84: 8756386.721 | AD84: 85 | AE84: SHENANDOAH | AF84: 9071868.887 | AI84: 85 | AJ84: SHENANDOAH | AK84: 23542 | AL84: 88622
A85: 87 | B85: 22118287.75 | C85: 0 | D85: 1435218.48 | E85: 20620 | F85: 0 | G85: 20662449.27 | H85: 3264371.78 | I85: 3986216.94 | J85: 45575.14 | K85: 40417.26 | L85: 277600 | M85: 3713774.82 | N85: 11428863.55 | O85: 375000 | P85: 39069459.42 | Q85: =VLOOKUP($A85,'FY 2024 TABLE 15'!$A$11:$C$144,3,FALSE) -> 2472.54 | S85: 3356166.416 | T85: 3335393.655 | Z85: 86 | AA85: SMYTH | AB85: 5373310.696 | AD85: 86 | AE85: SMYTH | AF85: 5543361.744 | AI85: 86 | AJ85: SMYTH | AK85: 28045 | AL85: 135199
A86: 88 | B86: 171810077.4 | C86: 0 | D86: 6039759.94 | E86: 6770565 | F86: 76896 | G86: 158922856.5 | H86: 33052930.34 | I86: 32245112.46 | J86: 0 | K86: 0 | L86: 776980.04 | M86: 31468132.42 | N86: 133273098.3 | O86: 1260 | P86: 356717017.6 | Q86: =VLOOKUP($A86,'FY 2024 TABLE 15'!$A$11:$C$144,3,FALSE) -> 23865.69 | S86: 34235480.77 | T86: 35807482.49 | Z86: 87 | AA86: SOUTHAMPTON | AB86: 3356166.416 | AD86: 87 | AE86: SOUTHAMPTON | AF86: 3335393.655 | AI86: 87 | AJ86: SOUTHAMPTON | AK86: 0 | AL86: 68146
A87: 89 | B87: 220665887.1 | C87: 0 | D87: 0 | E87: 5656165.5 | F87: 0 | G87: 215009721.6 | H87: 41058860.32 | I87: 34308823.53 | J87: 0 | K87: 0 | L87: 919223.38 | M87: 33389600.15 | N87: 155155048 | O87: 0 | P87: 444613230 | Q87: =VLOOKUP($A87,'FY 2024 TABLE 15'!$A$11:$C$144,3,FALSE) -> 31662.95 | S87: 41923017.82 | T87: 43364582.57 | Z87: 88 | AA87: SPOTSYLVANIA | AB87: 34235480.77 | AD87: 88 | AE87: SPOTSYLVANIA | AF87: 35807482.49 | AI87: 88 | AJ87: SPOTSYLVANIA | AK87: 44002 | AL87: 475882
A88: 90 | B88: 2738954.71 | C88: 0 | D88: 0 | E88: 0 | F88: 0 | G88: 2738954.71 | H88: 923003.34 | I88: 2860548.83 | J88: 0 | K88: 0 | L88: 0 | M88: 2860548.83 | N88: 12413305.32 | O88: 0 | P88: 18935812.2 | Q88: =VLOOKUP($A88,'FY 2024 TABLE 15'!$A$11:$C$144,3,FALSE) -> 689.88 | S88: 989197.2215 | T88: 1038124.531 | Z88: 89 | AA88: STAFFORD | AB88: 41923017.82 | AD88: 89 | AE88: STAFFORD | AF88: 43364582.57 | AI88: 89 | AJ88: STAFFORD | AK88: 233932 | AL88: 683848
A89: 91 | B89: 11037326.24 | C89: 0 | D89: 0 | E89: 1386594 | F89: 0 | G89: 9650732.24 | H89: 1451133.32 | I89: 5036801.66 | J89: 0 | K89: 0 | L89: 0 | M89: 5036801.66 | N89: 9331294.93 | O89: 0 | P89: 25469962.15 | Q89: =VLOOKUP($A89,'FY 2024 TABLE 15'!$A$11:$C$144,3,FALSE) -> 1010.28 | S89: 1447736.956 | T89: 1562768.111 | Z89: 90 | AA89: SURRY | AB89: 989197.2215 | AD89: 90 | AE89: SURRY | AF89: 1038124.531 | AI89: 90 | AJ89: SURRY | AK89: 0 | AL89: 5535
A90: 92 | B90: 47072154.92 | C90: 0 | D90: 0 | E90: 2124037.94 | F90: 0 | G90: 44948116.98 | H90: 7060490.68 | I90: 29876356.02 | J90: 0 | K90: 0 | L90: 2026052.71 | M90: 27850303.31 | N90: 10830128.66 | O90: 416005.82 | P90: 90689039.63 | Q90: =VLOOKUP($A90,'FY 2024 TABLE 15'!$A$11:$C$144,3,FALSE) -> 5271.56 | S90: 7191323.87 | T90: 7701098.001 | Z90: 91 | AA90: SUSSEX | AB90: 1447736.956 | AD90: 91 | AE90: SUSSEX | AF90: 1562768.111 | AI90: 91 | AJ90: SUSSEX | AK90: 27700 | AL90: 40626
A91: 93 | B91: 32229054.25 | C91: 0 | D91: 0 | E91: 2098949 | F91: 0 | G91: 30130105.25 | H91: 8236772.16 | I91: 9639194.33 | J91: 0 | K91: 0 | L91: 0 | M91: 9639194.33 | N91: 28817240.74 | O91: 215632.12 | P91: 76823312.48 | Q91: =VLOOKUP($A91,'FY 2024 TABLE 15'!$A$11:$C$144,3,FALSE) -> 5107.37 | S91: 8313992.751 | T91: 8517086.207 | Z91: 92 | AA91: TAZEWELL | AB91: 7191323.87 | AD91: 92 | AE91: TAZEWELL | AF91: 7701098.001 | AI91: 92 | AJ91: TAZEWELL | AK91: 582957 | AL91: 192939
A92: 94 | B92: 53071814.29 | C92: 0 | D92: 0 | E92: 1006164.85 | F92: 1840637.4 | G92: 50225012.04 | H92: 9435442.04 | I92: 16660541.44 | J92: 0 | K92: 0 | L92: 4232285.55 | M92: 12428255.89 | N92: 28983095.45 | O92: 237040.2 | P92: 101071805.4 | Q92: =VLOOKUP($A92,'FY 2024 TABLE 15'!$A$11:$C$144,3,FALSE) -> 6748.62 | S92: 9346245.347 | T92: 9445816.971 | Z92: 93 | AA92: WARREN | AB92: 8313992.751 | AD92: 93 | AE92: WARREN | AF92: 8517086.207 | AI92: 93 | AJ92: WARREN | AK92: 0 | AL92: 74437
A93: 95 | B93: 13705677.65 | C93: 0 | D93: 0 | E93: 0 | F93: 0 | G93: 13705677.65 | H93: 2350574.63 | I93: 4520043.36 | J93: 0 | K93: 0 | L93: 852842.13 | M93: 3667201.23 | N93: 11614132.81 | O93: 6863.9 | P93: 31337586.32 | Q93: =VLOOKUP($A93,'FY 2024 TABLE 15'!$A$11:$C$144,3,FALSE) -> 1554.5 | S93: 2337906.817 | T93: 2498196.452 | Z93: 94 | AA93: WASHINGTON | AB93: 9346245.347 | AD93: 94 | AE93: WASHINGTON | AF93: 9445816.971 | AI93: 94 | AJ93: WASHINGTON | AK93: 90555 | AL93: 277717
A94: 96 | B94: 50015104.31 | C94: 2734585.97 | D94: 8216805.04 | E94: 2307573.82 | F94: 0 | G94: 42225311.42 | H94: 6641582.14 | I94: 14384146.62 | J94: 0 | K94: 0 | L94: 1325678.63 | M94: 13058467.99 | N94: 20920006.2 | O94: 473115.91 | P94: 82845367.75 | Q94: =VLOOKUP($A94,'FY 2024 TABLE 15'!$A$11:$C$144,3,FALSE) -> 5815.5 | S94: 6540111.336 | T94: 6729949.246 | Z94: 95 | AA94: WESTMORELAND | AB94: 2337906.817 | AD94: 95 | AE94: WESTMORELAND | AF94: 2498196.452 | AI94: 95 | AJ94: WESTMORELAND | AK94: 45432 | AL94: 42234
A95: 97 | B95: 35837952.67 | C95: 0 | D95: 0 | E95: 5410000 | F95: 163210 | G95: 30264742.67 | H95: 5179688.22 | I95: 13000672.55 | J95: 0 | K95: 0 | L95: 5440747.77 | M95: 7559924.78 | N95: 13046233.86 | O95: 0 | P95: 56050589.53 | Q95: =VLOOKUP($A95,'FY 2024 TABLE 15'!$A$11:$C$144,3,FALSE) -> 3766.37 | S95: 5236609.883 | T95: 5379271.092 | Z95: 96 | AA95: WISE | AB95: 6540111.336 | AD95: 96 | AE95: WISE | AF95: 6729949.246 | AI95: 96 | AJ95: WISE | AK95: 288372 | AL95: 271378
A96: 98 | B96: 83863725.1 | C96: 0 | D96: 0 | E96: 2172112.4 | F96: 0 | G96: 81691612.7 | H96: 16340826.56 | I96: 27550099.03 | J96: 0 | K96: 0 | L96: 3379421.78 | M96: 24170677.25 | N96: 70859963.87 | O96: 0 | P96: 193063080.4 | Q96: =VLOOKUP($A96,'FY 2024 TABLE 15'!$A$11:$C$144,3,FALSE) -> 13021.98 | S96: 16549409.44 | T96: 16688130.9 | Z96: 97 | AA96: WYTHE | AB96: 5236609.883 | AD96: 97 | AE96: WYTHE | AF96: 5379271.092 | AI96: 97 | AJ96: WYTHE | AK96: 133920 | AL96: 162810
A97: 101 | B97: 46884720.39 | C97: 0 | D97: 0 | E97: 2002662.16 | F97: 0 | G97: 44882058.23 | H97: 23096056.06 | I97: 36576410.65 | J97: 0 | K97: 0 | L97: 573587.4 | M97: 36002823.25 | N97: 265269893.8 | O97: 141456.95 | P97: 369250831.3 | Q97: =VLOOKUP($A97,'FY 2024 TABLE 15'!$A$11:$C$144,3,FALSE) -> 16572.83 | S97: 23322019.8 | T97: 23836678.75 | Z97: 98 | AA97: YORK | AB97: 16549409.44 | AD97: 98 | AE97: YORK | AF97: 16688130.9 | AI97: 98 | AJ97: YORK | AK97: 135564 | AL97: 261583
A98: 102 | B98: 21090931.17 | C98: 3451670.89 | D98: 4932492.19 | E98: 619408.37 | F98: 183138 | G98: 18807563.5 | H98: 3268153.54 | I98: 9509610.08 | J98: 0 | K98: 0 | L98: 56831.62 | M98: 9452778.46 | N98: 9183471.85 | O98: 137759.8 | P98: 40711967.35 | Q98: =VLOOKUP($A98,'FY 2024 TABLE 15'!$A$11:$C$144,3,FALSE) -> 2151.45 | S98: 3148424.236 | T98: 3224883.624 | Z98: 101 | AA98: ALEXANDRIA | AB98: 23322019.8 | AD98: 101 | AE98: ALEXANDRIA | AF98: 23836678.75 | AI98: 101 | AJ98: ALEXANDRIA | AK98: 4498 | AL98: 0
A99: 103 | B99: 9140224.98 | C99: 0 | D99: 0 | E99: 6405.58 | F99: 127924.48 | G99: 9005894.92 | H99: 1194872.88 | I99: 2473761.34 | J99: 0 | K99: 0 | L99: 187242.6 | M99: 2286518.74 | N99: 1928479.85 | O99: 0 | P99: 14415766.39 | Q99: =VLOOKUP($A99,'FY 2024 TABLE 15'!$A$11:$C$144,3,FALSE) -> 831.72 | S99: 1215237.936 | T99: 1314957.74 | Z99: 102 | AA99: BRISTOL | AB99: 3148424.236 | AD99: 102 | AE99: BRISTOL | AF99: 3224883.624 | AI99: 102 | AJ99: BRISTOL | AK99: 92583 | AL99: 26018
A100: 104 | B100: 29524621.54 | C100: 0 | D100: 0 | E100: 192107.66 | F100: 0 | G100: 29332513.88 | H100: 6914493.96 | I100: 16820114.56 | J100: 0 | K100: 0 | L100: 172955.06 | M100: 16647159.5 | N100: 42342440.32 | O100: 0 | P100: 95236607.66 | Q100: =VLOOKUP($A100,'FY 2024 TABLE 15'!$A$11:$C$144,3,FALSE) -> 4341.47 | S100: 7137504.652 | T100: 7308173.447 | Z100: 103 | AA100: BUENA VISTA | AB100: 1215237.936 | AD100: 103 | AE100: BUENA VISTA | AF100: 1314957.74 | AI100: 103 | AJ100: BUENA VISTA | AK100: 20864 | AL100: 11151
A101: 106 | B101: 20187162.67 | C101: 0 | D101: 0 | E101: 160037.7 | F101: 0 | G101: 20027124.97 | H101: 3711607.6 | I101: 5750874.5 | J101: 0 | K101: 0 | L101: 1813584.3 | M101: 3937290.2 | N101: 23170041.79 | O101: 67536.39 | P101: 50846064.56 | Q101: =VLOOKUP($A101,'FY 2024 TABLE 15'!$A$11:$C$144,3,FALSE) -> 2904.04 | S101: 3868525.369 | T101: 4160311.965 | Z101: 104 | AA101: CHARLOTTESVILLE | AB101: 7137504.652 | AD101: 104 | AE101: CHARLOTTESVILLE | AF101: 7308173.447 | AI101: 104 | AJ101: CHARLOTTESVILLE | AK101: 0 | AL101: 0
A102: 107 | B102: 0 | C102: 0 | D102: 0 | E102: 0 | F102: 0 | G102: 0 | H102: 0 | I102: 0 | J102: 0 | K102: 0 | L102: 0 | M102: 0 | N102: 0 | O102: 0 | P102: 0 | Q102: =VLOOKUP($A102,'FY 2024 TABLE 15'!$A$11:$C$144,3,FALSE) -> 0 | S102: 0 | T102: 0 | Z102: 106 | AA102: COLONIAL HEIGHTS | AB102: 3868525.369 | AD102: 106 | AE102: COLONIAL HEIGHTS | AF102: 4160311.965 | AI102: 106 | AJ102: COLONIAL HEIGHTS | AK102: 11552 | AL102: 68692
A103: 108 | B103: 97360080.26 | C103: 0 | D103: 0 | E103: 755448.92 | F103: 0 | G103: 96604631.34 | H103: 8308084.63 | I103: 28020712.83 | J103: 0 | K103: -47686.02 | L103: 2004715.55 | M103: 26063683.3 | N103: -12479926.62 | O103: 132496 | P103: 118496472.7 | Q103: =VLOOKUP($A103,'FY 2024 TABLE 15'!$A$11:$C$144,3,FALSE) -> 5528.54 | S103: 8241875 | T103: 8981451.589 | Z103: 107 | AA103: COVINGTON | AB103: 0 | AD103: 107 | AE103: COVINGTON | AF103: 0 | AI103: 107 | AJ103: COVINGTON | AK103: 0 | AL103: 0
A104: 109 | B104: 9463368.23 | C104: 0 | D104: 0 | E104: 0 | F104: 0 | G104: 9463368.23 | H104: 3457469.62 | I104: 1732588.84 | J104: 0 | K104: 0 | L104: 0 | M104: 1732588.84 | N104: 53136564.34 | O104: 0 | P104: 67789991.03 | Q104: =VLOOKUP($A104,'FY 2024 TABLE 15'!$A$11:$C$144,3,FALSE) -> 2631.12 | S104: 3481027.001 | T104: 3861153.498 | Z104: 108 | AA104: DANVILLE | AB104: 8241875 | AD104: 108 | AE104: DANVILLE | AF104: 8981451.589 | AI104: 108 | AJ104: DANVILLE | AK104: 138358 | AL104: 99144
A105: 110 | B105: 22152571.28 | C105: 0 | D105: 0 | E105: 781319.17 | F105: 0 | G105: 21371252.11 | H105: 4841825.26 | I105: 12488355.18 | J105: 0 | K105: 0 | L105: 507181.99 | M105: 11981173.19 | N105: 29693568.68 | O105: 109000 | P105: 67887819.24 | Q105: =VLOOKUP($A105,'FY 2024 TABLE 15'!$A$11:$C$144,3,FALSE) -> 3489.61 | S105: 4925534.805 | T105: 5143739.613 | Z105: 109 | AA105: FALLS CHURCH | AB105: 3481027.001 | AD105: 109 | AE105: FALLS CHURCH | AF105: 3861153.498 | AI105: 109 | AJ105: FALLS CHURCH | AK105: 0 | AL105: 12356
A106: 111 | B106: 12695014.09 | C106: 0 | D106: 350759.22 | E106: 0 | F106: 0 | G106: 12344254.87 | H106: 1462158.64 | I106: 3829385.54 | J106: 0 | K106: 0 | L106: 0 | M106: 3829385.54 | N106: 5146294.67 | O106: 228881.74 | P106: 22782093.72 | Q106: =VLOOKUP($A106,'FY 2024 TABLE 15'!$A$11:$C$144,3,FALSE) -> 1417.03 | S106: 1419750.963 | T106: 1576163.267 | Z106: 110 | AA106: FREDERICKSBURG | AB106: 4925534.805 | AD106: 110 | AE106: FREDERICKSBURG | AF106: 5143739.613 | AI106: 110 | AJ106: FREDERICKSBURG | AK106: 12117 | AL106: 0
A107: 112 | B107: 163633706.6 | C107: 7743398.29 | D107: 17921781.93 | E107: 2558194.45 | F107: 597422.82 | G107: 150299705.7 | H107: 24957064.98 | I107: 54166546.74 | J107: 0 | K107: 0 | L107: 450779.17 | M107: 53715767.57 | N107: 91774855.34 | O107: 541702 | P107: 320747393.6 | Q107: =VLOOKUP($A107,'FY 2024 TABLE 15'!$A$11:$C$144,3,FALSE) -> 19611.6 | S107: =VLOOKUP(A107,$Z$3:$AB$138,3,FALSE) -> 25543677.11 | T107: 27649832.94 | Z107: 111 | AA107: GALAX | AB107: 1419750.963 | AD107: 111 | AE107: GALAX | AF107: 1576163.267 | AI107: 111 | AJ107: GALAX | AK107: 35108 | AL107: 25535
A108: 113 | B108: 56670053.23 | C108: 0 | D108: 0 | E108: 0 | F108: 0 | G108: 56670053.23 | H108: 8455384.46 | I108: 15380873.34 | J108: 0 | K108: 0 | L108: 419467.99 | M108: 14961405.35 | N108: 34705582.59 | O108: 0 | P108: 114792425.6 | Q108: =VLOOKUP($A108,'FY 2024 TABLE 15'!$A$11:$C$144,3,FALSE) -> 6801.6 | S108: 8757463.105 | T108: 8748152.635 | Z108: 112 | AA108: HAMPTON | AB108: 25543677.11 | AD108: 112 | AE108: HAMPTON | AF108: 27649832.94 | AI108: 112 | AJ108: HAMPTON | AK108: 94679 | AL108: 62869
A109: 114 | B109: 40384503.23 | C109: 5249211.38 | D109: 6648240.05 | E109: 815959.87 | F109: 0 | G109: 38169514.69 | H109: 5023482.38 | I109: 13581382.28 | J109: 0 | K109: 0 | L109: 72581.59 | M109: 13508800.69 | N109: 12347600.83 | O109: 0 | P109: 69049398.59 | Q109: =VLOOKUP($A109,'FY 2024 TABLE 15'!$A$11:$C$144,3,FALSE) -> 3895.97 | S109: 4967513.794 | T109: 5403828.877 | Z109: 113 | AA109: HARRISONBURG | AB109: 8757463.105 | AD109: 113 | AE109: HARRISONBURG | AF109: 8748152.635 | AI109: 113 | AJ109: HARRISONBURG | AK109: 0 | AL109: 37715
A110: 115 | B110: 58208061.06 | C110: 0 | D110: 0 | E110: 88827.53 | F110: 0 | G110: 58119233.53 | H110: 12951896.7 | I110: 32524762.02 | J110: 0 | K110: 0 | L110: 349264.03 | M110: 32175497.99 | N110: 34950140.45 | O110: 0 | P110: 138196768.7 | Q110: =VLOOKUP($A110,'FY 2024 TABLE 15'!$A$11:$C$144,3,FALSE) -> 7667.56 | S110: 12947827.4 | T110: 13909752.45 | Z110: 114 | AA110: HOPEWELL | AB110: 4967513.794 | AD110: 114 | AE110: HOPEWELL | AF110: 5403828.877 | AI110: 114 | AJ110: HOPEWELL | AK110: 55475 | AL110: 154561
A111: 116 | B111: 18850308.5 | C111: 270788 | D111: 0 | E111: 0 | F111: 0 | G111: 19121096.5 | H111: 2658574.06 | I111: 8237154.68 | J111: 51631.31 | K111: 0 | L111: 0 | M111: 8288785.99 | N111: 5956564.29 | O111: 37903.95 | P111: 36025020.84 | Q111: =VLOOKUP($A111,'FY 2024 TABLE 15'!$A$11:$C$144,3,FALSE) -> 1813.4 | S111: 2652211.049 | T111: 2924608.894 | Z111: 115 | AA111: LYNCHBURG | AB111: 12947827.4 | AD111: 115 | AE111: LYNCHBURG | AF111: 13909752.45 | AI111: 115 | AJ111: LYNCHBURG | AK111: 212512 | AL111: 201484
A112: 117 | B112: 235655256 | C112: 6093889.78 | D112: 6135535.37 | E112: 0 | F112: 0 | G112: 235613610.4 | H112: 35642470.74 | I112: 107362712.7 | J112: 0 | K112: 0 | L112: 4909.91 | M112: 107357802.8 | N112: 121589534.6 | O112: 0 | P112: 500203418.5 | Q112: =VLOOKUP($A112,'FY 2024 TABLE 15'!$A$11:$C$144,3,FALSE) -> 26035.99 | S112: 36337659.41 | T112: 38353678.24 | Z112: 116 | AA112: MARTINSVILLE | AB112: 2652211.049 | AD112: 116 | AE112: MARTINSVILLE | AF112: 2924608.894 | AI112: 116 | AJ112: MARTINSVILLE | AK112: 100620 | AL112: 112104
A113: 118 | B113: 218883838.4 | C113: 0 | D113: 0 | E113: 1512200.57 | F113: 0 | G113: 217371637.8 | H113: 37371632.62 | I113: 130013422.3 | J113: 0 | K113: 0 | L113: 38628036.81 | M113: 91385385.48 | N113: =SUM(P113-(G113+H113+M113)) -> 118971868 | O113: -505945.43 | P113: 465100523.9 | Q113: =VLOOKUP($A113,'FY 2024 TABLE 15'!$A$11:$C$144,3,FALSE) -> 26846.02 | S113: 38308519.16 | T113: =VLOOKUP($A113,$AD$3:$AF$138,3,FALSE) -> 42160134.86 | Z113: 117 | AA113: NEWPORT NEWS | AB113: 36337659.41 | AD113: 117 | AE113: NEWPORT NEWS | AF113: 38353678.24 | AI113: 117 | AJ113: NEWPORT NEWS | AK113: 1088442 | AL113: 66349
A114: 119 | B114: 7820890.14 | C114: 282424.72 | D114: 832269.56 | E114: 0 | F114: 0 | G114: 7271045.3 | H114: 889511.5 | I114: 2339763.95 | J114: 0 | K114: 0 | L114: 0 | M114: 2339763.95 | N114: 2787049.33 | O114: 0 | P114: 13287370.08 | Q114: =VLOOKUP($A114,'FY 2024 TABLE 15'!$A$11:$C$144,3,FALSE) -> 816.3 | S114: 852496.4085 | T114: 868452.5648 | Z114: 118 | AA114: NORFOLK | AB114: 38308519.16 | AD114: 118 | AE114: NORFOLK | AF114: 42160134.86 | AI114: 118 | AJ114: NORFOLK | AK114: 210420 | AL114: 297543
A115: 120 | B115: 45164312.26 | C115: 0 | D115: 0 | E115: 2615566.62 | F115: 0 | G115: 42548745.64 | H115: 5097705.72 | I115: 16365158.59 | J115: 0 | K115: 0 | L115: 39134.41 | M115: 16326024.18 | N115: 15783056.51 | O115: 0 | P115: 79755532.05 | Q115: =VLOOKUP($A115,'FY 2024 TABLE 15'!$A$11:$C$144,3,FALSE) -> 4500.62 | S115: 5672545.546 | T115: 6481022.611 | Z115: 119 | AA115: NORTON | AB115: 852496.4085 | AD115: 119 | AE115: NORTON | AF115: 868452.5648 | AI115: 119 | AJ115: NORTON | AK115: 72060 | AL115: 135522
A116: 121 | B116: 120456541 | C116: 0 | D116: 0 | E116: 1927355.06 | F116: 1205970.75 | G116: 117323215.2 | H116: 18601828.72 | I116: 54167047.86 | J116: 0 | K116: 0 | L116: 677586.02 | M116: 53489461.84 | N116: 36527594.63 | O116: 0 | P116: 225942100.4 | Q116: =VLOOKUP($A116,'FY 2024 TABLE 15'!$A$11:$C$144,3,FALSE) -> 12849.84 | S116: 19000336.62 | T116: 19750040.14 | Z116: 120 | AA116: PETERSBURG | AB116: 5672545.546 | AD116: 120 | AE116: PETERSBURG | AF116: 6481022.611 | AI116: 120 | AJ116: PETERSBURG | AK116: 73950 | AL116: 378115
A117: 122 | B117: 23340605.08 | C117: 0 | D117: 0 | E117: 116680.07 | F117: 0 | G117: 23223925.01 | H117: 2133017.08 | I117: 3213394.79 | J117: 0 | K117: 0 | L117: 244899.03 | M117: 2968495.76 | N117: 8300029.49 | O117: 140000 | P117: 36625467.34 | Q117: =VLOOKUP($A117,'FY 2024 TABLE 15'!$A$11:$C$144,3,FALSE) -> 3186.52 | S117: 2064505.191 | T117: 2034947.334 | Z117: 121 | AA117: PORTSMOUTH | AB117: 19000336.62 | AD117: 121 | AE117: PORTSMOUTH | AF117: 19750040.14 | AI117: 121 | AJ117: PORTSMOUTH | AK117: 116090 | AL117: 115489
A118: 123 | B118: 156347549 | C118: 0 | D118: 0 | E118: 9436233.43 | F118: 0 | G118: 146911315.6 | H118: 31282398.58 | I118: 105647269.5 | J118: 0 | K118: 0 | L118: 3274357.91 | M118: 102372911.6 | N118: 208309278.3 | O118: 0 | P118: 488875904 | Q118: =VLOOKUP($A118,'FY 2024 TABLE 15'!$A$11:$C$144,3,FALSE) -> 21180.55 | S118: 31401360.76 | T118: 33696629.27 | Z118: 122 | AA118: RADFORD | AB118: 2064505.191 | AD118: 122 | AE118: RADFORD | AF118: 2034947.334 | AI118: 122 | AJ118: RADFORD | AK118: 29413 | AL118: 26310
A119: 124 | B119: 129236102.7 | C119: 0 | D119: 0 | E119: 137682 | F119: 1017637 | G119: 128080783.7 | H119: 18693776.16 | I119: 47170590.54 | J119: 0 | K119: 0 | L119: 5715957.94 | M119: 41454632.6 | N119: 78029664.6 | O119: 0 | P119: 266258857.1 | Q119: =VLOOKUP($A119,'FY 2024 TABLE 15'!$A$11:$C$144,3,FALSE) -> 13609.98 | S119: 18892698.18 | T119: 20571609.66 | Z119: 123 | AA119: RICHMOND CITY | AB119: 31401360.76 | AD119: 123 | AE119: RICHMOND CITY | AF119: 33696629.27 | AI119: 123 | AJ119: RICHMOND CITY | AK119: 81260 | AL119: 1046008
A120: 126 | B120: 18510520.4 | C120: 0 | D120: 0 | E120: 487618.37 | F120: 0 | G120: 18022902.03 | H120: 4264965.88 | I120: 7829951.44 | J120: 0 | K120: 0 | L120: 2583064.85 | M120: 5246886.59 | N120: 17517801.95 | O120: 62889.78 | P120: 45052556.45 | Q120: =VLOOKUP($A120,'FY 2024 TABLE 15'!$A$11:$C$144,3,FALSE) -> 2656.99 | S120: 4465918.685 | T120: 4617979.769 | Z120: 124 | AA120: ROANOKE CITY | AB120: 18892698.18 | AD120: 124 | AE120: ROANOKE CITY | AF120: 20571609.66 | AI120: 124 | AJ120: ROANOKE CITY | AK120: 252358 | AL120: 292838
A121: 127 | B121: 102235909.2 | C121: 0 | D121: 0 | E121: 549572.55 | F121: 0 | G121: 101686336.6 | H121: 20436643.18 | I121: 33711090.59 | J121: 0 | K121: 0 | L121: 168952.31 | M121: 33542138.28 | N121: 73086475.67 | O121: 91503.03 | P121: 228751593.8 | Q121: =VLOOKUP($A121,'FY 2024 TABLE 15'!$A$11:$C$144,3,FALSE) -> 14432.37 | S121: 21336090.67 | T121: 22506093.33 | Z121: 126 | AA121: STAUNTON | AB121: 4465918.685 | AD121: 126 | AE121: STAUNTON | AF121: 4617979.769 | AI121: 126 | AJ121: STAUNTON | AK121: 0 | AL121: 156536
A122: 128 | B122: 399972688.7 | C122: 3944180.73 | D122: 18231349.09 | E122: 0 | F122: 0 | G122: 385685520.3 | H122: 90678102.66 | I122: 127296172.2 | J122: 0 | K122: 0 | L122: 13904883.9 | M122: 113391288.3 | N122: 466779922.7 | O122: 82916.48 | P122: 1056534834 | Q122: =VLOOKUP($A122,'FY 2024 TABLE 15'!$A$11:$C$144,3,FALSE) -> 64755.16 | S122: 91211733.79 | T122: 94290730.27 | Z122: 127 | AA122: SUFFOLK | AB122: 21336090.67 | AD122: 127 | AE122: SUFFOLK | AF122: 22506093.33 | AI122: 127 | AJ122: SUFFOLK | AK122: 63829 | AL122: 183997
A123: 130 | B123: 25592835.98 | C123: 0 | D123: 0 | E123: 3899467.15 | F123: 211158.99 | G123: 21482209.84 | H123: 4268595.26 | I123: 6478131.11 | J123: 0 | K123: 0 | L123: 0 | M123: 6478131.11 | N123: 22389436.89 | O123: 2700.97 | P123: 54618373.1 | Q123: =VLOOKUP($A123,'FY 2024 TABLE 15'!$A$11:$C$144,3,FALSE) -> 2998.03 | S123: 4301231.879 | T123: 4745233.744 | Z123: 128 | AA123: VIRGINIA BEACH | AB123: 91211733.79 | AD123: 128 | AE123: VIRGINIA BEACH | AF123: 94290730.27 | AI123: 128 | AJ123: VIRGINIA BEACH | AK123: 198560 | AL123: 575488
A124: 131 | B124: 57908950.05 | C124: 0 | D124: 0 | E124: 18216.03 | F124: 0 | G124: 57890734.02 | H124: 16366879.14 | I124: 14490173.5 | J124: 0 | K124: 0 | L124: 606619.09 | M124: =SUM(I124+J124-K124-L124) -> 13883554.41 | N124: =SUM(P124-(G124+H124+M124)) -> 94983190.64 | O124: 151044801.2 | P124: 183124358.2 | Q124: =VLOOKUP($A124,'FY 2024 TABLE 15'!$A$11:$C$144,3,FALSE) -> 11572.65 | S124: =VLOOKUP(A124,$Z$3:$AB$138,3,FALSE)+VLOOKUP(47,$Z$3:$AB$138,3,FALSE) -> 16521423.45 | T124: =VLOOKUP($A124,$AD$3:$AF$138,3,FALSE)+VLOOKUP(47,$AD$3:$AF$138,3,FALSE) -> 17427096.97 | Z124: 130 | AA124: WAYNESBORO | AB124: 4301231.879 | AD124: 130 | AE124: WAYNESBORO | AF124: 4745233.744 | AI124: 130 | AJ124: WAYNESBORO | AK124: 36935 | AL124: 152929
A125: 132 | B125: 31153951.37 | C125: 0 | D125: 0 | E125: 0 | F125: 0 | G125: 31153951.37 | H125: 5316792.66 | I125: 17095770.7 | J125: 0 | K125: 0 | L125: 3714869.46 | M125: =SUM(I125+J125-K125-L125) -> 13380901.24 | N125: 34705673.46 | O125: 0 | P125: 84557318.73 | Q125: =VLOOKUP($A125,'FY 2024 TABLE 15'!$A$11:$C$144,3,FALSE) -> 4206.63 | S125: 5471261.672 | T125: =VLOOKUP($A125,$AD$3:$AF$138,3,FALSE) -> 5956379.031 | Z125: 131 | AA125: WILLIAMSBURG | AB125: 1565062.851 | AD125: 131 | AE125: WILLIAMSBURG | AF125: 1733556.341 | AI125: 131 | AJ125: WILLIAMSBURG | AK125: 0 | AL125: 49744 | AM125: includes James City County
A126: 134 | B126: 0 | C126: 0 | D126: 0 | E126: 0 | F126: 0 | G126: 0 | I126: 0 | J126: 0 | K126: 0 | L126: 0 | M126: 0 | N126: 0 | O126: 0 | P126: 0 | T126: 0 | Z126: 132 | AA126: WINCHESTER | AB126: 5471261.672 | AD126: 132 | AE126: WINCHESTER | AF126: 5956379.031 | AI126: 132 | AJ126: WINCHESTER | AK126: 0 | AL126: 50406
A127: 135 | B127: 12597403.31 | C127: 162350 | D127: 225394.1 | E127: 0 | F127: 0 | G127: 12534359.21 | H127: 1667677.7 | I127: 6111092.35 | J127: 0 | K127: 0 | L127: 3027143.83 | M127: 3083948.52 | N127: =SUM(P127-(G127+H127+M127)) -> 4255747.39 | O127: 0 | P127: 21541732.82 | Q127: =VLOOKUP($A127,'FY 2024 TABLE 15'!$A$11:$C$144,3,FALSE) -> 1038.85 | S127: 1699610.895 | T127: =VLOOKUP($A127,$AD$3:$AF$138,3,FALSE) -> 1849647.686 | Z127: 134 | AA127: FAIRFAX CITY | AB127: 4246336.277 | AD127: 134 | AE127: FAIRFAX CITY | AF127: 4644770.08 | AI127: 134 | AJ127: FAIRFAX CITY | AK127: 0 | AL127: 11120 | AM127: included in Fairfax County
A128: 136 | B128: 279531928.9 | C128: 0 | D128: 0 | E128: 1510852.41 | F128: 0 | G128: 278021076.5 | H128: 56177093.5 | I128: 82055025.86 | J128: 0 | K128: 0 | L128: 13090088.94 | M128: 68964936.92 | N128: 261347417.6 | O128: 0 | P128: 664510524.5 | Q128: =VLOOKUP($A128,'FY 2024 TABLE 15'!$A$11:$C$144,3,FALSE) -> 40643.27 | S128: 56969794.71 | T128: =VLOOKUP($A128,$AD$3:$AF$138,3,FALSE) -> 59309282.36 | Z128: 135 | AA128: FRANKLIN CITY | AB128: 1699610.895 | AD128: 135 | AE128: FRANKLIN CITY | AF128: 1849647.686 | AI128: 135 | AJ128: FRANKLIN CITY | AK128: 0 | AL128: 19766
A129: 137 | B129: 4096863.13 | C129: 400923.17 | D129: 400923.17 | E129: 0 | F129: 0 | G129: 4096863.13 | H129: 808296.66 | I129: 493848.43 | J129: 0 | K129: 0 | L129: 0 | M129: 493848.43 | N129: 3817814.84 | O129: 0 | P129: 9216823.06 | Q129: =VLOOKUP($A129,'FY 2024 TABLE 15'!$A$11:$C$144,3,FALSE) -> 649.79 | S129: 785760.5785 | T129: =VLOOKUP($A129,$AD$3:$AF$138,3,FALSE) -> 826034.5732 | Z129: 136 | AA129: CHESAPEAKE CITY | AB129: 56969794.71 | AD129: 136 | AE129: CHESAPEAKE CITY | AF129: 59309282.36 | AI129: 136 | AJ129: CHESAPEAKE CITY | AK129: 165035 | AL129: 465581
A130: 138 | B130: 0 | C130: 0 | D130: 0 | E130: 0 | F130: 0 | G130: =SUM(B130+C130-D130-E130-F130) -> 0 | I130: 0 | J130: 0 | K130: 0 | L130: 0 | M130: 0 | N130: 0 | O130: 0 | P130: 0 | T130: 0 | Z130: 137 | AA130: LEXINGTON | AB130: 785760.5785 | AD130: 137 | AE130: LEXINGTON | AF130: 826034.5732 | AI130: 137 | AJ130: LEXINGTON | AK130: 17856 | AL130: 0
A131: 139 | B131: 28870523.83 | C131: 0 | D131: 0 | E131: 803928.97 | F131: 0 | G131: 28066594.86 | H131: 4600937 | I131: 5080759.91 | J131: 0 | K131: 0 | L131: 0 | M131: =SUM(I131+J131-K131-L131) -> 5080759.91 | N131: =SUM(P131-(G131+H131+M131)) -> 23713389.4 | O131: 100816.8 | P131: 61461681.17 | Q131: =VLOOKUP($A131,'FY 2024 TABLE 15'!$A$11:$C$144,3,FALSE) -> 4272 | S131: 4501439.369 | T131: =VLOOKUP($A131,$AD$3:$AF$138,3,FALSE) -> 4665979.076 | Z131: 138 | AA131: EMPORIA | AB131: 1269057.154 | AD131: 138 | AE131: EMPORIA | AF131: 1379700.99 | AI131: 138 | AJ131: EMPORIA | AK131: 0 | AL131: 0 | AM131: included in Greensville
A132: 140 | B132: 0 | C132: 0 | D132: 0 | E132: 0 | F132: 0 | G132: 0 | I132: 0 | J132: 0 | K132: 0 | L132: 0 | M132: =SUM(I132+J132-K132-L132) -> 0 | N132: 0 | O132: 0 | P132: 0 | T132: 0 | Z132: 139 | AA132: SALEM | AB132: 4501439.369 | AD132: 139 | AE132: SALEM | AF132: 4665979.076 | AI132: 139 | AJ132: SALEM | AK132: 100576 | AL132: 34800
A133: 142 | B133: 12860847.61 | C133: 0 | D133: 0 | E133: 828695.9 | F133: 0 | G133: 12032151.71 | H133: 2851738.1 | I133: 1645808.79 | J133: 73608.05 | K133: 65671.1 | L133: 128006.06 | M133: 1525739.68 | N133: =SUM(P133-(G133+H133+M133)) -> 12057523.94 | O133: 34000 | P133: 28467153.43 | Q133: =VLOOKUP($A133,'FY 2024 TABLE 15'!$A$11:$C$144,3,FALSE) -> 2021.54 | S133: 2901932.219 | T133: =VLOOKUP($A133,$AD$3:$AF$138,3,FALSE) -> 2952515.468 | Z133: 140 | AA133: BEDFORD CITY | AB133: 0 | AD133: 140 | AE133: BEDFORD CITY | AF133: 0 | AI133: 140 | AJ133: BEDFORD CITY | AM133: included in Bedford County
A134: 143 | B134: 65116573.56 | C134: 0 | D134: 0 | E134: 0 | F134: 0 | G134: 65116573.56 | H134: 9571052.38 | I134: 10435880.93 | J134: 0 | K134: 0 | L134: 223806.4 | M134: 10212074.53 | N134: 54831349.98 | O134: 0 | P134: 139731050.4 | Q134: =VLOOKUP($A134,'FY 2024 TABLE 15'!$A$11:$C$144,3,FALSE) -> 7519.68 | S134: 9847840.456 | T134: =VLOOKUP($A134,$AD$3:$AF$138,3,FALSE) -> 10502917.97 | Z134: 142 | AA134: POQUOSON | AB134: 2901932.219 | AD134: 142 | AE134: POQUOSON | AF134: 2952515.468 | AI134: 142 | AJ134: POQUOSON | AK134: 50600 | AL134: 43998
A135: 144 | B135: 34265502.37 | C135: 0 | D135: 0 | E135: 0 | F135: 0 | G135: 34265502.37 | H135: 4082164.44 | I135: 5021705.24 | J135: 0 | K135: 0 | L135: 0 | M135: 5021705.24 | N135: 11989072.63 | O135: 0 | P135: 55358444.68 | Q135: =VLOOKUP($A135,'FY 2024 TABLE 15'!$A$11:$C$144,3,FALSE) -> 3424.57 | S135: 4088107.777 | T135: =VLOOKUP($A135,$AD$3:$AF$138,3,FALSE) -> 4073243.456 | Z135: 143 | AA135: MANASSAS CITY | AB135: 9847840.456 | AD135: 143 | AE135: MANASSAS CITY | AF135: 10502917.97 | AI135: 143 | AJ135: MANASSAS CITY | AK135: 27948 | AL135: 55681
A136: 202 | B136: 6001387.25 | C136: 759841 | D136: 759841 | E136: 0 | F136: 0 | G136: 6001387.25 | H136: 699745.73 | I136: 2399907.21 | J136: 0 | K136: 513872.88 | L136: 299413.17 | M136: 1586621.16 | N136: 2585375.76 | O136: 0 | P136: 10873129.9 | Q136: =VLOOKUP($A136,'FY 2024 TABLE 15'!$A$11:$C$144,3,FALSE) -> 598.04 | S136: 686733.2179 | T136: =VLOOKUP($A136,$AD$3:$AF$138,3,FALSE) -> 741198.59 | Z136: 144 | AA136: MANASSAS PARK | AB136: 4088107.777 | AD136: 144 | AE136: MANASSAS PARK | AF136: 4073243.456 | AI136: 144 | AJ136: MANASSAS PARK | AK136: 31896 | AL136: 20950
A137: 207 | B137: 7256459.2 | C137: 0 | D137: 0 | E137: 0 | F137: 0 | G137: 7256459.2 | H137: 883344.96 | I137: 602703.24 | J137: 0 | K137: 0 | L137: 0 | M137: 602703.24 | N137: 4852100.56 | O137: 0 | P137: 13594607.96 | Q137: =VLOOKUP($A137,'FY 2024 TABLE 15'!$A$11:$C$144,3,FALSE) -> 842.49 | S137: 880482.4017 | T137: =VLOOKUP($A137,$AD$3:$AF$138,3,FALSE) -> 958869.8627 | Z137: 202 | AA137: COLONIAL BEACH | AB137: 686733.2179 | AD137: 202 | AE137: COLONIAL BEACH | AF137: 741198.59 | AI137: 202 | AJ137: COLONIAL BEACH | AK137: 30575 | AL137: 22944
B138: =SUM(B2:B137) -> 8304815186 | C138: =SUM(C2:C137) -> 51651041.41 | D138: 116056366.3 | E138: 170871384.6 | F138: 20409922.54 | G138: 8049128554 | H138: 1737049862 | I138: 2405704292 | J138: 13361979.2 | K138: 7911982.64 | L138: 197941730.2 | M138: 2213212558 | N138: 1.018562508e+10 | O138: 235549932.6 | P138: 2.218501605e+10 | Q138: 1257959.93 | S138: =SUM(S2:S137) -> 1755500000 | T138: =SUM(T1:T137) -> 1821500000 | Z138: 207 | AA138: WEST POINT | AB138: 880482.4017 | AD138: 207 | AE138: WEST POINT | AF138: 958869.8627 | AI138: 207 | AJ138: WEST POINT | AK138: 78518 | AL138: 0
B140: 0 | C140: 0 | D140: 0 | E140: 0 | F140: 0 | G140: 0 | H140: 0 | I140: 0 | J140: 0 | K140: 0 | L140: 0 | M140: 0 | N140: 0 | O140: 0 | P140: 0 | Q140: =Q138-'FY 2024 TABLE 15'!C146 -> 0 | AA140: State Totals: | AB140: =SUM(AB3:AB139) -> 1755500000 | AE140: State Totals: | AF140: =SUM(AF3:AF139) -> 1821500000 | AJ140: State Totals: | AK140: =SUM(AK3:AK138) -> 11033363 | AL140: =SUM(AL3:AL138) -> 21884415
